Workbook

Sheet Import
A1: LEQ Data import
A6: How does this worksheet work?
A7: This worksheet allows you to import LEQ measurements stored on the Bedrock SMxx. Make sure that the LEQ result files are copied onto your computer, or that the instrument is attached to USB and accessible as a mass storage device. The LEQ files are stored in the LAEQ folder for backard compatibility. Then press the button below ("Import LEQ"). You can now select the measurement data files that you wish to import. NOTE: by using SHIFT and CTRL you can select multiple files for opening. The measurements are imported into the sheet named "Data." Use the sheet named "View" to browse through these measurements, or copy data directly from the "Data" sheet to your own Worksheet for further calculations. Note that importing data changes this worksheet, overwriting earlier data imports. We recommend that you keep the original version of this worksheet in a safe location, and that you use a new copy of this original file for each new project.
A11: For support or to download the latest version of this file, please refer to our website
A12: www.bedrock-audio.com
A14: Version 2.6.0
A17: COPYRIGHT (C) Embedded Acoustics BV, 2020
A18: ALL RIGHTS RESERVED. This worksheet contains material protected under International and Federal Copyright Laws and Treaties. Any unauthorized use of this material is prohibited. No part of this worksheet may be reproduced or transmitted in any form or by any means, electronic or mechanical, including photocopying, recording, or by any information storage and retrieval system without express written permission from the author.
A20: DISCLAIMER
A21: THIS DOCUMENT IS PROVIDED "AS IS", WITHOUT WARRANTY OF ANY KIND, EXPRESS OR IMPLIED, INCLUDING BUT NOT LIMITED TO THE WARRANTIES OF MERCHANTABILITY, FITNESS FOR A PARTICULAR PURPOSE AND NONINFRINGEMENT. IN NO EVENT SHALL THE AUTHORS OR COPYRIGHT HOLDERS BE LIABLE FOR ANY CLAIM, DAMAGES OR OTHER LIABILITY, WHETHER IN AN ACTION OF CONTRACT, TORT OR OTHERWISE, ARISING FROM, OUT OF OR IN CONNECTION WITH THE SOFTWARE OR THE USE OR OTHER DEALINGS IN THE SOFTWARE

Sheet View
A1: LEQ measurement | K1: Data point time | L1: Averaging time | M1: =CONCATENATE("LAEQ ", $B$6," min") -> LAEQ 15 min | N1: =CONCATENATE("LAEQ ", $B$7," sec") -> LAEQ 1 sec | O1: 10^(Li/10) | P1: LAEQ Limit exceeded | Q1: =CONCATENATE("LCEQ ", $B$6," min") -> LCEQ 15 min | R1: =CONCATENATE("LCEQ ", $B$7," sec") -> LCEQ 1 sec | S1: LCEQ Limit exceeded | T1: =CONCATENATE("LZEQ ", $B$6," min") -> LZEQ 15 min | U1: =CONCATENATE("LZEQ ", $B$7," sec") -> LZEQ 1 sec | V1: LZEQ Limit exceeded
K2: =IF(OFFSET(Data!A5,0,(View!$B$27-1)*12)<>"",$B$3 + OFFSET(Data!A5,0,(View!$B$27-1)*12),"") -> 44474.39116 | L2: =IF(OFFSET(Data!B5,0,(View!$B$27-1)*12)<>"",OFFSET(Data!B5,0,(View!$B$27-1)*12),"") -> 1 | M2: =IF(OFFSET(Data!C5,0,(View!$B$27-1)*12)<>"",OFFSET(Data!C5,0,(View!$B$27-1)*12),"") -> 46.5464 | N2: =IF(OFFSET(Data!D5,0,(View!$B$27-1)*12)<>"",OFFSET(Data!D5,0,(View!$B$27-1)*12),"") -> 46.5464 | O2: =10^(N2/10) -> 45148.15423 | P2: =IF(M2<>"",IF(M2<$B$8,IF(N2<$B$8,"OK","Current"),"Average"),"") -> OK | Q2: =IF(OFFSET(Data!F5,0,(View!$B$27-1)*12)<>"",OFFSET(Data!F5,0,(View!$B$27-1)*12),IF($M2<>"",#N/A,"")) -> 57.59908 | R2: =IF(OFFSET(Data!G5,0,(View!$B$27-1)*12)<>"",OFFSET(Data!G5,0,(View!$B$27-1)*12),IF($N2<>"",#N/A,"")) -> 57.59908 | S2: =IF(Q2<>"",IF(Q2<$B$8,IF(R2<$B$8,"OK","Current"),"Average"),"") -> OK | T2: =IF(OFFSET(Data!I5,0,(View!$B$27-1)*12)<>"",OFFSET(Data!I5,0,(View!$B$27-1)*12),IF($M2<>"",#N/A,"")) -> 62.18216 | U2: =IF(OFFSET(Data!J5,0,(View!$B$27-1)*12)<>"",OFFSET(Data!J5,0,(View!$B$27-1)*12),IF($N2<>"",#N/A,"")) -> 62.18216 | V2: =IF(T2<>"",IF(T2<$B$8,IF(U2<$B$8,"OK","Current"),"Average"),"") -> OK | W2: Laeq=10*log10((10^(L1/10)+10^(L2/10)+….+10^(Ln/10))/n)
A3: Date | B3: =OFFSET(Data!B2,0,(View!$B$27-1)*12) -> 2021-10-05 | K3: =IF(OFFSET(Data!A6,0,(View!$B$27-1)*12)<>"",$B$3 + OFFSET(Data!A6,0,(View!$B$27-1)*12),"") -> 44474.39117 | L3: =IF(OFFSET(Data!B6,0,(View!$B$27-1)*12)<>"",OFFSET(Data!B6,0,(View!$B$27-1)*12),"") -> 2 | M3: =IF(OFFSET(Data!C6,0,(View!$B$27-1)*12)<>"",OFFSET(Data!C6,0,(View!$B$27-1)*12),"") -> 68.79659 | N3: =IF(OFFSET(Data!D6,0,(View!$B$27-1)*12)<>"",OFFSET(Data!D6,0,(View!$B$27-1)*12),"") -> 71.79393 | O3: =10^(N3/10) -> 15114472.68 | P3: =IF(M3<>"",IF(M3<$B$8,IF(N3<$B$8,"OK","Current"),"Average"),"") -> OK | Q3: =IF(OFFSET(Data!F6,0,(View!$B$27-1)*12)<>"",OFFSET(Data!F6,0,(View!$B$27-1)*12),IF($M3<>"",#N/A,"")) -> 72.73644 | R3: =IF(OFFSET(Data!G6,0,(View!$B$27-1)*12)<>"",OFFSET(Data!G6,0,(View!$B$27-1)*12),IF($N3<>"",#N/A,"")) -> 75.6797 | S3: =IF(Q3<>"",IF(Q3<$B$8,IF(R3<$B$8,"OK","Current"),"Average"),"") -> OK | T3: =IF(OFFSET(Data!I6,0,(View!$B$27-1)*12)<>"",OFFSET(Data!I6,0,(View!$B$27-1)*12),IF($M3<>"",#N/A,"")) -> 72.94711 | U3: =IF(OFFSET(Data!J6,0,(View!$B$27-1)*12)<>"",OFFSET(Data!J6,0,(View!$B$27-1)*12),IF($N3<>"",#N/A,"")) -> 75.77139 | V3: =IF(T3<>"",IF(T3<$B$8,IF(U3<$B$8,"OK","Current"),"Average"),"") -> OK | W3: Laeq = | X3: =10*LOG10(SUM(O2:O105)/COUNT(O2:O105)) -> 74.71498268 | Y3: dB(A)
A4: Time | B4: =OFFSET(Data!C2,0,(View!$B$27-1)*12) -> 09:23:14 | K4: =IF(OFFSET(Data!A7,0,(View!$B$27-1)*12)<>"",$B$3 + OFFSET(Data!A7,0,(View!$B$27-1)*12),"") -> 44474.39118 | L4: =IF(OFFSET(Data!B7,0,(View!$B$27-1)*12)<>"",OFFSET(Data!B7,0,(View!$B$27-1)*12),"") -> 3 | M4: =IF(OFFSET(Data!C7,0,(View!$B$27-1)*12)<>"",OFFSET(Data!C7,0,(View!$B$27-1)*12),"") -> 73.93935 | N4: =IF(OFFSET(Data!D7,0,(View!$B$27-1)*12)<>"",OFFSET(Data!D7,0,(View!$B$27-1)*12),"") -> 77.71968 | O4: 59151804.79 | P4: OK | Q4: =IF(OFFSET(Data!F7,0,(View!$B$27-1)*12)<>"",OFFSET(Data!F7,0,(View!$B$27-1)*12),IF($M4<>"",#N/A,"")) -> 77.10964 | R4: =IF(OFFSET(Data!G7,0,(View!$B$27-1)*12)<>"",OFFSET(Data!G7,0,(View!$B$27-1)*12),IF($N4<>"",#N/A,"")) -> 80.66866 | S4: OK | T4: =IF(OFFSET(Data!I7,0,(View!$B$27-1)*12)<>"",OFFSET(Data!I7,0,(View!$B$27-1)*12),IF($M4<>"",#N/A,"")) -> 77.1842 | U4: =IF(OFFSET(Data!J7,0,(View!$B$27-1)*12)<>"",OFFSET(Data!J7,0,(View!$B$27-1)*12),IF($N4<>"",#N/A,"")) -> 80.69848 | V4: OK | W4: T = | X4: =COUNT(O2:O105) -> 104 | Y4: s
K5: =IF(OFFSET(Data!A8,0,(View!$B$27-1)*12)<>"",$B$3 + OFFSET(Data!A8,0,(View!$B$27-1)*12),"") -> 44474.39119 | L5: =IF(OFFSET(Data!B8,0,(View!$B$27-1)*12)<>"",OFFSET(Data!B8,0,(View!$B$27-1)*12),"") -> 4 | M5: =IF(OFFSET(Data!C8,0,(View!$B$27-1)*12)<>"",OFFSET(Data!C8,0,(View!$B$27-1)*12),"") -> 74.12587 | N5: =IF(OFFSET(Data!D8,0,(View!$B$27-1)*12)<>"",OFFSET(Data!D8,0,(View!$B$27-1)*12),"") -> 74.64171 | O5: 29118634.15 | P5: OK | Q5: =IF(OFFSET(Data!F8,0,(View!$B$27-1)*12)<>"",OFFSET(Data!F8,0,(View!$B$27-1)*12),IF($M5<>"",#N/A,"")) -> 77.09779 | R5: =IF(OFFSET(Data!G8,0,(View!$B$27-1)*12)<>"",OFFSET(Data!G8,0,(View!$B$27-1)*12),IF($N5<>"",#N/A,"")) -> 77.06202 | S5: OK | T5: =IF(OFFSET(Data!I8,0,(View!$B$27-1)*12)<>"",OFFSET(Data!I8,0,(View!$B$27-1)*12),IF($M5<>"",#N/A,"")) -> 77.18259 | U5: =IF(OFFSET(Data!J8,0,(View!$B$27-1)*12)<>"",OFFSET(Data!J8,0,(View!$B$27-1)*12),IF($N5<>"",#N/A,"")) -> 77.17771 | V5: OK
A6: Running average time (min) | B6: =MAX(OFFSET(Data!D2,0,(View!$B$27-1)*12), 1) -> 15 | K6: =IF(OFFSET(Data!A9,0,(View!$B$27-1)*12)<>"",$B$3 + OFFSET(Data!A9,0,(View!$B$27-1)*12),"") -> 44474.3912 | L6: =IF(OFFSET(Data!B9,0,(View!$B$27-1)*12)<>"",OFFSET(Data!B9,0,(View!$B$27-1)*12),"") -> 5 | M6: =IF(OFFSET(Data!C9,0,(View!$B$27-1)*12)<>"",OFFSET(Data!C9,0,(View!$B$27-1)*12),"") -> 73.37136 | N6: =IF(OFFSET(Data!D9,0,(View!$B$27-1)*12)<>"",OFFSET(Data!D9,0,(View!$B$27-1)*12),"") -> 67.19253 | O6: 5239055.51 | P6: OK | Q6: =IF(OFFSET(Data!F9,0,(View!$B$27-1)*12)<>"",OFFSET(Data!F9,0,(View!$B$27-1)*12),IF($M6<>"",#N/A,"")) -> 76.43752 | R6: =IF(OFFSET(Data!G9,0,(View!$B$27-1)*12)<>"",OFFSET(Data!G9,0,(View!$B$27-1)*12),IF($N6<>"",#N/A,"")) -> 71.79307 | S6: OK | T6: =IF(OFFSET(Data!I9,0,(View!$B$27-1)*12)<>"",OFFSET(Data!I9,0,(View!$B$27-1)*12),IF($M6<>"",#N/A,"")) -> 76.53889 | U6: =IF(OFFSET(Data!J9,0,(View!$B$27-1)*12)<>"",OFFSET(Data!J9,0,(View!$B$27-1)*12),IF($N6<>"",#N/A,"")) -> 72.1134 | V6: OK
A7: Current average time (sec) | B7: =MAX(OFFSET(Data!E2,0,(View!$B$27-1)*12), 1) -> 1 | K7: =IF(OFFSET(Data!A10,0,(View!$B$27-1)*12)<>"",$B$3 + OFFSET(Data!A10,0,(View!$B$27-1)*12),"") -> 44474.39122 | L7: =IF(OFFSET(Data!B10,0,(View!$B$27-1)*12)<>"",OFFSET(Data!B10,0,(View!$B$27-1)*12),"") -> 6 | M7: =IF(OFFSET(Data!C10,0,(View!$B$27-1)*12)<>"",OFFSET(Data!C10,0,(View!$B$27-1)*12),"") -> 72.6288 | N7: =IF(OFFSET(Data!D10,0,(View!$B$27-1)*12)<>"",OFFSET(Data!D10,0,(View!$B$27-1)*12),"") -> 60.93211 | O7: 1239398.596 | P7: OK | Q7: =IF(OFFSET(Data!F10,0,(View!$B$27-1)*12)<>"",OFFSET(Data!F10,0,(View!$B$27-1)*12),IF($M7<>"",#N/A,"")) -> 75.76523 | R7: =IF(OFFSET(Data!G10,0,(View!$B$27-1)*12)<>"",OFFSET(Data!G10,0,(View!$B$27-1)*12),IF($N7<>"",#N/A,"")) -> 67.88374 | S7: OK | T7: =IF(OFFSET(Data!I10,0,(View!$B$27-1)*12)<>"",OFFSET(Data!I10,0,(View!$B$27-1)*12),IF($M7<>"",#N/A,"")) -> 75.8782 | U7: =IF(OFFSET(Data!J10,0,(View!$B$27-1)*12)<>"",OFFSET(Data!J10,0,(View!$B$27-1)*12),IF($N7<>"",#N/A,"")) -> 68.39329 | V7: OK
A8: LEQ warning limit (dBA) | B8: =OFFSET(Data!F2,0,(View!$B$27-1)*12) -> 105 | K8: =IF(OFFSET(Data!A11,0,(View!$B$27-1)*12)<>"",$B$3 + OFFSET(Data!A11,0,(View!$B$27-1)*12),"") -> 44474.39123 | L8: =IF(OFFSET(Data!B11,0,(View!$B$27-1)*12)<>"",OFFSET(Data!B11,0,(View!$B$27-1)*12),"") -> 7 | M8: =IF(OFFSET(Data!C11,0,(View!$B$27-1)*12)<>"",OFFSET(Data!C11,0,(View!$B$27-1)*12),"") -> 72.10279 | N8: =IF(OFFSET(Data!D11,0,(View!$B$27-1)*12)<>"",OFFSET(Data!D11,0,(View!$B$27-1)*12),"") -> 65.67157 | O8: 3691110.102 | P8: OK | Q8: =IF(OFFSET(Data!F11,0,(View!$B$27-1)*12)<>"",OFFSET(Data!F11,0,(View!$B$27-1)*12),IF($M8<>"",#N/A,"")) -> 75.23964 | R8: =IF(OFFSET(Data!G11,0,(View!$B$27-1)*12)<>"",OFFSET(Data!G11,0,(View!$B$27-1)*12),IF($N8<>"",#N/A,"")) -> 68.82115 | S8: OK | T8: =IF(OFFSET(Data!I11,0,(View!$B$27-1)*12)<>"",OFFSET(Data!I11,0,(View!$B$27-1)*12),IF($M8<>"",#N/A,"")) -> 75.36845 | U8: =IF(OFFSET(Data!J11,0,(View!$B$27-1)*12)<>"",OFFSET(Data!J11,0,(View!$B$27-1)*12),IF($N8<>"",#N/A,"")) -> 69.39536 | V8: OK
K9: =IF(OFFSET(Data!A12,0,(View!$B$27-1)*12)<>"",$B$3 + OFFSET(Data!A12,0,(View!$B$27-1)*12),"") -> 44474.39124 | L9: =IF(OFFSET(Data!B12,0,(View!$B$27-1)*12)<>"",OFFSET(Data!B12,0,(View!$B$27-1)*12),"") -> 8 | M9: =IF(OFFSET(Data!C12,0,(View!$B$27-1)*12)<>"",OFFSET(Data!C12,0,(View!$B$27-1)*12),"") -> 71.53127 | N9: =IF(OFFSET(Data!D12,0,(View!$B$27-1)*12)<>"",OFFSET(Data!D12,0,(View!$B$27-1)*12),"") -> 53.42602 | O9: 220090.8562 | P9: OK | Q9: =IF(OFFSET(Data!F12,0,(View!$B$27-1)*12)<>"",OFFSET(Data!F12,0,(View!$B$27-1)*12),IF($M9<>"",#N/A,"")) -> 74.68188 | R9: =IF(OFFSET(Data!G12,0,(View!$B$27-1)*12)<>"",OFFSET(Data!G12,0,(View!$B$27-1)*12),IF($N9<>"",#N/A,"")) -> 60.77889 | S9: OK | T9: =IF(OFFSET(Data!I12,0,(View!$B$27-1)*12)<>"",OFFSET(Data!I12,0,(View!$B$27-1)*12),IF($M9<>"",#N/A,"")) -> 74.82868 | U9: =IF(OFFSET(Data!J12,0,(View!$B$27-1)*12)<>"",OFFSET(Data!J12,0,(View!$B$27-1)*12),IF($N9<>"",#N/A,"")) -> 63.49833 | V9: OK
A10: Number of measurements | B10: =MAX(COUNTIF(M2:INDEX(M:M,COUNT(M:M)+1), "<>" & "*"),1) -> 104 | K10: =IF(OFFSET(Data!A13,0,(View!$B$27-1)*12)<>"",$B$3 + OFFSET(Data!A13,0,(View!$B$27-1)*12),"") -> 44474.39125 | L10: =IF(OFFSET(Data!B13,0,(View!$B$27-1)*12)<>"",OFFSET(Data!B13,0,(View!$B$27-1)*12),"") -> 9 | M10: =IF(OFFSET(Data!C13,0,(View!$B$27-1)*12)<>"",OFFSET(Data!C13,0,(View!$B$27-1)*12),"") -> 71.06342 | N10: =IF(OFFSET(Data!D13,0,(View!$B$27-1)*12)<>"",OFFSET(Data!D13,0,(View!$B$27-1)*12),"") -> 60.60826 | O10: 1150339.413 | P10: OK | Q10: =IF(OFFSET(Data!F13,0,(View!$B$27-1)*12)<>"",OFFSET(Data!F13,0,(View!$B$27-1)*12),IF($M10<>"",#N/A,"")) -> 74.25948 | R10: =IF(OFFSET(Data!G13,0,(View!$B$27-1)*12)<>"",OFFSET(Data!G13,0,(View!$B$27-1)*12),IF($N10<>"",#N/A,"")) -> 66.87946 | S10: OK | T10: =IF(OFFSET(Data!I13,0,(View!$B$27-1)*12)<>"",OFFSET(Data!I13,0,(View!$B$27-1)*12),IF($M10<>"",#N/A,"")) -> 74.42513 | U10: =IF(OFFSET(Data!J13,0,(View!$B$27-1)*12)<>"",OFFSET(Data!J13,0,(View!$B$27-1)*12),IF($N10<>"",#N/A,"")) -> 67.8692 | V10: OK
K11: =IF(OFFSET(Data!A14,0,(View!$B$27-1)*12)<>"",$B$3 + OFFSET(Data!A14,0,(View!$B$27-1)*12),"") -> 44474.39126 | L11: =IF(OFFSET(Data!B14,0,(View!$B$27-1)*12)<>"",OFFSET(Data!B14,0,(View!$B$27-1)*12),"") -> 10 | M11: =IF(OFFSET(Data!C14,0,(View!$B$27-1)*12)<>"",OFFSET(Data!C14,0,(View!$B$27-1)*12),"") -> 70.79804 | N11: =IF(OFFSET(Data!D14,0,(View!$B$27-1)*12)<>"",OFFSET(Data!D14,0,(View!$B$27-1)*12),"") -> 67.1618 | O11: 5202115.615 | P11: OK | Q11: =IF(OFFSET(Data!F14,0,(View!$B$27-1)*12)<>"",OFFSET(Data!F14,0,(View!$B$27-1)*12),IF($M11<>"",#N/A,"")) -> 73.99586 | R11: =IF(OFFSET(Data!G14,0,(View!$B$27-1)*12)<>"",OFFSET(Data!G14,0,(View!$B$27-1)*12),IF($N11<>"",#N/A,"")) -> 70.39841 | S11: OK | T11: =IF(OFFSET(Data!I14,0,(View!$B$27-1)*12)<>"",OFFSET(Data!I14,0,(View!$B$27-1)*12),IF($M11<>"",#N/A,"")) -> 74.17533 | U11: =IF(OFFSET(Data!J14,0,(View!$B$27-1)*12)<>"",OFFSET(Data!J14,0,(View!$B$27-1)*12),IF($N11<>"",#N/A,"")) -> 70.86982 | V11: OK
A12: Data per frequency weighting | B12: LAEQ | C12: LCEQ | D12: LZEQ | K12: =IF(OFFSET(Data!A15,0,(View!$B$27-1)*12)<>"",$B$3 + OFFSET(Data!A15,0,(View!$B$27-1)*12),"") -> 44474.39127 | L12: =IF(OFFSET(Data!B15,0,(View!$B$27-1)*12)<>"",OFFSET(Data!B15,0,(View!$B$27-1)*12),"") -> 11 | M12: =IF(OFFSET(Data!C15,0,(View!$B$27-1)*12)<>"",OFFSET(Data!C15,0,(View!$B$27-1)*12),"") -> 71.9664 | N12: =IF(OFFSET(Data!D15,0,(View!$B$27-1)*12)<>"",OFFSET(Data!D15,0,(View!$B$27-1)*12),"") -> 77.2282 | O12: 52822627.49 | P12: OK | Q12: =IF(OFFSET(Data!F15,0,(View!$B$27-1)*12)<>"",OFFSET(Data!F15,0,(View!$B$27-1)*12),IF($M12<>"",#N/A,"")) -> 74.6547 | R12: =IF(OFFSET(Data!G15,0,(View!$B$27-1)*12)<>"",OFFSET(Data!G15,0,(View!$B$27-1)*12),IF($N12<>"",#N/A,"")) -> 78.47053 | S12: OK | T12: =IF(OFFSET(Data!I15,0,(View!$B$27-1)*12)<>"",OFFSET(Data!I15,0,(View!$B$27-1)*12),IF($M12<>"",#N/A,"")) -> 74.80489 | U12: =IF(OFFSET(Data!J15,0,(View!$B$27-1)*12)<>"",OFFSET(Data!J15,0,(View!$B$27-1)*12),IF($N12<>"",#N/A,"")) -> 78.51457 | V12: OK
A13: =CONCATENATE("LEQ ", $B$6," min exceeded?") -> LEQ 15 min exceeded? | B13: =IF(ISNA($M$2), "",COUNTIF(rangeLAEQAverage, ">=" & $B$8)) -> 0 | C13: =IF(ISNA($Q$2), "",COUNTIF(rangeLCEQAverage, ">=" & $B$8)) -> 0 | D13: =IF(ISNA($T$2), "",COUNTIF(rangeLZEQAverage, ">=" & $B$8)) -> 0 | K13: =IF(OFFSET(Data!A16,0,(View!$B$27-1)*12)<>"",$B$3 + OFFSET(Data!A16,0,(View!$B$27-1)*12),"") -> 44474.39128 | L13: =IF(OFFSET(Data!B16,0,(View!$B$27-1)*12)<>"",OFFSET(Data!B16,0,(View!$B$27-1)*12),"") -> 12 | M13: =IF(OFFSET(Data!C16,0,(View!$B$27-1)*12)<>"",OFFSET(Data!C16,0,(View!$B$27-1)*12),"") -> 71.9677 | N13: =IF(OFFSET(Data!D16,0,(View!$B$27-1)*12)<>"",OFFSET(Data!D16,0,(View!$B$27-1)*12),"") -> 71.98199 | O13: 15783343.2 | P13: OK | Q13: =IF(OFFSET(Data!F16,0,(View!$B$27-1)*12)<>"",OFFSET(Data!F16,0,(View!$B$27-1)*12),IF($M13<>"",#N/A,"")) -> 74.56085 | R13: =IF(OFFSET(Data!G16,0,(View!$B$27-1)*12)<>"",OFFSET(Data!G16,0,(View!$B$27-1)*12),IF($N13<>"",#N/A,"")) -> 73.36724 | S13: OK | T13: =IF(OFFSET(Data!I16,0,(View!$B$27-1)*12)<>"",OFFSET(Data!I16,0,(View!$B$27-1)*12),IF($M13<>"",#N/A,"")) -> 74.7107 | U13: =IF(OFFSET(Data!J16,0,(View!$B$27-1)*12)<>"",OFFSET(Data!J16,0,(View!$B$27-1)*12),IF($N13<>"",#N/A,"")) -> 73.51202 | V13: OK
A14: Percentage exceeded | B14: =IF(ISNA($M$2), "",B$13/$B$10) -> 0 | C14: =IF(ISNA($Q$2), "",C$13/$B$10) -> 0 | D14: =IF(ISNA($T$2), "",D$13/$B$10) -> 0 | K14: =IF(OFFSET(Data!A17,0,(View!$B$27-1)*12)<>"",$B$3 + OFFSET(Data!A17,0,(View!$B$27-1)*12),"") -> 44474.3913 | L14: =IF(OFFSET(Data!B17,0,(View!$B$27-1)*12)<>"",OFFSET(Data!B17,0,(View!$B$27-1)*12),"") -> 13 | M14: =IF(OFFSET(Data!C17,0,(View!$B$27-1)*12)<>"",OFFSET(Data!C17,0,(View!$B$27-1)*12),"") -> 72.08453 | N14: =IF(OFFSET(Data!D17,0,(View!$B$27-1)*12)<>"",OFFSET(Data!D17,0,(View!$B$27-1)*12),"") -> 73.28532 | O14: 21307475.61 | P14: OK | Q14: =IF(OFFSET(Data!F17,0,(View!$B$27-1)*12)<>"",OFFSET(Data!F17,0,(View!$B$27-1)*12),IF($M14<>"",#N/A,"")) -> 74.61977 | R14: =IF(OFFSET(Data!G17,0,(View!$B$27-1)*12)<>"",OFFSET(Data!G17,0,(View!$B$27-1)*12),IF($N14<>"",#N/A,"")) -> 75.27078 | S14: OK | T14: =IF(OFFSET(Data!I17,0,(View!$B$27-1)*12)<>"",OFFSET(Data!I17,0,(View!$B$27-1)*12),IF($M14<>"",#N/A,"")) -> 74.76772 | U14: =IF(OFFSET(Data!J17,0,(View!$B$27-1)*12)<>"",OFFSET(Data!J17,0,(View!$B$27-1)*12),IF($N14<>"",#N/A,"")) -> 75.39931 | V14: OK
A15: Total time exceeded | B15: =IF(ISNA($M$2), "",B$13*$B$7/(24*60*60)) -> 00:00:00 | C15: =IF(ISNA($Q$2), "",C$13*$B$7/(24*60*60)) -> 00:00:00 | D15: =IF(ISNA($T$2), "",D$13*$B$7/(24*60*60)) -> 00:00:00 | K15: =IF(OFFSET(Data!A18,0,(View!$B$27-1)*12)<>"",$B$3 + OFFSET(Data!A18,0,(View!$B$27-1)*12),"") -> 44474.39131 | L15: =IF(OFFSET(Data!B18,0,(View!$B$27-1)*12)<>"",OFFSET(Data!B18,0,(View!$B$27-1)*12),"") -> 14 | M15: =IF(OFFSET(Data!C18,0,(View!$B$27-1)*12)<>"",OFFSET(Data!C18,0,(View!$B$27-1)*12),"") -> 72.42997 | N15: =IF(OFFSET(Data!D18,0,(View!$B$27-1)*12)<>"",OFFSET(Data!D18,0,(View!$B$27-1)*12),"") -> 75.42719 | O15: 34891448.55 | P15: OK | Q15: =IF(OFFSET(Data!F18,0,(View!$B$27-1)*12)<>"",OFFSET(Data!F18,0,(View!$B$27-1)*12),IF($M15<>"",#N/A,"")) -> 74.83881 | R15: =IF(OFFSET(Data!G18,0,(View!$B$27-1)*12)<>"",OFFSET(Data!G18,0,(View!$B$27-1)*12),IF($N15<>"",#N/A,"")) -> 76.98568 | S15: OK | T15: =IF(OFFSET(Data!I18,0,(View!$B$27-1)*12)<>"",OFFSET(Data!I18,0,(View!$B$27-1)*12),IF($M15<>"",#N/A,"")) -> 74.98476 | U15: =IF(OFFSET(Data!J18,0,(View!$B$27-1)*12)<>"",OFFSET(Data!J18,0,(View!$B$27-1)*12),IF($N15<>"",#N/A,"")) -> 77.11644 | V15: OK
A16: =CONCATENATE("Maximum Level LEQ ", $B$6," min") -> Maximum Level LEQ 15 min | B16: =IF(ISNA($M$2), "",MAX(rangeLAEQAverage)) -> 75.56039 | C16: =IF(ISNA($Q$2), "",MAX(rangeLCEQAverage)) -> 77.22236 | D16: =IF(ISNA($T$2), "",MAX(rangeLZEQAverage)) -> 77.78914 | K16: =IF(OFFSET(Data!A19,0,(View!$B$27-1)*12)<>"",$B$3 + OFFSET(Data!A19,0,(View!$B$27-1)*12),"") -> 44474.39132 | L16: =IF(OFFSET(Data!B19,0,(View!$B$27-1)*12)<>"",OFFSET(Data!B19,0,(View!$B$27-1)*12),"") -> 15 | M16: =IF(OFFSET(Data!C19,0,(View!$B$27-1)*12)<>"",OFFSET(Data!C19,0,(View!$B$27-1)*12),"") -> 72.34004 | N16: =IF(OFFSET(Data!D19,0,(View!$B$27-1)*12)<>"",OFFSET(Data!D19,0,(View!$B$27-1)*12),"") -> 70.83477 | O16: 12119285.04 | P16: OK | Q16: =IF(OFFSET(Data!F19,0,(View!$B$27-1)*12)<>"",OFFSET(Data!F19,0,(View!$B$27-1)*12),IF($M16<>"",#N/A,"")) -> 74.75501 | R16: =IF(OFFSET(Data!G19,0,(View!$B$27-1)*12)<>"",OFFSET(Data!G19,0,(View!$B$27-1)*12),IF($N16<>"",#N/A,"")) -> 73.37167 | S16: OK | T16: =IF(OFFSET(Data!I19,0,(View!$B$27-1)*12)<>"",OFFSET(Data!I19,0,(View!$B$27-1)*12),IF($M16<>"",#N/A,"")) -> 74.90314 | U16: =IF(OFFSET(Data!J19,0,(View!$B$27-1)*12)<>"",OFFSET(Data!J19,0,(View!$B$27-1)*12),IF($N16<>"",#N/A,"")) -> 73.56263 | V16: OK
A17: =CONCATENATE("Maximum Level LEQ ",$B$7," sec") -> Maximum Level LEQ 1 sec | B17: =IF(ISNA($M$2), "",MAX(rangeLAEQCurrent)) -> 80.92228 | C17: =IF(ISNA($Q$2), "",MAX(rangeLCEQCurrent)) -> 83.22824 | D17: =IF(ISNA($T$2), "",MAX(rangeLZEQCurrent)) -> 83.58607 | K17: =IF(OFFSET(Data!A20,0,(View!$B$27-1)*12)<>"",$B$3 + OFFSET(Data!A20,0,(View!$B$27-1)*12),"") -> 44474.39133 | L17: =IF(OFFSET(Data!B20,0,(View!$B$27-1)*12)<>"",OFFSET(Data!B20,0,(View!$B$27-1)*12),"") -> 16 | M17: =IF(OFFSET(Data!C20,0,(View!$B$27-1)*12)<>"",OFFSET(Data!C20,0,(View!$B$27-1)*12),"") -> 72.23696 | N17: =IF(OFFSET(Data!D20,0,(View!$B$27-1)*12)<>"",OFFSET(Data!D20,0,(View!$B$27-1)*12),"") -> 70.29678 | O17: 10707251.41 | P17: OK | Q17: =IF(OFFSET(Data!F20,0,(View!$B$27-1)*12)<>"",OFFSET(Data!F20,0,(View!$B$27-1)*12),IF($M17<>"",#N/A,"")) -> 74.67125 | R17: =IF(OFFSET(Data!G20,0,(View!$B$27-1)*12)<>"",OFFSET(Data!G20,0,(View!$B$27-1)*12),IF($N17<>"",#N/A,"")) -> 73.17091 | S17: OK | T17: =IF(OFFSET(Data!I20,0,(View!$B$27-1)*12)<>"",OFFSET(Data!I20,0,(View!$B$27-1)*12),IF($M17<>"",#N/A,"")) -> 74.82063 | U17: =IF(OFFSET(Data!J20,0,(View!$B$27-1)*12)<>"",OFFSET(Data!J20,0,(View!$B$27-1)*12),IF($N17<>"",#N/A,"")) -> 73.34731 | V17: OK
K18: =IF(OFFSET(Data!A21,0,(View!$B$27-1)*12)<>"",$B$3 + OFFSET(Data!A21,0,(View!$B$27-1)*12),"") -> 44474.39134 | L18: =IF(OFFSET(Data!B21,0,(View!$B$27-1)*12)<>"",OFFSET(Data!B21,0,(View!$B$27-1)*12),"") -> 17 | M18: =IF(OFFSET(Data!C21,0,(View!$B$27-1)*12)<>"",OFFSET(Data!C21,0,(View!$B$27-1)*12),"") -> 72.11271 | N18: =IF(OFFSET(Data!D21,0,(View!$B$27-1)*12)<>"",OFFSET(Data!D21,0,(View!$B$27-1)*12),"") -> 69.40143 | O18: 8712504.191 | P18: OK | Q18: =IF(OFFSET(Data!F21,0,(View!$B$27-1)*12)<>"",OFFSET(Data!F21,0,(View!$B$27-1)*12),IF($M18<>"",#N/A,"")) -> 74.58734 | R18: =IF(OFFSET(Data!G21,0,(View!$B$27-1)*12)<>"",OFFSET(Data!G21,0,(View!$B$27-1)*12),IF($N18<>"",#N/A,"")) -> 72.96236 | S18: OK | T18: =IF(OFFSET(Data!I21,0,(View!$B$27-1)*12)<>"",OFFSET(Data!I21,0,(View!$B$27-1)*12),IF($M18<>"",#N/A,"")) -> 74.74014 | U18: =IF(OFFSET(Data!J21,0,(View!$B$27-1)*12)<>"",OFFSET(Data!J21,0,(View!$B$27-1)*12),IF($N18<>"",#N/A,"")) -> 73.19528 | V18: OK
K19: =IF(OFFSET(Data!A22,0,(View!$B$27-1)*12)<>"",$B$3 + OFFSET(Data!A22,0,(View!$B$27-1)*12),"") -> 44474.39135 | L19: =IF(OFFSET(Data!B22,0,(View!$B$27-1)*12)<>"",OFFSET(Data!B22,0,(View!$B$27-1)*12),"") -> 18 | M19: =IF(OFFSET(Data!C22,0,(View!$B$27-1)*12)<>"",OFFSET(Data!C22,0,(View!$B$27-1)*12),"") -> 71.89266 | N19: =IF(OFFSET(Data!D22,0,(View!$B$27-1)*12)<>"",OFFSET(Data!D22,0,(View!$B$27-1)*12),"") -> 62.55403 | O19: 1800540.937 | P19: OK | Q19: =IF(OFFSET(Data!F22,0,(View!$B$27-1)*12)<>"",OFFSET(Data!F22,0,(View!$B$27-1)*12),IF($M19<>"",#N/A,"")) -> 74.41732 | R19: =IF(OFFSET(Data!G22,0,(View!$B$27-1)*12)<>"",OFFSET(Data!G22,0,(View!$B$27-1)*12),IF($N19<>"",#N/A,"")) -> 69.48587 | S19: OK | T19: =IF(OFFSET(Data!I22,0,(View!$B$27-1)*12)<>"",OFFSET(Data!I22,0,(View!$B$27-1)*12),IF($M19<>"",#N/A,"")) -> 74.57517 | U19: =IF(OFFSET(Data!J22,0,(View!$B$27-1)*12)<>"",OFFSET(Data!J22,0,(View!$B$27-1)*12),IF($N19<>"",#N/A,"")) -> 69.91344 | V19: OK
K20: =IF(OFFSET(Data!A23,0,(View!$B$27-1)*12)<>"",$B$3 + OFFSET(Data!A23,0,(View!$B$27-1)*12),"") -> 44474.39137 | L20: =IF(OFFSET(Data!B23,0,(View!$B$27-1)*12)<>"",OFFSET(Data!B23,0,(View!$B$27-1)*12),"") -> 19 | M20: =IF(OFFSET(Data!C23,0,(View!$B$27-1)*12)<>"",OFFSET(Data!C23,0,(View!$B$27-1)*12),"") -> 71.85987 | N20: =IF(OFFSET(Data!D23,0,(View!$B$27-1)*12)<>"",OFFSET(Data!D23,0,(View!$B$27-1)*12),"") -> 71.22285 | O20: 13252109.02 | P20: OK | Q20: =IF(OFFSET(Data!F23,0,(View!$B$27-1)*12)<>"",OFFSET(Data!F23,0,(View!$B$27-1)*12),IF($M20<>"",#N/A,"")) -> 74.40943 | R20: =IF(OFFSET(Data!G23,0,(View!$B$27-1)*12)<>"",OFFSET(Data!G23,0,(View!$B$27-1)*12),IF($N20<>"",#N/A,"")) -> 74.26504 | S20: OK | T20: =IF(OFFSET(Data!I23,0,(View!$B$27-1)*12)<>"",OFFSET(Data!I23,0,(View!$B$27-1)*12),IF($M20<>"",#N/A,"")) -> 74.56454 | U20: =IF(OFFSET(Data!J23,0,(View!$B$27-1)*12)<>"",OFFSET(Data!J23,0,(View!$B$27-1)*12),IF($N20<>"",#N/A,"")) -> 74.3687 | V20: OK
K21: =IF(OFFSET(Data!A24,0,(View!$B$27-1)*12)<>"",$B$3 + OFFSET(Data!A24,0,(View!$B$27-1)*12),"") -> 44474.39138 | L21: =IF(OFFSET(Data!B24,0,(View!$B$27-1)*12)<>"",OFFSET(Data!B24,0,(View!$B$27-1)*12),"") -> 20 | M21: =IF(OFFSET(Data!C24,0,(View!$B$27-1)*12)<>"",OFFSET(Data!C24,0,(View!$B$27-1)*12),"") -> 72.12934 | N21: =IF(OFFSET(Data!D24,0,(View!$B$27-1)*12)<>"",OFFSET(Data!D24,0,(View!$B$27-1)*12),"") -> 75.43973 | O21: 34992341.17 | P21: OK | Q21: =IF(OFFSET(Data!F24,0,(View!$B$27-1)*12)<>"",OFFSET(Data!F24,0,(View!$B$27-1)*12),IF($M21<>"",#N/A,"")) -> 74.68809 | R21: =IF(OFFSET(Data!G24,0,(View!$B$27-1)*12)<>"",OFFSET(Data!G24,0,(View!$B$27-1)*12),IF($N21<>"",#N/A,"")) -> 78.07423 | S21: OK | T21: =IF(OFFSET(Data!I24,0,(View!$B$27-1)*12)<>"",OFFSET(Data!I24,0,(View!$B$27-1)*12),IF($M21<>"",#N/A,"")) -> 74.83325 | U21: =IF(OFFSET(Data!J24,0,(View!$B$27-1)*12)<>"",OFFSET(Data!J24,0,(View!$B$27-1)*12),IF($N21<>"",#N/A,"")) -> 78.13721 | V21: OK
K22: =IF(OFFSET(Data!A25,0,(View!$B$27-1)*12)<>"",$B$3 + OFFSET(Data!A25,0,(View!$B$27-1)*12),"") -> 44474.39139 | L22: =IF(OFFSET(Data!B25,0,(View!$B$27-1)*12)<>"",OFFSET(Data!B25,0,(View!$B$27-1)*12),"") -> 21 | M22: =IF(OFFSET(Data!C25,0,(View!$B$27-1)*12)<>"",OFFSET(Data!C25,0,(View!$B$27-1)*12),"") -> 72.14074 | N22: =IF(OFFSET(Data!D25,0,(View!$B$27-1)*12)<>"",OFFSET(Data!D25,0,(View!$B$27-1)*12),"") -> 72.36265 | O22: 17229195.54 | P22: OK | Q22: =IF(OFFSET(Data!F25,0,(View!$B$27-1)*12)<>"",OFFSET(Data!F25,0,(View!$B$27-1)*12),IF($M22<>"",#N/A,"")) -> 74.69944 | R22: =IF(OFFSET(Data!G25,0,(View!$B$27-1)*12)<>"",OFFSET(Data!G25,0,(View!$B$27-1)*12),IF($N22<>"",#N/A,"")) -> 74.92056 | S22: OK | T22: =IF(OFFSET(Data!I25,0,(View!$B$27-1)*12)<>"",OFFSET(Data!I25,0,(View!$B$27-1)*12),IF($M22<>"",#N/A,"")) -> 74.8507 | U22: =IF(OFFSET(Data!J25,0,(View!$B$27-1)*12)<>"",OFFSET(Data!J25,0,(View!$B$27-1)*12),IF($N22<>"",#N/A,"")) -> 75.18571 | V22: OK
K23: =IF(OFFSET(Data!A26,0,(View!$B$27-1)*12)<>"",$B$3 + OFFSET(Data!A26,0,(View!$B$27-1)*12),"") -> 44474.3914 | L23: =IF(OFFSET(Data!B26,0,(View!$B$27-1)*12)<>"",OFFSET(Data!B26,0,(View!$B$27-1)*12),"") -> 22 | M23: =IF(OFFSET(Data!C26,0,(View!$B$27-1)*12)<>"",OFFSET(Data!C26,0,(View!$B$27-1)*12),"") -> 71.95277 | N23: =IF(OFFSET(Data!D26,0,(View!$B$27-1)*12)<>"",OFFSET(Data!D26,0,(View!$B$27-1)*12),"") -> 60.47306 | O23: 1115079.932 | P23: OK | Q23: =IF(OFFSET(Data!F26,0,(View!$B$27-1)*12)<>"",OFFSET(Data!F26,0,(View!$B$27-1)*12),IF($M23<>"",#N/A,"")) -> 74.52304 | R23: =IF(OFFSET(Data!G26,0,(View!$B$27-1)*12)<>"",OFFSET(Data!G26,0,(View!$B$27-1)*12),IF($N23<>"",#N/A,"")) -> 65.64407 | S23: OK | T23: =IF(OFFSET(Data!I26,0,(View!$B$27-1)*12)<>"",OFFSET(Data!I26,0,(View!$B$27-1)*12),IF($M23<>"",#N/A,"")) -> 74.68184 | U23: =IF(OFFSET(Data!J26,0,(View!$B$27-1)*12)<>"",OFFSET(Data!J26,0,(View!$B$27-1)*12),IF($N23<>"",#N/A,"")) -> 66.91947 | V23: OK
K24: =IF(OFFSET(Data!A27,0,(View!$B$27-1)*12)<>"",$B$3 + OFFSET(Data!A27,0,(View!$B$27-1)*12),"") -> 44474.39141 | L24: =IF(OFFSET(Data!B27,0,(View!$B$27-1)*12)<>"",OFFSET(Data!B27,0,(View!$B$27-1)*12),"") -> 23 | M24: =IF(OFFSET(Data!C27,0,(View!$B$27-1)*12)<>"",OFFSET(Data!C27,0,(View!$B$27-1)*12),"") -> 72.42249 | N24: =IF(OFFSET(Data!D27,0,(View!$B$27-1)*12)<>"",OFFSET(Data!D27,0,(View!$B$27-1)*12),"") -> 77.54843 | O24: 56864732.43 | P24: OK | Q24: =IF(OFFSET(Data!F27,0,(View!$B$27-1)*12)<>"",OFFSET(Data!F27,0,(View!$B$27-1)*12),IF($M24<>"",#N/A,"")) -> 74.95943 | R24: =IF(OFFSET(Data!G27,0,(View!$B$27-1)*12)<>"",OFFSET(Data!G27,0,(View!$B$27-1)*12),IF($N24<>"",#N/A,"")) -> 79.87749 | S24: OK | T24: =IF(OFFSET(Data!I27,0,(View!$B$27-1)*12)<>"",OFFSET(Data!I27,0,(View!$B$27-1)*12),IF($M24<>"",#N/A,"")) -> 75.09969 | U24: =IF(OFFSET(Data!J27,0,(View!$B$27-1)*12)<>"",OFFSET(Data!J27,0,(View!$B$27-1)*12),IF($N24<>"",#N/A,"")) -> 79.897 | V24: OK
K25: =IF(OFFSET(Data!A28,0,(View!$B$27-1)*12)<>"",$B$3 + OFFSET(Data!A28,0,(View!$B$27-1)*12),"") -> 44474.39142 | L25: =IF(OFFSET(Data!B28,0,(View!$B$27-1)*12)<>"",OFFSET(Data!B28,0,(View!$B$27-1)*12),"") -> 24 | M25: =IF(OFFSET(Data!C28,0,(View!$B$27-1)*12)<>"",OFFSET(Data!C28,0,(View!$B$27-1)*12),"") -> 72.53629 | N25: =IF(OFFSET(Data!D28,0,(View!$B$27-1)*12)<>"",OFFSET(Data!D28,0,(View!$B$27-1)*12),"") -> 74.56343 | O25: 28598483.22 | P25: OK | Q25: =IF(OFFSET(Data!F28,0,(View!$B$27-1)*12)<>"",OFFSET(Data!F28,0,(View!$B$27-1)*12),IF($M25<>"",#N/A,"")) -> 75.05077 | R25: =IF(OFFSET(Data!G28,0,(View!$B$27-1)*12)<>"",OFFSET(Data!G28,0,(View!$B$27-1)*12),IF($N25<>"",#N/A,"")) -> 76.74966 | S25: OK | T25: =IF(OFFSET(Data!I28,0,(View!$B$27-1)*12)<>"",OFFSET(Data!I28,0,(View!$B$27-1)*12),IF($M25<>"",#N/A,"")) -> 75.18694 | U25: =IF(OFFSET(Data!J28,0,(View!$B$27-1)*12)<>"",OFFSET(Data!J28,0,(View!$B$27-1)*12),IF($N25<>"",#N/A,"")) -> 76.82299 | V25: OK
A26: Filename | B26: =OFFSET(Data!A1,0,(View!$B$27-1)*12) -> MEAS0002 | F26: Measurement range | G26: Warning limit | K26: =IF(OFFSET(Data!A29,0,(View!$B$27-1)*12)<>"",$B$3 + OFFSET(Data!A29,0,(View!$B$27-1)*12),"") -> 44474.39144 | L26: =IF(OFFSET(Data!B29,0,(View!$B$27-1)*12)<>"",OFFSET(Data!B29,0,(View!$B$27-1)*12),"") -> 25 | M26: =IF(OFFSET(Data!C29,0,(View!$B$27-1)*12)<>"",OFFSET(Data!C29,0,(View!$B$27-1)*12),"") -> 72.4321 | N26: =IF(OFFSET(Data!D29,0,(View!$B$27-1)*12)<>"",OFFSET(Data!D29,0,(View!$B$27-1)*12),"") -> 68.63614 | O26: 7304895.373 | P26: OK | Q26: =IF(OFFSET(Data!F29,0,(View!$B$27-1)*12)<>"",OFFSET(Data!F29,0,(View!$B$27-1)*12),IF($M26<>"",#N/A,"")) -> 74.9588 | R26: =IF(OFFSET(Data!G29,0,(View!$B$27-1)*12)<>"",OFFSET(Data!G29,0,(View!$B$27-1)*12),IF($N26<>"",#N/A,"")) -> 71.82771 | S26: OK | T26: =IF(OFFSET(Data!I29,0,(View!$B$27-1)*12)<>"",OFFSET(Data!I29,0,(View!$B$27-1)*12),IF($M26<>"",#N/A,"")) -> 75.0968 | U26: =IF(OFFSET(Data!J29,0,(View!$B$27-1)*12)<>"",OFFSET(Data!J29,0,(View!$B$27-1)*12),IF($N26<>"",#N/A,"")) -> 72.05736 | V26: OK
A27: Index | B27: 2 | F27: =$K$2 -> 44474.39116 | G27: =$B$8 -> 105 | K27: =IF(OFFSET(Data!A30,0,(View!$B$27-1)*12)<>"",$B$3 + OFFSET(Data!A30,0,(View!$B$27-1)*12),"") -> 44474.39145 | L27: =IF(OFFSET(Data!B30,0,(View!$B$27-1)*12)<>"",OFFSET(Data!B30,0,(View!$B$27-1)*12),"") -> 26 | M27: =IF(OFFSET(Data!C30,0,(View!$B$27-1)*12)<>"",OFFSET(Data!C30,0,(View!$B$27-1)*12),"") -> 72.33162 | N27: =IF(OFFSET(Data!D30,0,(View!$B$27-1)*12)<>"",OFFSET(Data!D30,0,(View!$B$27-1)*12),"") -> 68.51025 | O27: 7096186.157 | P27: OK | Q27: =IF(OFFSET(Data!F30,0,(View!$B$27-1)*12)<>"",OFFSET(Data!F30,0,(View!$B$27-1)*12),IF($M27<>"",#N/A,"")) -> 74.87257 | R27: =IF(OFFSET(Data!G30,0,(View!$B$27-1)*12)<>"",OFFSET(Data!G30,0,(View!$B$27-1)*12),IF($N27<>"",#N/A,"")) -> 71.85081 | S27: OK | T27: =IF(OFFSET(Data!I30,0,(View!$B$27-1)*12)<>"",OFFSET(Data!I30,0,(View!$B$27-1)*12),IF($M27<>"",#N/A,"")) -> 75.01372 | U27: =IF(OFFSET(Data!J30,0,(View!$B$27-1)*12)<>"",OFFSET(Data!J30,0,(View!$B$27-1)*12),IF($N27<>"",#N/A,"")) -> 72.14953 | V27: OK
K28: =IF(OFFSET(Data!A31,0,(View!$B$27-1)*12)<>"",$B$3 + OFFSET(Data!A31,0,(View!$B$27-1)*12),"") -> 44474.39146 | L28: =IF(OFFSET(Data!B31,0,(View!$B$27-1)*12)<>"",OFFSET(Data!B31,0,(View!$B$27-1)*12),"") -> 27 | M28: =IF(OFFSET(Data!C31,0,(View!$B$27-1)*12)<>"",OFFSET(Data!C31,0,(View!$B$27-1)*12),"") -> 72.18001 | N28: =IF(OFFSET(Data!D31,0,(View!$B$27-1)*12)<>"",OFFSET(Data!D31,0,(View!$B$27-1)*12),"") -> 61.00662 | O28: 1260845.869 | P28: OK | Q28: =IF(OFFSET(Data!F31,0,(View!$B$27-1)*12)<>"",OFFSET(Data!F31,0,(View!$B$27-1)*12),IF($M28<>"",#N/A,"")) -> 74.74703 | R28: =IF(OFFSET(Data!G31,0,(View!$B$27-1)*12)<>"",OFFSET(Data!G31,0,(View!$B$27-1)*12),IF($N28<>"",#N/A,"")) -> 68.50307 | S28: OK | T28: =IF(OFFSET(Data!I31,0,(View!$B$27-1)*12)<>"",OFFSET(Data!I31,0,(View!$B$27-1)*12),IF($M28<>"",#N/A,"")) -> 74.8927 | U28: =IF(OFFSET(Data!J31,0,(View!$B$27-1)*12)<>"",OFFSET(Data!J31,0,(View!$B$27-1)*12),IF($N28<>"",#N/A,"")) -> 69.13033 | V28: OK
K29: =IF(OFFSET(Data!A32,0,(View!$B$27-1)*12)<>"",$B$3 + OFFSET(Data!A32,0,(View!$B$27-1)*12),"") -> 44474.39147 | L29: =IF(OFFSET(Data!B32,0,(View!$B$27-1)*12)<>"",OFFSET(Data!B32,0,(View!$B$27-1)*12),"") -> 28 | M29: =IF(OFFSET(Data!C32,0,(View!$B$27-1)*12)<>"",OFFSET(Data!C32,0,(View!$B$27-1)*12),"") -> 72.06643 | N29: =IF(OFFSET(Data!D32,0,(View!$B$27-1)*12)<>"",OFFSET(Data!D32,0,(View!$B$27-1)*12),"") -> 66.60867 | O29: 4580016.051 | P29: OK | Q29: =IF(OFFSET(Data!F32,0,(View!$B$27-1)*12)<>"",OFFSET(Data!F32,0,(View!$B$27-1)*12),IF($M29<>"",#N/A,"")) -> 74.66647 | R29: =IF(OFFSET(Data!G32,0,(View!$B$27-1)*12)<>"",OFFSET(Data!G32,0,(View!$B$27-1)*12),IF($N29<>"",#N/A,"")) -> 71.60758 | S29: OK | T29: =IF(OFFSET(Data!I32,0,(View!$B$27-1)*12)<>"",OFFSET(Data!I32,0,(View!$B$27-1)*12),IF($M29<>"",#N/A,"")) -> 74.81297 | U29: =IF(OFFSET(Data!J32,0,(View!$B$27-1)*12)<>"",OFFSET(Data!J32,0,(View!$B$27-1)*12),IF($N29<>"",#N/A,"")) -> 71.80012 | V29: OK
K30: =IF(OFFSET(Data!A33,0,(View!$B$27-1)*12)<>"",$B$3 + OFFSET(Data!A33,0,(View!$B$27-1)*12),"") -> 44474.39148 | L30: =IF(OFFSET(Data!B33,0,(View!$B$27-1)*12)<>"",OFFSET(Data!B33,0,(View!$B$27-1)*12),"") -> 29 | M30: =IF(OFFSET(Data!C33,0,(View!$B$27-1)*12)<>"",OFFSET(Data!C33,0,(View!$B$27-1)*12),"") -> 72.05369 | N30: =IF(OFFSET(Data!D33,0,(View!$B$27-1)*12)<>"",OFFSET(Data!D33,0,(View!$B$27-1)*12),"") -> 71.68087 | O30: 14726074.73 | P30: OK | Q30: =IF(OFFSET(Data!F33,0,(View!$B$27-1)*12)<>"",OFFSET(Data!F33,0,(View!$B$27-1)*12),IF($M30<>"",#N/A,"")) -> 74.65689 | R30: =IF(OFFSET(Data!G33,0,(View!$B$27-1)*12)<>"",OFFSET(Data!G33,0,(View!$B$27-1)*12),IF($N30<>"",#N/A,"")) -> 74.37981 | S30: OK | T30: =IF(OFFSET(Data!I33,0,(View!$B$27-1)*12)<>"",OFFSET(Data!I33,0,(View!$B$27-1)*12),IF($M30<>"",#N/A,"")) -> 74.80439 | U30: =IF(OFFSET(Data!J33,0,(View!$B$27-1)*12)<>"",OFFSET(Data!J33,0,(View!$B$27-1)*12),IF($N30<>"",#N/A,"")) -> 74.55717 | V30: OK
K31: =IF(OFFSET(Data!A34,0,(View!$B$27-1)*12)<>"",$B$3 + OFFSET(Data!A34,0,(View!$B$27-1)*12),"") -> 44474.39149 | L31: =IF(OFFSET(Data!B34,0,(View!$B$27-1)*12)<>"",OFFSET(Data!B34,0,(View!$B$27-1)*12),"") -> 30 | M31: =IF(OFFSET(Data!C34,0,(View!$B$27-1)*12)<>"",OFFSET(Data!C34,0,(View!$B$27-1)*12),"") -> 71.95751 | N31: =IF(OFFSET(Data!D34,0,(View!$B$27-1)*12)<>"",OFFSET(Data!D34,0,(View!$B$27-1)*12),"") -> 67.40591 | O31: 5502892.134 | P31: OK | Q31: =IF(OFFSET(Data!F34,0,(View!$B$27-1)*12)<>"",OFFSET(Data!F34,0,(View!$B$27-1)*12),IF($M31<>"",#N/A,"")) -> 74.59742 | R31: =IF(OFFSET(Data!G34,0,(View!$B$27-1)*12)<>"",OFFSET(Data!G34,0,(View!$B$27-1)*12),IF($N31<>"",#N/A,"")) -> 72.37991 | S31: OK | T31: =IF(OFFSET(Data!I34,0,(View!$B$27-1)*12)<>"",OFFSET(Data!I34,0,(View!$B$27-1)*12),IF($M31<>"",#N/A,"")) -> 74.78278 | U31: =IF(OFFSET(Data!J34,0,(View!$B$27-1)*12)<>"",OFFSET(Data!J34,0,(View!$B$27-1)*12),IF($N31<>"",#N/A,"")) -> 74.10423 | V31: OK
K32: =IF(OFFSET(Data!A35,0,(View!$B$27-1)*12)<>"",$B$3 + OFFSET(Data!A35,0,(View!$B$27-1)*12),"") -> 44474.3915 | L32: =IF(OFFSET(Data!B35,0,(View!$B$27-1)*12)<>"",OFFSET(Data!B35,0,(View!$B$27-1)*12),"") -> 31 | M32: =IF(OFFSET(Data!C35,0,(View!$B$27-1)*12)<>"",OFFSET(Data!C35,0,(View!$B$27-1)*12),"") -> 71.93973 | N32: =IF(OFFSET(Data!D35,0,(View!$B$27-1)*12)<>"",OFFSET(Data!D35,0,(View!$B$27-1)*12),"") -> 71.36913 | O32: 13706071.72 | P32: OK | Q32: =IF(OFFSET(Data!F35,0,(View!$B$27-1)*12)<>"",OFFSET(Data!F35,0,(View!$B$27-1)*12),IF($M32<>"",#N/A,"")) -> 74.60256 | R32: =IF(OFFSET(Data!G35,0,(View!$B$27-1)*12)<>"",OFFSET(Data!G35,0,(View!$B$27-1)*12),IF($N32<>"",#N/A,"")) -> 74.75414 | S32: OK | T32: =IF(OFFSET(Data!I35,0,(View!$B$27-1)*12)<>"",OFFSET(Data!I35,0,(View!$B$27-1)*12),IF($M32<>"",#N/A,"")) -> 74.78796 | U32: =IF(OFFSET(Data!J35,0,(View!$B$27-1)*12)<>"",OFFSET(Data!J35,0,(View!$B$27-1)*12),IF($N32<>"",#N/A,"")) -> 74.94026 | V32: OK
K33: =IF(OFFSET(Data!A36,0,(View!$B$27-1)*12)<>"",$B$3 + OFFSET(Data!A36,0,(View!$B$27-1)*12),"") -> 44474.39152 | L33: =IF(OFFSET(Data!B36,0,(View!$B$27-1)*12)<>"",OFFSET(Data!B36,0,(View!$B$27-1)*12),"") -> 32 | M33: =IF(OFFSET(Data!C36,0,(View!$B$27-1)*12)<>"",OFFSET(Data!C36,0,(View!$B$27-1)*12),"") -> 71.86846 | N33: =IF(OFFSET(Data!D36,0,(View!$B$27-1)*12)<>"",OFFSET(Data!D36,0,(View!$B$27-1)*12),"") -> 68.74454 | O33: 7489520.261 | P33: OK | Q33: =IF(OFFSET(Data!F36,0,(View!$B$27-1)*12)<>"",OFFSET(Data!F36,0,(View!$B$27-1)*12),IF($M33<>"",#N/A,"")) -> 74.5369 | R33: =IF(OFFSET(Data!G36,0,(View!$B$27-1)*12)<>"",OFFSET(Data!G36,0,(View!$B$27-1)*12),IF($N33<>"",#N/A,"")) -> 71.76102 | S33: OK | T33: =IF(OFFSET(Data!I36,0,(View!$B$27-1)*12)<>"",OFFSET(Data!I36,0,(View!$B$27-1)*12),IF($M33<>"",#N/A,"")) -> 74.72257 | U33: =IF(OFFSET(Data!J36,0,(View!$B$27-1)*12)<>"",OFFSET(Data!J36,0,(View!$B$27-1)*12),IF($N33<>"",#N/A,"")) -> 71.96342 | V33: OK
K34: =IF(OFFSET(Data!A37,0,(View!$B$27-1)*12)<>"",$B$3 + OFFSET(Data!A37,0,(View!$B$27-1)*12),"") -> 44474.39153 | L34: =IF(OFFSET(Data!B37,0,(View!$B$27-1)*12)<>"",OFFSET(Data!B37,0,(View!$B$27-1)*12),"") -> 33 | M34: =IF(OFFSET(Data!C37,0,(View!$B$27-1)*12)<>"",OFFSET(Data!C37,0,(View!$B$27-1)*12),"") -> 72.14606 | N34: =IF(OFFSET(Data!D37,0,(View!$B$27-1)*12)<>"",OFFSET(Data!D37,0,(View!$B$27-1)*12),"") -> 76.8903 | O34: 48868611.54 | P34: OK | Q34: =IF(OFFSET(Data!F37,0,(View!$B$27-1)*12)<>"",OFFSET(Data!F37,0,(View!$B$27-1)*12),IF($M34<>"",#N/A,"")) -> 74.81372 | R34: =IF(OFFSET(Data!G37,0,(View!$B$27-1)*12)<>"",OFFSET(Data!G37,0,(View!$B$27-1)*12),IF($N34<>"",#N/A,"")) -> 79.55013 | S34: OK | T34: =IF(OFFSET(Data!I37,0,(View!$B$27-1)*12)<>"",OFFSET(Data!I37,0,(View!$B$27-1)*12),IF($M34<>"",#N/A,"")) -> 74.98876 | U34: =IF(OFFSET(Data!J37,0,(View!$B$27-1)*12)<>"",OFFSET(Data!J37,0,(View!$B$27-1)*12),IF($N34<>"",#N/A,"")) -> 79.61642 | V34: OK
K35: =IF(OFFSET(Data!A38,0,(View!$B$27-1)*12)<>"",$B$3 + OFFSET(Data!A38,0,(View!$B$27-1)*12),"") -> 44474.39154 | L35: =IF(OFFSET(Data!B38,0,(View!$B$27-1)*12)<>"",OFFSET(Data!B38,0,(View!$B$27-1)*12),"") -> 34 | M35: =IF(OFFSET(Data!C38,0,(View!$B$27-1)*12)<>"",OFFSET(Data!C38,0,(View!$B$27-1)*12),"") -> 72.46514 | N35: =IF(OFFSET(Data!D38,0,(View!$B$27-1)*12)<>"",OFFSET(Data!D38,0,(View!$B$27-1)*12),"") -> 77.69953 | O35: 58877993.33 | P35: OK | Q35: =IF(OFFSET(Data!F38,0,(View!$B$27-1)*12)<>"",OFFSET(Data!F38,0,(View!$B$27-1)*12),IF($M35<>"",#N/A,"")) -> 75.23489 | R35: =IF(OFFSET(Data!G38,0,(View!$B$27-1)*12)<>"",OFFSET(Data!G38,0,(View!$B$27-1)*12),IF($N35<>"",#N/A,"")) -> 81.30947 | S35: OK | T35: =IF(OFFSET(Data!I38,0,(View!$B$27-1)*12)<>"",OFFSET(Data!I38,0,(View!$B$27-1)*12),IF($M35<>"",#N/A,"")) -> 75.39321 | U35: =IF(OFFSET(Data!J38,0,(View!$B$27-1)*12)<>"",OFFSET(Data!J38,0,(View!$B$27-1)*12),IF($N35<>"",#N/A,"")) -> 81.34205 | V35: OK
K36: =IF(OFFSET(Data!A39,0,(View!$B$27-1)*12)<>"",$B$3 + OFFSET(Data!A39,0,(View!$B$27-1)*12),"") -> 44474.39155 | L36: =IF(OFFSET(Data!B39,0,(View!$B$27-1)*12)<>"",OFFSET(Data!B39,0,(View!$B$27-1)*12),"") -> 35 | M36: =IF(OFFSET(Data!C39,0,(View!$B$27-1)*12)<>"",OFFSET(Data!C39,0,(View!$B$27-1)*12),"") -> 73.15335 | N36: =IF(OFFSET(Data!D39,0,(View!$B$27-1)*12)<>"",OFFSET(Data!D39,0,(View!$B$27-1)*12),"") -> 80.92228 | O36: 123659646.3 | P36: OK | Q36: =IF(OFFSET(Data!F39,0,(View!$B$27-1)*12)<>"",OFFSET(Data!F39,0,(View!$B$27-1)*12),IF($M36<>"",#N/A,"")) -> 75.84726 | R36: =IF(OFFSET(Data!G39,0,(View!$B$27-1)*12)<>"",OFFSET(Data!G39,0,(View!$B$27-1)*12),IF($N36<>"",#N/A,"")) -> 83.22824 | S36: OK | T36: =IF(OFFSET(Data!I39,0,(View!$B$27-1)*12)<>"",OFFSET(Data!I39,0,(View!$B$27-1)*12),IF($M36<>"",#N/A,"")) -> 76.03737 | U36: =IF(OFFSET(Data!J39,0,(View!$B$27-1)*12)<>"",OFFSET(Data!J39,0,(View!$B$27-1)*12),IF($N36<>"",#N/A,"")) -> 83.58607 | V36: OK
K37: =IF(OFFSET(Data!A40,0,(View!$B$27-1)*12)<>"",$B$3 + OFFSET(Data!A40,0,(View!$B$27-1)*12),"") -> 44474.39156 | L37: =IF(OFFSET(Data!B40,0,(View!$B$27-1)*12)<>"",OFFSET(Data!B40,0,(View!$B$27-1)*12),"") -> 36 | M37: =IF(OFFSET(Data!C40,0,(View!$B$27-1)*12)<>"",OFFSET(Data!C40,0,(View!$B$27-1)*12),"") -> 73.47111 | N37: =IF(OFFSET(Data!D40,0,(View!$B$27-1)*12)<>"",OFFSET(Data!D40,0,(View!$B$27-1)*12),"") -> 78.87363 | O37: 77154808.91 | P37: OK | Q37: =IF(OFFSET(Data!F40,0,(View!$B$27-1)*12)<>"",OFFSET(Data!F40,0,(View!$B$27-1)*12),IF($M37<>"",#N/A,"")) -> 76.08189 | R37: =IF(OFFSET(Data!G40,0,(View!$B$27-1)*12)<>"",OFFSET(Data!G40,0,(View!$B$27-1)*12),IF($N37<>"",#N/A,"")) -> 80.61633 | S37: OK | T37: =IF(OFFSET(Data!I40,0,(View!$B$27-1)*12)<>"",OFFSET(Data!I40,0,(View!$B$27-1)*12),IF($M37<>"",#N/A,"")) -> 76.29065 | U37: =IF(OFFSET(Data!J40,0,(View!$B$27-1)*12)<>"",OFFSET(Data!J40,0,(View!$B$27-1)*12),IF($N37<>"",#N/A,"")) -> 81.0369 | V37: OK
K38: =IF(OFFSET(Data!A41,0,(View!$B$27-1)*12)<>"",$B$3 + OFFSET(Data!A41,0,(View!$B$27-1)*12),"") -> 44474.39157 | L38: =IF(OFFSET(Data!B41,0,(View!$B$27-1)*12)<>"",OFFSET(Data!B41,0,(View!$B$27-1)*12),"") -> 37 | M38: =IF(OFFSET(Data!C41,0,(View!$B$27-1)*12)<>"",OFFSET(Data!C41,0,(View!$B$27-1)*12),"") -> 73.5997 | N38: =IF(OFFSET(Data!D41,0,(View!$B$27-1)*12)<>"",OFFSET(Data!D41,0,(View!$B$27-1)*12),"") -> 76.71788 | O38: 46966478.67 | P38: OK | Q38: =IF(OFFSET(Data!F41,0,(View!$B$27-1)*12)<>"",OFFSET(Data!F41,0,(View!$B$27-1)*12),IF($M38<>"",#N/A,"")) -> 76.15276 | R38: =IF(OFFSET(Data!G41,0,(View!$B$27-1)*12)<>"",OFFSET(Data!G41,0,(View!$B$27-1)*12),IF($N38<>"",#N/A,"")) -> 78.14653 | S38: OK | T38: =IF(OFFSET(Data!I41,0,(View!$B$27-1)*12)<>"",OFFSET(Data!I41,0,(View!$B$27-1)*12),IF($M38<>"",#N/A,"")) -> 76.38858 | U38: =IF(OFFSET(Data!J41,0,(View!$B$27-1)*12)<>"",OFFSET(Data!J41,0,(View!$B$27-1)*12),IF($N38<>"",#N/A,"")) -> 78.94777 | V38: OK
K39: =IF(OFFSET(Data!A42,0,(View!$B$27-1)*12)<>"",$B$3 + OFFSET(Data!A42,0,(View!$B$27-1)*12),"") -> 44474.39159 | L39: =IF(OFFSET(Data!B42,0,(View!$B$27-1)*12)<>"",OFFSET(Data!B42,0,(View!$B$27-1)*12),"") -> 38 | M39: =IF(OFFSET(Data!C42,0,(View!$B$27-1)*12)<>"",OFFSET(Data!C42,0,(View!$B$27-1)*12),"") -> 73.72836 | N39: =IF(OFFSET(Data!D42,0,(View!$B$27-1)*12)<>"",OFFSET(Data!D42,0,(View!$B$27-1)*12),"") -> 76.90894 | O39: 49078807.29 | P39: OK | Q39: =IF(OFFSET(Data!F42,0,(View!$B$27-1)*12)<>"",OFFSET(Data!F42,0,(View!$B$27-1)*12),IF($M39<>"",#N/A,"")) -> 76.2179 | R39: =IF(OFFSET(Data!G42,0,(View!$B$27-1)*12)<>"",OFFSET(Data!G42,0,(View!$B$27-1)*12),IF($N39<>"",#N/A,"")) -> 78.12353 | S39: OK | T39: =IF(OFFSET(Data!I42,0,(View!$B$27-1)*12)<>"",OFFSET(Data!I42,0,(View!$B$27-1)*12),IF($M39<>"",#N/A,"")) -> 76.47547 | U39: =IF(OFFSET(Data!J42,0,(View!$B$27-1)*12)<>"",OFFSET(Data!J42,0,(View!$B$27-1)*12),IF($N39<>"",#N/A,"")) -> 78.86326 | V39: OK
K40: =IF(OFFSET(Data!A43,0,(View!$B$27-1)*12)<>"",$B$3 + OFFSET(Data!A43,0,(View!$B$27-1)*12),"") -> 44474.3916 | L40: =IF(OFFSET(Data!B43,0,(View!$B$27-1)*12)<>"",OFFSET(Data!B43,0,(View!$B$27-1)*12),"") -> 39 | M40: =IF(OFFSET(Data!C43,0,(View!$B$27-1)*12)<>"",OFFSET(Data!C43,0,(View!$B$27-1)*12),"") -> 73.84962 | N40: =IF(OFFSET(Data!D43,0,(View!$B$27-1)*12)<>"",OFFSET(Data!D43,0,(View!$B$27-1)*12),"") -> 76.95964 | O40: 49655115.91 | P40: OK | Q40: =IF(OFFSET(Data!F43,0,(View!$B$27-1)*12)<>"",OFFSET(Data!F43,0,(View!$B$27-1)*12),IF($M40<>"",#N/A,"")) -> 76.28459 | R40: =IF(OFFSET(Data!G43,0,(View!$B$27-1)*12)<>"",OFFSET(Data!G43,0,(View!$B$27-1)*12),IF($N40<>"",#N/A,"")) -> 78.26871 | S40: OK | T40: =IF(OFFSET(Data!I43,0,(View!$B$27-1)*12)<>"",OFFSET(Data!I43,0,(View!$B$27-1)*12),IF($M40<>"",#N/A,"")) -> 76.56298 | U40: =IF(OFFSET(Data!J43,0,(View!$B$27-1)*12)<>"",OFFSET(Data!J43,0,(View!$B$27-1)*12),IF($N40<>"",#N/A,"")) -> 79.01337 | V40: OK
K41: =IF(OFFSET(Data!A44,0,(View!$B$27-1)*12)<>"",$B$3 + OFFSET(Data!A44,0,(View!$B$27-1)*12),"") -> 44474.39161 | L41: =IF(OFFSET(Data!B44,0,(View!$B$27-1)*12)<>"",OFFSET(Data!B44,0,(View!$B$27-1)*12),"") -> 40 | M41: =IF(OFFSET(Data!C44,0,(View!$B$27-1)*12)<>"",OFFSET(Data!C44,0,(View!$B$27-1)*12),"") -> 73.95752 | N41: =IF(OFFSET(Data!D44,0,(View!$B$27-1)*12)<>"",OFFSET(Data!D44,0,(View!$B$27-1)*12),"") -> 76.87332 | O41: 48677918.59 | P41: OK | Q41: =IF(OFFSET(Data!F44,0,(View!$B$27-1)*12)<>"",OFFSET(Data!F44,0,(View!$B$27-1)*12),IF($M41<>"",#N/A,"")) -> 76.33902 | R41: =IF(OFFSET(Data!G44,0,(View!$B$27-1)*12)<>"",OFFSET(Data!G44,0,(View!$B$27-1)*12),IF($N41<>"",#N/A,"")) -> 78.05843 | S41: OK | T41: =IF(OFFSET(Data!I44,0,(View!$B$27-1)*12)<>"",OFFSET(Data!I44,0,(View!$B$27-1)*12),IF($M41<>"",#N/A,"")) -> 76.63688 | U41: =IF(OFFSET(Data!J44,0,(View!$B$27-1)*12)<>"",OFFSET(Data!J44,0,(View!$B$27-1)*12),IF($N41<>"",#N/A,"")) -> 78.8326 | V41: OK
K42: =IF(OFFSET(Data!A45,0,(View!$B$27-1)*12)<>"",$B$3 + OFFSET(Data!A45,0,(View!$B$27-1)*12),"") -> 44474.39162 | L42: =IF(OFFSET(Data!B45,0,(View!$B$27-1)*12)<>"",OFFSET(Data!B45,0,(View!$B$27-1)*12),"") -> 41 | M42: =IF(OFFSET(Data!C45,0,(View!$B$27-1)*12)<>"",OFFSET(Data!C45,0,(View!$B$27-1)*12),"") -> 74.06033 | N42: =IF(OFFSET(Data!D45,0,(View!$B$27-1)*12)<>"",OFFSET(Data!D45,0,(View!$B$27-1)*12),"") -> 76.92898 | O42: 49305798.89 | P42: OK | Q42: =IF(OFFSET(Data!F45,0,(View!$B$27-1)*12)<>"",OFFSET(Data!F45,0,(View!$B$27-1)*12),IF($M42<>"",#N/A,"")) -> 76.3948 | R42: =IF(OFFSET(Data!G45,0,(View!$B$27-1)*12)<>"",OFFSET(Data!G45,0,(View!$B$27-1)*12),IF($N42<>"",#N/A,"")) -> 78.18584 | S42: OK | T42: =IF(OFFSET(Data!I45,0,(View!$B$27-1)*12)<>"",OFFSET(Data!I45,0,(View!$B$27-1)*12),IF($M42<>"",#N/A,"")) -> 76.70955 | U42: =IF(OFFSET(Data!J45,0,(View!$B$27-1)*12)<>"",OFFSET(Data!J45,0,(View!$B$27-1)*12),IF($N42<>"",#N/A,"")) -> 78.92054 | V42: OK
K43: =IF(OFFSET(Data!A46,0,(View!$B$27-1)*12)<>"",$B$3 + OFFSET(Data!A46,0,(View!$B$27-1)*12),"") -> 44474.39163 | L43: =IF(OFFSET(Data!B46,0,(View!$B$27-1)*12)<>"",OFFSET(Data!B46,0,(View!$B$27-1)*12),"") -> 42 | M43: =IF(OFFSET(Data!C46,0,(View!$B$27-1)*12)<>"",OFFSET(Data!C46,0,(View!$B$27-1)*12),"") -> 74.15051 | N43: =IF(OFFSET(Data!D46,0,(View!$B$27-1)*12)<>"",OFFSET(Data!D46,0,(View!$B$27-1)*12),"") -> 76.80463 | O43: 47914063.05 | P43: OK | Q43: =IF(OFFSET(Data!F46,0,(View!$B$27-1)*12)<>"",OFFSET(Data!F46,0,(View!$B$27-1)*12),IF($M43<>"",#N/A,"")) -> 76.44171 | R43: =IF(OFFSET(Data!G46,0,(View!$B$27-1)*12)<>"",OFFSET(Data!G46,0,(View!$B$27-1)*12),IF($N43<>"",#N/A,"")) -> 78.02679 | S43: OK | T43: =IF(OFFSET(Data!I46,0,(View!$B$27-1)*12)<>"",OFFSET(Data!I46,0,(View!$B$27-1)*12),IF($M43<>"",#N/A,"")) -> 76.77197 | U43: =IF(OFFSET(Data!J46,0,(View!$B$27-1)*12)<>"",OFFSET(Data!J46,0,(View!$B$27-1)*12),IF($N43<>"",#N/A,"")) -> 78.77219 | V43: OK
K44: =IF(OFFSET(Data!A47,0,(View!$B$27-1)*12)<>"",$B$3 + OFFSET(Data!A47,0,(View!$B$27-1)*12),"") -> 44474.39164 | L44: =IF(OFFSET(Data!B47,0,(View!$B$27-1)*12)<>"",OFFSET(Data!B47,0,(View!$B$27-1)*12),"") -> 43 | M44: =IF(OFFSET(Data!C47,0,(View!$B$27-1)*12)<>"",OFFSET(Data!C47,0,(View!$B$27-1)*12),"") -> 74.23692 | N44: =IF(OFFSET(Data!D47,0,(View!$B$27-1)*12)<>"",OFFSET(Data!D47,0,(View!$B$27-1)*12),"") -> 76.85526 | O44: 48475913.29 | P44: OK | Q44: =IF(OFFSET(Data!F47,0,(View!$B$27-1)*12)<>"",OFFSET(Data!F47,0,(View!$B$27-1)*12),IF($M44<>"",#N/A,"")) -> 76.48777 | R44: =IF(OFFSET(Data!G47,0,(View!$B$27-1)*12)<>"",OFFSET(Data!G47,0,(View!$B$27-1)*12),IF($N44<>"",#N/A,"")) -> 78.08076 | S44: OK | T44: =IF(OFFSET(Data!I47,0,(View!$B$27-1)*12)<>"",OFFSET(Data!I47,0,(View!$B$27-1)*12),IF($M44<>"",#N/A,"")) -> 76.83177 | U44: =IF(OFFSET(Data!J47,0,(View!$B$27-1)*12)<>"",OFFSET(Data!J47,0,(View!$B$27-1)*12),IF($N44<>"",#N/A,"")) -> 78.80312 | V44: OK
K45: =IF(OFFSET(Data!A48,0,(View!$B$27-1)*12)<>"",$B$3 + OFFSET(Data!A48,0,(View!$B$27-1)*12),"") -> 44474.39166 | L45: =IF(OFFSET(Data!B48,0,(View!$B$27-1)*12)<>"",OFFSET(Data!B48,0,(View!$B$27-1)*12),"") -> 44 | M45: =IF(OFFSET(Data!C48,0,(View!$B$27-1)*12)<>"",OFFSET(Data!C48,0,(View!$B$27-1)*12),"") -> 74.31751 | N45: =IF(OFFSET(Data!D48,0,(View!$B$27-1)*12)<>"",OFFSET(Data!D48,0,(View!$B$27-1)*12),"") -> 76.8475 | O45: 48389373.58 | P45: OK | Q45: =IF(OFFSET(Data!F48,0,(View!$B$27-1)*12)<>"",OFFSET(Data!F48,0,(View!$B$27-1)*12),IF($M45<>"",#N/A,"")) -> 76.52653 | R45: =IF(OFFSET(Data!G48,0,(View!$B$27-1)*12)<>"",OFFSET(Data!G48,0,(View!$B$27-1)*12),IF($N45<>"",#N/A,"")) -> 77.93163 | S45: OK | T45: =IF(OFFSET(Data!I48,0,(View!$B$27-1)*12)<>"",OFFSET(Data!I48,0,(View!$B$27-1)*12),IF($M45<>"",#N/A,"")) -> 76.88346 | U45: =IF(OFFSET(Data!J48,0,(View!$B$27-1)*12)<>"",OFFSET(Data!J48,0,(View!$B$27-1)*12),IF($N45<>"",#N/A,"")) -> 78.66958 | V45: OK
K46: =IF(OFFSET(Data!A49,0,(View!$B$27-1)*12)<>"",$B$3 + OFFSET(Data!A49,0,(View!$B$27-1)*12),"") -> 44474.39167 | L46: =IF(OFFSET(Data!B49,0,(View!$B$27-1)*12)<>"",OFFSET(Data!B49,0,(View!$B$27-1)*12),"") -> 45 | M46: =IF(OFFSET(Data!C49,0,(View!$B$27-1)*12)<>"",OFFSET(Data!C49,0,(View!$B$27-1)*12),"") -> 74.38591 | N46: =IF(OFFSET(Data!D49,0,(View!$B$27-1)*12)<>"",OFFSET(Data!D49,0,(View!$B$27-1)*12),"") -> 76.65855 | O46: 46329221.23 | P46: OK | Q46: =IF(OFFSET(Data!F49,0,(View!$B$27-1)*12)<>"",OFFSET(Data!F49,0,(View!$B$27-1)*12),IF($M46<>"",#N/A,"")) -> 76.56388 | R46: =IF(OFFSET(Data!G49,0,(View!$B$27-1)*12)<>"",OFFSET(Data!G49,0,(View!$B$27-1)*12),IF($N46<>"",#N/A,"")) -> 77.95261 | S46: OK | T46: =IF(OFFSET(Data!I49,0,(View!$B$27-1)*12)<>"",OFFSET(Data!I49,0,(View!$B$27-1)*12),IF($M46<>"",#N/A,"")) -> 76.9324 | U46: =IF(OFFSET(Data!J49,0,(View!$B$27-1)*12)<>"",OFFSET(Data!J49,0,(View!$B$27-1)*12),IF($N46<>"",#N/A,"")) -> 78.67297 | V46: OK
K47: =IF(OFFSET(Data!A50,0,(View!$B$27-1)*12)<>"",$B$3 + OFFSET(Data!A50,0,(View!$B$27-1)*12),"") -> 44474.39168 | L47: =IF(OFFSET(Data!B50,0,(View!$B$27-1)*12)<>"",OFFSET(Data!B50,0,(View!$B$27-1)*12),"") -> 46 | M47: =IF(OFFSET(Data!C50,0,(View!$B$27-1)*12)<>"",OFFSET(Data!C50,0,(View!$B$27-1)*12),"") -> 74.44599 | N47: =IF(OFFSET(Data!D50,0,(View!$B$27-1)*12)<>"",OFFSET(Data!D50,0,(View!$B$27-1)*12),"") -> 76.53635 | O47: 45043797.77 | P47: OK | Q47: =IF(OFFSET(Data!F50,0,(View!$B$27-1)*12)<>"",OFFSET(Data!F50,0,(View!$B$27-1)*12),IF($M47<>"",#N/A,"")) -> 76.59071 | R47: =IF(OFFSET(Data!G50,0,(View!$B$27-1)*12)<>"",OFFSET(Data!G50,0,(View!$B$27-1)*12),IF($N47<>"",#N/A,"")) -> 77.65296 | S47: OK | T47: =IF(OFFSET(Data!I50,0,(View!$B$27-1)*12)<>"",OFFSET(Data!I50,0,(View!$B$27-1)*12),IF($M47<>"",#N/A,"")) -> 76.97019 | U47: =IF(OFFSET(Data!J50,0,(View!$B$27-1)*12)<>"",OFFSET(Data!J50,0,(View!$B$27-1)*12),IF($N47<>"",#N/A,"")) -> 78.39999 | V47: OK
K48: =IF(OFFSET(Data!A51,0,(View!$B$27-1)*12)<>"",$B$3 + OFFSET(Data!A51,0,(View!$B$27-1)*12),"") -> 44474.39169 | L48: =IF(OFFSET(Data!B51,0,(View!$B$27-1)*12)<>"",OFFSET(Data!B51,0,(View!$B$27-1)*12),"") -> 47 | M48: =IF(OFFSET(Data!C51,0,(View!$B$27-1)*12)<>"",OFFSET(Data!C51,0,(View!$B$27-1)*12),"") -> 74.50016 | N48: =IF(OFFSET(Data!D51,0,(View!$B$27-1)*12)<>"",OFFSET(Data!D51,0,(View!$B$27-1)*12),"") -> 76.45982 | O48: 44257002.9 | P48: OK | Q48: =IF(OFFSET(Data!F51,0,(View!$B$27-1)*12)<>"",OFFSET(Data!F51,0,(View!$B$27-1)*12),IF($M48<>"",#N/A,"")) -> 76.61318 | R48: =IF(OFFSET(Data!G51,0,(View!$B$27-1)*12)<>"",OFFSET(Data!G51,0,(View!$B$27-1)*12),IF($N48<>"",#N/A,"")) -> 77.53851 | S48: OK | T48: =IF(OFFSET(Data!I51,0,(View!$B$27-1)*12)<>"",OFFSET(Data!I51,0,(View!$B$27-1)*12),IF($M48<>"",#N/A,"")) -> 77.00346 | U48: =IF(OFFSET(Data!J51,0,(View!$B$27-1)*12)<>"",OFFSET(Data!J51,0,(View!$B$27-1)*12),IF($N48<>"",#N/A,"")) -> 78.31004 | V48: OK
K49: =IF(OFFSET(Data!A52,0,(View!$B$27-1)*12)<>"",$B$3 + OFFSET(Data!A52,0,(View!$B$27-1)*12),"") -> 44474.3917 | L49: =IF(OFFSET(Data!B52,0,(View!$B$27-1)*12)<>"",OFFSET(Data!B52,0,(View!$B$27-1)*12),"") -> 48 | M49: =IF(OFFSET(Data!C52,0,(View!$B$27-1)*12)<>"",OFFSET(Data!C52,0,(View!$B$27-1)*12),"") -> 74.56051 | N49: =IF(OFFSET(Data!D52,0,(View!$B$27-1)*12)<>"",OFFSET(Data!D52,0,(View!$B$27-1)*12),"") -> 76.73145 | O49: 47113460.01 | P49: OK | Q49: =IF(OFFSET(Data!F52,0,(View!$B$27-1)*12)<>"",OFFSET(Data!F52,0,(View!$B$27-1)*12),IF($M49<>"",#N/A,"")) -> 76.64448 | R49: =IF(OFFSET(Data!G52,0,(View!$B$27-1)*12)<>"",OFFSET(Data!G52,0,(View!$B$27-1)*12),IF($N49<>"",#N/A,"")) -> 77.90736 | S49: OK | T49: =IF(OFFSET(Data!I52,0,(View!$B$27-1)*12)<>"",OFFSET(Data!I52,0,(View!$B$27-1)*12),IF($M49<>"",#N/A,"")) -> 77.04488 | U49: =IF(OFFSET(Data!J52,0,(View!$B$27-1)*12)<>"",OFFSET(Data!J52,0,(View!$B$27-1)*12),IF($N49<>"",#N/A,"")) -> 78.64707 | V49: OK
K50: =IF(OFFSET(Data!A53,0,(View!$B$27-1)*12)<>"",$B$3 + OFFSET(Data!A53,0,(View!$B$27-1)*12),"") -> 44474.39171 | L50: =IF(OFFSET(Data!B53,0,(View!$B$27-1)*12)<>"",OFFSET(Data!B53,0,(View!$B$27-1)*12),"") -> 49 | M50: =IF(OFFSET(Data!C53,0,(View!$B$27-1)*12)<>"",OFFSET(Data!C53,0,(View!$B$27-1)*12),"") -> 74.61671 | N50: =IF(OFFSET(Data!D53,0,(View!$B$27-1)*12)<>"",OFFSET(Data!D53,0,(View!$B$27-1)*12),"") -> 76.70443 | O50: 46821249.57 | P50: OK | Q50: =IF(OFFSET(Data!F53,0,(View!$B$27-1)*12)<>"",OFFSET(Data!F53,0,(View!$B$27-1)*12),IF($M50<>"",#N/A,"")) -> 76.67508 | R50: =IF(OFFSET(Data!G53,0,(View!$B$27-1)*12)<>"",OFFSET(Data!G53,0,(View!$B$27-1)*12),IF($N50<>"",#N/A,"")) -> 77.93647 | S50: OK | T50: =IF(OFFSET(Data!I53,0,(View!$B$27-1)*12)<>"",OFFSET(Data!I53,0,(View!$B$27-1)*12),IF($M50<>"",#N/A,"")) -> 77.08548 | U50: =IF(OFFSET(Data!J53,0,(View!$B$27-1)*12)<>"",OFFSET(Data!J53,0,(View!$B$27-1)*12),IF($N50<>"",#N/A,"")) -> 78.68909 | V50: OK
K51: =IF(OFFSET(Data!A54,0,(View!$B$27-1)*12)<>"",$B$3 + OFFSET(Data!A54,0,(View!$B$27-1)*12),"") -> 44474.39172 | L51: =IF(OFFSET(Data!B54,0,(View!$B$27-1)*12)<>"",OFFSET(Data!B54,0,(View!$B$27-1)*12),"") -> 50 | M51: =IF(OFFSET(Data!C54,0,(View!$B$27-1)*12)<>"",OFFSET(Data!C54,0,(View!$B$27-1)*12),"") -> 74.66791 | N51: =IF(OFFSET(Data!D54,0,(View!$B$27-1)*12)<>"",OFFSET(Data!D54,0,(View!$B$27-1)*12),"") -> 76.6385 | O51: 46115826.86 | P51: OK | Q51: =IF(OFFSET(Data!F54,0,(View!$B$27-1)*12)<>"",OFFSET(Data!F54,0,(View!$B$27-1)*12),IF($M51<>"",#N/A,"")) -> 76.7042 | R51: =IF(OFFSET(Data!G54,0,(View!$B$27-1)*12)<>"",OFFSET(Data!G54,0,(View!$B$27-1)*12),IF($N51<>"",#N/A,"")) -> 77.93454 | S51: OK | T51: =IF(OFFSET(Data!I54,0,(View!$B$27-1)*12)<>"",OFFSET(Data!I54,0,(View!$B$27-1)*12),IF($M51<>"",#N/A,"")) -> 77.12358 | U51: =IF(OFFSET(Data!J54,0,(View!$B$27-1)*12)<>"",OFFSET(Data!J54,0,(View!$B$27-1)*12),IF($N51<>"",#N/A,"")) -> 78.67099 | V51: OK
K52: =IF(OFFSET(Data!A55,0,(View!$B$27-1)*12)<>"",$B$3 + OFFSET(Data!A55,0,(View!$B$27-1)*12),"") -> 44474.39174 | L52: =IF(OFFSET(Data!B55,0,(View!$B$27-1)*12)<>"",OFFSET(Data!B55,0,(View!$B$27-1)*12),"") -> 51 | M52: =IF(OFFSET(Data!C55,0,(View!$B$27-1)*12)<>"",OFFSET(Data!C55,0,(View!$B$27-1)*12),"") -> 74.71341 | N52: =IF(OFFSET(Data!D55,0,(View!$B$27-1)*12)<>"",OFFSET(Data!D55,0,(View!$B$27-1)*12),"") -> 76.53514 | O52: 45031249.74 | P52: OK | Q52: =IF(OFFSET(Data!F55,0,(View!$B$27-1)*12)<>"",OFFSET(Data!F55,0,(View!$B$27-1)*12),IF($M52<>"",#N/A,"")) -> 76.73072 | R52: =IF(OFFSET(Data!G55,0,(View!$B$27-1)*12)<>"",OFFSET(Data!G55,0,(View!$B$27-1)*12),IF($N52<>"",#N/A,"")) -> 77.88479 | S52: OK | T52: =IF(OFFSET(Data!I55,0,(View!$B$27-1)*12)<>"",OFFSET(Data!I55,0,(View!$B$27-1)*12),IF($M52<>"",#N/A,"")) -> 77.15852 | U52: =IF(OFFSET(Data!J55,0,(View!$B$27-1)*12)<>"",OFFSET(Data!J55,0,(View!$B$27-1)*12),IF($N52<>"",#N/A,"")) -> 78.62144 | V52: OK
K53: =IF(OFFSET(Data!A56,0,(View!$B$27-1)*12)<>"",$B$3 + OFFSET(Data!A56,0,(View!$B$27-1)*12),"") -> 44474.39175 | L53: =IF(OFFSET(Data!B56,0,(View!$B$27-1)*12)<>"",OFFSET(Data!B56,0,(View!$B$27-1)*12),"") -> 52 | M53: =IF(OFFSET(Data!C56,0,(View!$B$27-1)*12)<>"",OFFSET(Data!C56,0,(View!$B$27-1)*12),"") -> 74.75345 | N53: =IF(OFFSET(Data!D56,0,(View!$B$27-1)*12)<>"",OFFSET(Data!D56,0,(View!$B$27-1)*12),"") -> 76.42062 | O53: 43859330.7 | P53: OK | Q53: =IF(OFFSET(Data!F56,0,(View!$B$27-1)*12)<>"",OFFSET(Data!F56,0,(View!$B$27-1)*12),IF($M53<>"",#N/A,"")) -> 76.74973 | R53: =IF(OFFSET(Data!G56,0,(View!$B$27-1)*12)<>"",OFFSET(Data!G56,0,(View!$B$27-1)*12),IF($N53<>"",#N/A,"")) -> 77.62312 | S53: OK | T53: =IF(OFFSET(Data!I56,0,(View!$B$27-1)*12)<>"",OFFSET(Data!I56,0,(View!$B$27-1)*12),IF($M53<>"",#N/A,"")) -> 77.19186 | U53: =IF(OFFSET(Data!J56,0,(View!$B$27-1)*12)<>"",OFFSET(Data!J56,0,(View!$B$27-1)*12),IF($N53<>"",#N/A,"")) -> 78.62245 | V53: OK
K54: =IF(OFFSET(Data!A57,0,(View!$B$27-1)*12)<>"",$B$3 + OFFSET(Data!A57,0,(View!$B$27-1)*12),"") -> 44474.39176 | L54: =IF(OFFSET(Data!B57,0,(View!$B$27-1)*12)<>"",OFFSET(Data!B57,0,(View!$B$27-1)*12),"") -> 53 | M54: =IF(OFFSET(Data!C57,0,(View!$B$27-1)*12)<>"",OFFSET(Data!C57,0,(View!$B$27-1)*12),"") -> 74.78867 | N54: =IF(OFFSET(Data!D57,0,(View!$B$27-1)*12)<>"",OFFSET(Data!D57,0,(View!$B$27-1)*12),"") -> 76.31162 | O54: 42772240.49 | P54: OK | Q54: =IF(OFFSET(Data!F57,0,(View!$B$27-1)*12)<>"",OFFSET(Data!F57,0,(View!$B$27-1)*12),IF($M54<>"",#N/A,"")) -> 76.76691 | R54: =IF(OFFSET(Data!G57,0,(View!$B$27-1)*12)<>"",OFFSET(Data!G57,0,(View!$B$27-1)*12),IF($N54<>"",#N/A,"")) -> 77.57785 | S54: OK | T54: =IF(OFFSET(Data!I57,0,(View!$B$27-1)*12)<>"",OFFSET(Data!I57,0,(View!$B$27-1)*12),IF($M54<>"",#N/A,"")) -> 77.21583 | U54: =IF(OFFSET(Data!J57,0,(View!$B$27-1)*12)<>"",OFFSET(Data!J57,0,(View!$B$27-1)*12),IF($N54<>"",#N/A,"")) -> 78.30879 | V54: OK
K55: =IF(OFFSET(Data!A58,0,(View!$B$27-1)*12)<>"",$B$3 + OFFSET(Data!A58,0,(View!$B$27-1)*12),"") -> 44474.39177 | L55: =IF(OFFSET(Data!B58,0,(View!$B$27-1)*12)<>"",OFFSET(Data!B58,0,(View!$B$27-1)*12),"") -> 54 | M55: =IF(OFFSET(Data!C58,0,(View!$B$27-1)*12)<>"",OFFSET(Data!C58,0,(View!$B$27-1)*12),"") -> 74.82182 | N55: =IF(OFFSET(Data!D58,0,(View!$B$27-1)*12)<>"",OFFSET(Data!D58,0,(View!$B$27-1)*12),"") -> 76.29272 | O55: 42586505.02 | P55: OK | Q55: =IF(OFFSET(Data!F58,0,(View!$B$27-1)*12)<>"",OFFSET(Data!F58,0,(View!$B$27-1)*12),IF($M55<>"",#N/A,"")) -> 76.7818 | R55: =IF(OFFSET(Data!G58,0,(View!$B$27-1)*12)<>"",OFFSET(Data!G58,0,(View!$B$27-1)*12),IF($N55<>"",#N/A,"")) -> 77.5056 | S55: OK | T55: =IF(OFFSET(Data!I58,0,(View!$B$27-1)*12)<>"",OFFSET(Data!I58,0,(View!$B$27-1)*12),IF($M55<>"",#N/A,"")) -> 77.2377 | U55: =IF(OFFSET(Data!J58,0,(View!$B$27-1)*12)<>"",OFFSET(Data!J58,0,(View!$B$27-1)*12),IF($N55<>"",#N/A,"")) -> 78.26301 | V55: OK
K56: =IF(OFFSET(Data!A59,0,(View!$B$27-1)*12)<>"",$B$3 + OFFSET(Data!A59,0,(View!$B$27-1)*12),"") -> 44474.39178 | L56: =IF(OFFSET(Data!B59,0,(View!$B$27-1)*12)<>"",OFFSET(Data!B59,0,(View!$B$27-1)*12),"") -> 55 | M56: =IF(OFFSET(Data!C59,0,(View!$B$27-1)*12)<>"",OFFSET(Data!C59,0,(View!$B$27-1)*12),"") -> 74.85791 | N56: =IF(OFFSET(Data!D59,0,(View!$B$27-1)*12)<>"",OFFSET(Data!D59,0,(View!$B$27-1)*12),"") -> 76.46221 | O56: 44281365.02 | P56: OK | Q56: =IF(OFFSET(Data!F59,0,(View!$B$27-1)*12)<>"",OFFSET(Data!F59,0,(View!$B$27-1)*12),IF($M56<>"",#N/A,"")) -> 76.79713 | R56: =IF(OFFSET(Data!G59,0,(View!$B$27-1)*12)<>"",OFFSET(Data!G59,0,(View!$B$27-1)*12),IF($N56<>"",#N/A,"")) -> 77.55383 | S56: OK | T56: =IF(OFFSET(Data!I59,0,(View!$B$27-1)*12)<>"",OFFSET(Data!I59,0,(View!$B$27-1)*12),IF($M56<>"",#N/A,"")) -> 77.25943 | U56: =IF(OFFSET(Data!J59,0,(View!$B$27-1)*12)<>"",OFFSET(Data!J59,0,(View!$B$27-1)*12),IF($N56<>"",#N/A,"")) -> 78.29571 | V56: OK
K57: =IF(OFFSET(Data!A60,0,(View!$B$27-1)*12)<>"",$B$3 + OFFSET(Data!A60,0,(View!$B$27-1)*12),"") -> 44474.39179 | L57: =IF(OFFSET(Data!B60,0,(View!$B$27-1)*12)<>"",OFFSET(Data!B60,0,(View!$B$27-1)*12),"") -> 56 | M57: =IF(OFFSET(Data!C60,0,(View!$B$27-1)*12)<>"",OFFSET(Data!C60,0,(View!$B$27-1)*12),"") -> 74.89069 | N57: =IF(OFFSET(Data!D60,0,(View!$B$27-1)*12)<>"",OFFSET(Data!D60,0,(View!$B$27-1)*12),"") -> 76.39369 | O57: 43588206.53 | P57: OK | Q57: =IF(OFFSET(Data!F60,0,(View!$B$27-1)*12)<>"",OFFSET(Data!F60,0,(View!$B$27-1)*12),IF($M57<>"",#N/A,"")) -> 76.81042 | R57: =IF(OFFSET(Data!G60,0,(View!$B$27-1)*12)<>"",OFFSET(Data!G60,0,(View!$B$27-1)*12),IF($N57<>"",#N/A,"")) -> 77.48497 | S57: OK | T57: =IF(OFFSET(Data!I60,0,(View!$B$27-1)*12)<>"",OFFSET(Data!I60,0,(View!$B$27-1)*12),IF($M57<>"",#N/A,"")) -> 77.28098 | U57: =IF(OFFSET(Data!J60,0,(View!$B$27-1)*12)<>"",OFFSET(Data!J60,0,(View!$B$27-1)*12),IF($N57<>"",#N/A,"")) -> 78.32664 | V57: OK
K58: =IF(OFFSET(Data!A61,0,(View!$B$27-1)*12)<>"",$B$3 + OFFSET(Data!A61,0,(View!$B$27-1)*12),"") -> 44474.39181 | L58: =IF(OFFSET(Data!B61,0,(View!$B$27-1)*12)<>"",OFFSET(Data!B61,0,(View!$B$27-1)*12),"") -> 57 | M58: =IF(OFFSET(Data!C61,0,(View!$B$27-1)*12)<>"",OFFSET(Data!C61,0,(View!$B$27-1)*12),"") -> 74.92192 | N58: =IF(OFFSET(Data!D61,0,(View!$B$27-1)*12)<>"",OFFSET(Data!D61,0,(View!$B$27-1)*12),"") -> 76.38702 | O58: 43521314.08 | P58: OK | Q58: =IF(OFFSET(Data!F61,0,(View!$B$27-1)*12)<>"",OFFSET(Data!F61,0,(View!$B$27-1)*12),IF($M58<>"",#N/A,"")) -> 76.82696 | R58: =IF(OFFSET(Data!G61,0,(View!$B$27-1)*12)<>"",OFFSET(Data!G61,0,(View!$B$27-1)*12),IF($N58<>"",#N/A,"")) -> 77.66497 | S58: OK | T58: =IF(OFFSET(Data!I61,0,(View!$B$27-1)*12)<>"",OFFSET(Data!I61,0,(View!$B$27-1)*12),IF($M58<>"",#N/A,"")) -> 77.30391 | U58: =IF(OFFSET(Data!J61,0,(View!$B$27-1)*12)<>"",OFFSET(Data!J61,0,(View!$B$27-1)*12),IF($N58<>"",#N/A,"")) -> 78.42599 | V58: OK
K59: =IF(OFFSET(Data!A62,0,(View!$B$27-1)*12)<>"",$B$3 + OFFSET(Data!A62,0,(View!$B$27-1)*12),"") -> 44474.39182 | L59: =IF(OFFSET(Data!B62,0,(View!$B$27-1)*12)<>"",OFFSET(Data!B62,0,(View!$B$27-1)*12),"") -> 58 | M59: =IF(OFFSET(Data!C62,0,(View!$B$27-1)*12)<>"",OFFSET(Data!C62,0,(View!$B$27-1)*12),"") -> 74.9549 | N59: =IF(OFFSET(Data!D62,0,(View!$B$27-1)*12)<>"",OFFSET(Data!D62,0,(View!$B$27-1)*12),"") -> 76.51177 | O59: 44789581.03 | P59: OK | Q59: =IF(OFFSET(Data!F62,0,(View!$B$27-1)*12)<>"",OFFSET(Data!F62,0,(View!$B$27-1)*12),IF($M59<>"",#N/A,"")) -> 76.84134 | R59: =IF(OFFSET(Data!G62,0,(View!$B$27-1)*12)<>"",OFFSET(Data!G62,0,(View!$B$27-1)*12),IF($N59<>"",#N/A,"")) -> 77.5909 | S59: OK | T59: =IF(OFFSET(Data!I62,0,(View!$B$27-1)*12)<>"",OFFSET(Data!I62,0,(View!$B$27-1)*12),IF($M59<>"",#N/A,"")) -> 77.32394 | U59: =IF(OFFSET(Data!J62,0,(View!$B$27-1)*12)<>"",OFFSET(Data!J62,0,(View!$B$27-1)*12),IF($N59<>"",#N/A,"")) -> 78.33537 | V59: OK
K60: =IF(OFFSET(Data!A63,0,(View!$B$27-1)*12)<>"",$B$3 + OFFSET(Data!A63,0,(View!$B$27-1)*12),"") -> 44474.39183 | L60: =IF(OFFSET(Data!B63,0,(View!$B$27-1)*12)<>"",OFFSET(Data!B63,0,(View!$B$27-1)*12),"") -> 59 | M60: =IF(OFFSET(Data!C63,0,(View!$B$27-1)*12)<>"",OFFSET(Data!C63,0,(View!$B$27-1)*12),"") -> 74.99136 | N60: =IF(OFFSET(Data!D63,0,(View!$B$27-1)*12)<>"",OFFSET(Data!D63,0,(View!$B$27-1)*12),"") -> 76.70867 | O60: 46866983.29 | P60: OK | Q60: =IF(OFFSET(Data!F63,0,(View!$B$27-1)*12)<>"",OFFSET(Data!F63,0,(View!$B$27-1)*12),IF($M60<>"",#N/A,"")) -> 76.86204 | R60: =IF(OFFSET(Data!G63,0,(View!$B$27-1)*12)<>"",OFFSET(Data!G63,0,(View!$B$27-1)*12),IF($N60<>"",#N/A,"")) -> 77.92001 | S60: OK | T60: =IF(OFFSET(Data!I63,0,(View!$B$27-1)*12)<>"",OFFSET(Data!I63,0,(View!$B$27-1)*12),IF($M60<>"",#N/A,"")) -> 77.35033 | U60: =IF(OFFSET(Data!J63,0,(View!$B$27-1)*12)<>"",OFFSET(Data!J63,0,(View!$B$27-1)*12),IF($N60<>"",#N/A,"")) -> 78.65829 | V60: OK
K61: =IF(OFFSET(Data!A64,0,(View!$B$27-1)*12)<>"",$B$3 + OFFSET(Data!A64,0,(View!$B$27-1)*12),"") -> 44474.39184 | L61: =IF(OFFSET(Data!B64,0,(View!$B$27-1)*12)<>"",OFFSET(Data!B64,0,(View!$B$27-1)*12),"") -> 60 | M61: =IF(OFFSET(Data!C64,0,(View!$B$27-1)*12)<>"",OFFSET(Data!C64,0,(View!$B$27-1)*12),"") -> 75.02436 | N61: =IF(OFFSET(Data!D64,0,(View!$B$27-1)*12)<>"",OFFSET(Data!D64,0,(View!$B$27-1)*12),"") -> 76.62784 | O61: 46002771.8 | P61: OK | Q61: =IF(OFFSET(Data!F64,0,(View!$B$27-1)*12)<>"",OFFSET(Data!F64,0,(View!$B$27-1)*12),IF($M61<>"",#N/A,"")) -> 76.88055 | R61: =IF(OFFSET(Data!G64,0,(View!$B$27-1)*12)<>"",OFFSET(Data!G64,0,(View!$B$27-1)*12),IF($N61<>"",#N/A,"")) -> 77.8532 | S61: OK | T61: =IF(OFFSET(Data!I64,0,(View!$B$27-1)*12)<>"",OFFSET(Data!I64,0,(View!$B$27-1)*12),IF($M61<>"",#N/A,"")) -> 77.37569 | U61: =IF(OFFSET(Data!J64,0,(View!$B$27-1)*12)<>"",OFFSET(Data!J64,0,(View!$B$27-1)*12),IF($N61<>"",#N/A,"")) -> 78.65794 | V61: OK
K62: =IF(OFFSET(Data!A65,0,(View!$B$27-1)*12)<>"",$B$3 + OFFSET(Data!A65,0,(View!$B$27-1)*12),"") -> 44474.39185 | L62: =IF(OFFSET(Data!B65,0,(View!$B$27-1)*12)<>"",OFFSET(Data!B65,0,(View!$B$27-1)*12),"") -> 61 | M62: =IF(OFFSET(Data!C65,0,(View!$B$27-1)*12)<>"",OFFSET(Data!C65,0,(View!$B$27-1)*12),"") -> 75.05379 | N62: =IF(OFFSET(Data!D65,0,(View!$B$27-1)*12)<>"",OFFSET(Data!D65,0,(View!$B$27-1)*12),"") -> 76.53114 | O62: 44989793.52 | P62: OK | Q62: =IF(OFFSET(Data!F65,0,(View!$B$27-1)*12)<>"",OFFSET(Data!F65,0,(View!$B$27-1)*12),IF($M62<>"",#N/A,"")) -> 76.89564 | R62: =IF(OFFSET(Data!G65,0,(View!$B$27-1)*12)<>"",OFFSET(Data!G65,0,(View!$B$27-1)*12),IF($N62<>"",#N/A,"")) -> 77.71616 | S62: OK | T62: =IF(OFFSET(Data!I65,0,(View!$B$27-1)*12)<>"",OFFSET(Data!I65,0,(View!$B$27-1)*12),IF($M62<>"",#N/A,"")) -> 77.39617 | U62: =IF(OFFSET(Data!J65,0,(View!$B$27-1)*12)<>"",OFFSET(Data!J65,0,(View!$B$27-1)*12),IF($N62<>"",#N/A,"")) -> 78.47641 | V62: OK
K63: =IF(OFFSET(Data!A66,0,(View!$B$27-1)*12)<>"",$B$3 + OFFSET(Data!A66,0,(View!$B$27-1)*12),"") -> 44474.39186 | L63: =IF(OFFSET(Data!B66,0,(View!$B$27-1)*12)<>"",OFFSET(Data!B66,0,(View!$B$27-1)*12),"") -> 62 | M63: =IF(OFFSET(Data!C66,0,(View!$B$27-1)*12)<>"",OFFSET(Data!C66,0,(View!$B$27-1)*12),"") -> 75.08181 | N63: =IF(OFFSET(Data!D66,0,(View!$B$27-1)*12)<>"",OFFSET(Data!D66,0,(View!$B$27-1)*12),"") -> 76.51909 | O63: 44865137.18 | P63: OK | Q63: =IF(OFFSET(Data!F66,0,(View!$B$27-1)*12)<>"",OFFSET(Data!F66,0,(View!$B$27-1)*12),IF($M63<>"",#N/A,"")) -> 76.91299 | R63: =IF(OFFSET(Data!G66,0,(View!$B$27-1)*12)<>"",OFFSET(Data!G66,0,(View!$B$27-1)*12),IF($N63<>"",#N/A,"")) -> 77.85844 | S63: OK | T63: =IF(OFFSET(Data!I66,0,(View!$B$27-1)*12)<>"",OFFSET(Data!I66,0,(View!$B$27-1)*12),IF($M63<>"",#N/A,"")) -> 77.41962 | U63: =IF(OFFSET(Data!J66,0,(View!$B$27-1)*12)<>"",OFFSET(Data!J66,0,(View!$B$27-1)*12),IF($N63<>"",#N/A,"")) -> 78.6534 | V63: OK
K64: =IF(OFFSET(Data!A67,0,(View!$B$27-1)*12)<>"",$B$3 + OFFSET(Data!A67,0,(View!$B$27-1)*12),"") -> 44474.39188 | L64: =IF(OFFSET(Data!B67,0,(View!$B$27-1)*12)<>"",OFFSET(Data!B67,0,(View!$B$27-1)*12),"") -> 63 | M64: =IF(OFFSET(Data!C67,0,(View!$B$27-1)*12)<>"",OFFSET(Data!C67,0,(View!$B$27-1)*12),"") -> 75.1082 | N64: =IF(OFFSET(Data!D67,0,(View!$B$27-1)*12)<>"",OFFSET(Data!D67,0,(View!$B$27-1)*12),"") -> 76.49322 | O64: 44598679.49 | P64: OK | Q64: =IF(OFFSET(Data!F67,0,(View!$B$27-1)*12)<>"",OFFSET(Data!F67,0,(View!$B$27-1)*12),IF($M64<>"",#N/A,"")) -> 76.92854 | R64: =IF(OFFSET(Data!G67,0,(View!$B$27-1)*12)<>"",OFFSET(Data!G67,0,(View!$B$27-1)*12),IF($N64<>"",#N/A,"")) -> 77.79796 | S64: OK | T64: =IF(OFFSET(Data!I67,0,(View!$B$27-1)*12)<>"",OFFSET(Data!I67,0,(View!$B$27-1)*12),IF($M64<>"",#N/A,"")) -> 77.44013 | U64: =IF(OFFSET(Data!J67,0,(View!$B$27-1)*12)<>"",OFFSET(Data!J67,0,(View!$B$27-1)*12),IF($N64<>"",#N/A,"")) -> 78.55274 | V64: OK
K65: =IF(OFFSET(Data!A68,0,(View!$B$27-1)*12)<>"",$B$3 + OFFSET(Data!A68,0,(View!$B$27-1)*12),"") -> 44474.39189 | L65: =IF(OFFSET(Data!B68,0,(View!$B$27-1)*12)<>"",OFFSET(Data!B68,0,(View!$B$27-1)*12),"") -> 64 | M65: =IF(OFFSET(Data!C68,0,(View!$B$27-1)*12)<>"",OFFSET(Data!C68,0,(View!$B$27-1)*12),"") -> 75.13626 | N65: =IF(OFFSET(Data!D68,0,(View!$B$27-1)*12)<>"",OFFSET(Data!D68,0,(View!$B$27-1)*12),"") -> 76.61543 | O65: 45871506.15 | P65: OK | Q65: =IF(OFFSET(Data!F68,0,(View!$B$27-1)*12)<>"",OFFSET(Data!F68,0,(View!$B$27-1)*12),IF($M65<>"",#N/A,"")) -> 76.94317 | R65: =IF(OFFSET(Data!G68,0,(View!$B$27-1)*12)<>"",OFFSET(Data!G68,0,(View!$B$27-1)*12),IF($N65<>"",#N/A,"")) -> 77.77786 | S65: OK | T65: =IF(OFFSET(Data!I68,0,(View!$B$27-1)*12)<>"",OFFSET(Data!I68,0,(View!$B$27-1)*12),IF($M65<>"",#N/A,"")) -> 77.4595 | U65: =IF(OFFSET(Data!J68,0,(View!$B$27-1)*12)<>"",OFFSET(Data!J68,0,(View!$B$27-1)*12),IF($N65<>"",#N/A,"")) -> 78.53251 | V65: OK
K66: =IF(OFFSET(Data!A69,0,(View!$B$27-1)*12)<>"",$B$3 + OFFSET(Data!A69,0,(View!$B$27-1)*12),"") -> 44474.3919 | L66: =IF(OFFSET(Data!B69,0,(View!$B$27-1)*12)<>"",OFFSET(Data!B69,0,(View!$B$27-1)*12),"") -> 65 | M66: =IF(OFFSET(Data!C69,0,(View!$B$27-1)*12)<>"",OFFSET(Data!C69,0,(View!$B$27-1)*12),"") -> 75.16473 | N66: =IF(OFFSET(Data!D69,0,(View!$B$27-1)*12)<>"",OFFSET(Data!D69,0,(View!$B$27-1)*12),"") -> 76.68176 | O66: 46577481.28 | P66: OK | Q66: =IF(OFFSET(Data!F69,0,(View!$B$27-1)*12)<>"",OFFSET(Data!F69,0,(View!$B$27-1)*12),IF($M66<>"",#N/A,"")) -> 76.95816 | R66: =IF(OFFSET(Data!G69,0,(View!$B$27-1)*12)<>"",OFFSET(Data!G69,0,(View!$B$27-1)*12),IF($N66<>"",#N/A,"")) -> 77.82354 | S66: OK | T66: =IF(OFFSET(Data!I69,0,(View!$B$27-1)*12)<>"",OFFSET(Data!I69,0,(View!$B$27-1)*12),IF($M66<>"",#N/A,"")) -> 77.47868 | U66: =IF(OFFSET(Data!J69,0,(View!$B$27-1)*12)<>"",OFFSET(Data!J69,0,(View!$B$27-1)*12),IF($N66<>"",#N/A,"")) -> 78.55778 | V66: OK
K67: =IF(OFFSET(Data!A70,0,(View!$B$27-1)*12)<>"",$B$3 + OFFSET(Data!A70,0,(View!$B$27-1)*12),"") -> 44474.39191 | L67: =IF(OFFSET(Data!B70,0,(View!$B$27-1)*12)<>"",OFFSET(Data!B70,0,(View!$B$27-1)*12),"") -> 66 | M67: =IF(OFFSET(Data!C70,0,(View!$B$27-1)*12)<>"",OFFSET(Data!C70,0,(View!$B$27-1)*12),"") -> 75.18797 | N67: =IF(OFFSET(Data!D70,0,(View!$B$27-1)*12)<>"",OFFSET(Data!D70,0,(View!$B$27-1)*12),"") -> 76.48155 | O67: =10^(N67/10) -> 44478998.5 | P67: =IF(M67<>"",IF(M67<$B$8,IF(N67<$B$8,"OK","Current"),"Average"),"") -> OK | Q67: =IF(OFFSET(Data!F70,0,(View!$B$27-1)*12)<>"",OFFSET(Data!F70,0,(View!$B$27-1)*12),IF($M67<>"",#N/A,"")) -> 76.96861 | R67: =IF(OFFSET(Data!G70,0,(View!$B$27-1)*12)<>"",OFFSET(Data!G70,0,(View!$B$27-1)*12),IF($N67<>"",#N/A,"")) -> 77.5993 | S67: =IF(Q67<>"",IF(Q67<$B$8,IF(R67<$B$8,"OK","Current"),"Average"),"") -> OK | T67: =IF(OFFSET(Data!I70,0,(View!$B$27-1)*12)<>"",OFFSET(Data!I70,0,(View!$B$27-1)*12),IF($M67<>"",#N/A,"")) -> 77.4931 | U67: =IF(OFFSET(Data!J70,0,(View!$B$27-1)*12)<>"",OFFSET(Data!J70,0,(View!$B$27-1)*12),IF($N67<>"",#N/A,"")) -> 78.34052 | V67: =IF(T67<>"",IF(T67<$B$8,IF(U67<$B$8,"OK","Current"),"Average"),"") -> OK
K68: =IF(OFFSET(Data!A71,0,(View!$B$27-1)*12)<>"",$B$3 + OFFSET(Data!A71,0,(View!$B$27-1)*12),"") -> 44474.39192 | L68: =IF(OFFSET(Data!B71,0,(View!$B$27-1)*12)<>"",OFFSET(Data!B71,0,(View!$B$27-1)*12),"") -> 67 | M68: =IF(OFFSET(Data!C71,0,(View!$B$27-1)*12)<>"",OFFSET(Data!C71,0,(View!$B$27-1)*12),"") -> 75.21119 | N68: =IF(OFFSET(Data!D71,0,(View!$B$27-1)*12)<>"",OFFSET(Data!D71,0,(View!$B$27-1)*12),"") -> 76.52052 | O68: 44879912.34 | P68: OK | Q68: =IF(OFFSET(Data!F71,0,(View!$B$27-1)*12)<>"",OFFSET(Data!F71,0,(View!$B$27-1)*12),IF($M68<>"",#N/A,"")) -> 76.98424 | R68: =IF(OFFSET(Data!G71,0,(View!$B$27-1)*12)<>"",OFFSET(Data!G71,0,(View!$B$27-1)*12),IF($N68<>"",#N/A,"")) -> 77.90792 | S68: OK | T68: =IF(OFFSET(Data!I71,0,(View!$B$27-1)*12)<>"",OFFSET(Data!I71,0,(View!$B$27-1)*12),IF($M68<>"",#N/A,"")) -> 77.51199 | U68: =IF(OFFSET(Data!J71,0,(View!$B$27-1)*12)<>"",OFFSET(Data!J71,0,(View!$B$27-1)*12),IF($N68<>"",#N/A,"")) -> 78.60607 | V68: OK
K69: =IF(OFFSET(Data!A72,0,(View!$B$27-1)*12)<>"",$B$3 + OFFSET(Data!A72,0,(View!$B$27-1)*12),"") -> 44474.39193 | L69: =IF(OFFSET(Data!B72,0,(View!$B$27-1)*12)<>"",OFFSET(Data!B72,0,(View!$B$27-1)*12),"") -> 68 | M69: =IF(OFFSET(Data!C72,0,(View!$B$27-1)*12)<>"",OFFSET(Data!C72,0,(View!$B$27-1)*12),"") -> 75.23222 | N69: =IF(OFFSET(Data!D72,0,(View!$B$27-1)*12)<>"",OFFSET(Data!D72,0,(View!$B$27-1)*12),"") -> 76.45007 | O69: 44157756.47 | P69: OK | Q69: =IF(OFFSET(Data!F72,0,(View!$B$27-1)*12)<>"",OFFSET(Data!F72,0,(View!$B$27-1)*12),IF($M69<>"",#N/A,"")) -> 76.99545 | R69: =IF(OFFSET(Data!G72,0,(View!$B$27-1)*12)<>"",OFFSET(Data!G72,0,(View!$B$27-1)*12),IF($N69<>"",#N/A,"")) -> 77.68773 | S69: OK | T69: =IF(OFFSET(Data!I72,0,(View!$B$27-1)*12)<>"",OFFSET(Data!I72,0,(View!$B$27-1)*12),IF($M69<>"",#N/A,"")) -> 77.5265 | U69: =IF(OFFSET(Data!J72,0,(View!$B$27-1)*12)<>"",OFFSET(Data!J72,0,(View!$B$27-1)*12),IF($N69<>"",#N/A,"")) -> 78.4027 | V69: OK
K70: =IF(OFFSET(Data!A73,0,(View!$B$27-1)*12)<>"",$B$3 + OFFSET(Data!A73,0,(View!$B$27-1)*12),"") -> 44474.39194 | L70: =IF(OFFSET(Data!B73,0,(View!$B$27-1)*12)<>"",OFFSET(Data!B73,0,(View!$B$27-1)*12),"") -> 69 | M70: =IF(OFFSET(Data!C73,0,(View!$B$27-1)*12)<>"",OFFSET(Data!C73,0,(View!$B$27-1)*12),"") -> 75.2514 | N70: =IF(OFFSET(Data!D73,0,(View!$B$27-1)*12)<>"",OFFSET(Data!D73,0,(View!$B$27-1)*12),"") -> 76.38945 | O70: 43545672.3 | P70: OK | Q70: =IF(OFFSET(Data!F73,0,(View!$B$27-1)*12)<>"",OFFSET(Data!F73,0,(View!$B$27-1)*12),IF($M70<>"",#N/A,"")) -> 77.00653 | R70: =IF(OFFSET(Data!G73,0,(View!$B$27-1)*12)<>"",OFFSET(Data!G73,0,(View!$B$27-1)*12),IF($N70<>"",#N/A,"")) -> 77.70009 | S70: OK | T70: =IF(OFFSET(Data!I73,0,(View!$B$27-1)*12)<>"",OFFSET(Data!I73,0,(View!$B$27-1)*12),IF($M70<>"",#N/A,"")) -> 77.54074 | U70: =IF(OFFSET(Data!J73,0,(View!$B$27-1)*12)<>"",OFFSET(Data!J73,0,(View!$B$27-1)*12),IF($N70<>"",#N/A,"")) -> 78.41354 | V70: OK
K71: =IF(OFFSET(Data!A74,0,(View!$B$27-1)*12)<>"",$B$3 + OFFSET(Data!A74,0,(View!$B$27-1)*12),"") -> 44474.39196 | L71: =IF(OFFSET(Data!B74,0,(View!$B$27-1)*12)<>"",OFFSET(Data!B74,0,(View!$B$27-1)*12),"") -> 70 | M71: =IF(OFFSET(Data!C74,0,(View!$B$27-1)*12)<>"",OFFSET(Data!C74,0,(View!$B$27-1)*12),"") -> 75.26894 | N71: =IF(OFFSET(Data!D74,0,(View!$B$27-1)*12)<>"",OFFSET(Data!D74,0,(View!$B$27-1)*12),"") -> 76.33442 | O71: 42997380.68 | P71: OK | Q71: =IF(OFFSET(Data!F74,0,(View!$B$27-1)*12)<>"",OFFSET(Data!F74,0,(View!$B$27-1)*12),IF($M71<>"",#N/A,"")) -> 77.01421 | R71: =IF(OFFSET(Data!G74,0,(View!$B$27-1)*12)<>"",OFFSET(Data!G74,0,(View!$B$27-1)*12),IF($N71<>"",#N/A,"")) -> 77.5139 | S71: OK | T71: =IF(OFFSET(Data!I74,0,(View!$B$27-1)*12)<>"",OFFSET(Data!I74,0,(View!$B$27-1)*12),IF($M71<>"",#N/A,"")) -> 77.55174 | U71: =IF(OFFSET(Data!J74,0,(View!$B$27-1)*12)<>"",OFFSET(Data!J74,0,(View!$B$27-1)*12),IF($N71<>"",#N/A,"")) -> 78.25043 | V71: OK
K72: =IF(OFFSET(Data!A75,0,(View!$B$27-1)*12)<>"",$B$3 + OFFSET(Data!A75,0,(View!$B$27-1)*12),"") -> 44474.39197 | L72: =IF(OFFSET(Data!B75,0,(View!$B$27-1)*12)<>"",OFFSET(Data!B75,0,(View!$B$27-1)*12),"") -> 71 | M72: =IF(OFFSET(Data!C75,0,(View!$B$27-1)*12)<>"",OFFSET(Data!C75,0,(View!$B$27-1)*12),"") -> 75.28672 | N72: =IF(OFFSET(Data!D75,0,(View!$B$27-1)*12)<>"",OFFSET(Data!D75,0,(View!$B$27-1)*12),"") -> 76.37933 | O72: 43444319.61 | P72: OK | Q72: =IF(OFFSET(Data!F75,0,(View!$B$27-1)*12)<>"",OFFSET(Data!F75,0,(View!$B$27-1)*12),IF($M72<>"",#N/A,"")) -> 77.02367 | R72: =IF(OFFSET(Data!G75,0,(View!$B$27-1)*12)<>"",OFFSET(Data!G75,0,(View!$B$27-1)*12),IF($N72<>"",#N/A,"")) -> 77.63905 | S72: OK | T72: =IF(OFFSET(Data!I75,0,(View!$B$27-1)*12)<>"",OFFSET(Data!I75,0,(View!$B$27-1)*12),IF($M72<>"",#N/A,"")) -> 77.56476 | U72: =IF(OFFSET(Data!J75,0,(View!$B$27-1)*12)<>"",OFFSET(Data!J75,0,(View!$B$27-1)*12),IF($N72<>"",#N/A,"")) -> 78.39082 | V72: OK
K73: =IF(OFFSET(Data!A76,0,(View!$B$27-1)*12)<>"",$B$3 + OFFSET(Data!A76,0,(View!$B$27-1)*12),"") -> 44474.39198 | L73: =IF(OFFSET(Data!B76,0,(View!$B$27-1)*12)<>"",OFFSET(Data!B76,0,(View!$B$27-1)*12),"") -> 72 | M73: =IF(OFFSET(Data!C76,0,(View!$B$27-1)*12)<>"",OFFSET(Data!C76,0,(View!$B$27-1)*12),"") -> 75.30164 | N73: =IF(OFFSET(Data!D76,0,(View!$B$27-1)*12)<>"",OFFSET(Data!D76,0,(View!$B$27-1)*12),"") -> 76.24806 | O73: 42150817.3 | P73: OK | Q73: =IF(OFFSET(Data!F76,0,(View!$B$27-1)*12)<>"",OFFSET(Data!F76,0,(View!$B$27-1)*12),IF($M73<>"",#N/A,"")) -> 77.03094 | R73: =IF(OFFSET(Data!G76,0,(View!$B$27-1)*12)<>"",OFFSET(Data!G76,0,(View!$B$27-1)*12),IF($N73<>"",#N/A,"")) -> 77.51912 | S73: OK | T73: =IF(OFFSET(Data!I76,0,(View!$B$27-1)*12)<>"",OFFSET(Data!I76,0,(View!$B$27-1)*12),IF($M73<>"",#N/A,"")) -> 77.57652 | U73: =IF(OFFSET(Data!J76,0,(View!$B$27-1)*12)<>"",OFFSET(Data!J76,0,(View!$B$27-1)*12),IF($N73<>"",#N/A,"")) -> 78.33875 | V73: OK
K74: =IF(OFFSET(Data!A77,0,(View!$B$27-1)*12)<>"",$B$3 + OFFSET(Data!A77,0,(View!$B$27-1)*12),"") -> 44474.39199 | L74: =IF(OFFSET(Data!B77,0,(View!$B$27-1)*12)<>"",OFFSET(Data!B77,0,(View!$B$27-1)*12),"") -> 73 | M74: =IF(OFFSET(Data!C77,0,(View!$B$27-1)*12)<>"",OFFSET(Data!C77,0,(View!$B$27-1)*12),"") -> 75.31832 | N74: =IF(OFFSET(Data!D77,0,(View!$B$27-1)*12)<>"",OFFSET(Data!D77,0,(View!$B$27-1)*12),"") -> 76.37721 | O74: 43423117.52 | P74: OK | Q74: =IF(OFFSET(Data!F77,0,(View!$B$27-1)*12)<>"",OFFSET(Data!F77,0,(View!$B$27-1)*12),IF($M74<>"",#N/A,"")) -> 77.03962 | R74: =IF(OFFSET(Data!G77,0,(View!$B$27-1)*12)<>"",OFFSET(Data!G77,0,(View!$B$27-1)*12),IF($N74<>"",#N/A,"")) -> 77.62232 | S74: OK | T74: =IF(OFFSET(Data!I77,0,(View!$B$27-1)*12)<>"",OFFSET(Data!I77,0,(View!$B$27-1)*12),IF($M74<>"",#N/A,"")) -> 77.58771 | U74: =IF(OFFSET(Data!J77,0,(View!$B$27-1)*12)<>"",OFFSET(Data!J77,0,(View!$B$27-1)*12),IF($N74<>"",#N/A,"")) -> 78.32616 | V74: OK
K75: =IF(OFFSET(Data!A78,0,(View!$B$27-1)*12)<>"",$B$3 + OFFSET(Data!A78,0,(View!$B$27-1)*12),"") -> 44474.392 | L75: =IF(OFFSET(Data!B78,0,(View!$B$27-1)*12)<>"",OFFSET(Data!B78,0,(View!$B$27-1)*12),"") -> 74 | M75: =IF(OFFSET(Data!C78,0,(View!$B$27-1)*12)<>"",OFFSET(Data!C78,0,(View!$B$27-1)*12),"") -> 75.3382 | N75: =IF(OFFSET(Data!D78,0,(View!$B$27-1)*12)<>"",OFFSET(Data!D78,0,(View!$B$27-1)*12),"") -> 76.58785 | O75: 45581120.81 | P75: OK | Q75: =IF(OFFSET(Data!F78,0,(View!$B$27-1)*12)<>"",OFFSET(Data!F78,0,(View!$B$27-1)*12),IF($M75<>"",#N/A,"")) -> 77.04903 | R75: =IF(OFFSET(Data!G78,0,(View!$B$27-1)*12)<>"",OFFSET(Data!G78,0,(View!$B$27-1)*12),IF($N75<>"",#N/A,"")) -> 77.68658 | S75: OK | T75: =IF(OFFSET(Data!I78,0,(View!$B$27-1)*12)<>"",OFFSET(Data!I78,0,(View!$B$27-1)*12),IF($M75<>"",#N/A,"")) -> 77.60131 | U75: =IF(OFFSET(Data!J78,0,(View!$B$27-1)*12)<>"",OFFSET(Data!J78,0,(View!$B$27-1)*12),IF($N75<>"",#N/A,"")) -> 78.49438 | V75: OK
K76: =IF(OFFSET(Data!A79,0,(View!$B$27-1)*12)<>"",$B$3 + OFFSET(Data!A79,0,(View!$B$27-1)*12),"") -> 44474.39201 | L76: =IF(OFFSET(Data!B79,0,(View!$B$27-1)*12)<>"",OFFSET(Data!B79,0,(View!$B$27-1)*12),"") -> 75 | M76: =IF(OFFSET(Data!C79,0,(View!$B$27-1)*12)<>"",OFFSET(Data!C79,0,(View!$B$27-1)*12),"") -> 75.36106 | N76: =IF(OFFSET(Data!D79,0,(View!$B$27-1)*12)<>"",OFFSET(Data!D79,0,(View!$B$27-1)*12),"") -> 76.78628 | O76: 47712041.55 | P76: OK | Q76: =IF(OFFSET(Data!F79,0,(View!$B$27-1)*12)<>"",OFFSET(Data!F79,0,(View!$B$27-1)*12),IF($M76<>"",#N/A,"")) -> 77.06416 | R76: =IF(OFFSET(Data!G79,0,(View!$B$27-1)*12)<>"",OFFSET(Data!G79,0,(View!$B$27-1)*12),IF($N76<>"",#N/A,"")) -> 78.05843 | S76: OK | T76: =IF(OFFSET(Data!I79,0,(View!$B$27-1)*12)<>"",OFFSET(Data!I79,0,(View!$B$27-1)*12),IF($M76<>"",#N/A,"")) -> 77.61971 | U76: =IF(OFFSET(Data!J79,0,(View!$B$27-1)*12)<>"",OFFSET(Data!J79,0,(View!$B$27-1)*12),IF($N76<>"",#N/A,"")) -> 78.80173 | V76: OK
K77: =IF(OFFSET(Data!A80,0,(View!$B$27-1)*12)<>"",$B$3 + OFFSET(Data!A80,0,(View!$B$27-1)*12),"") -> 44474.39203 | L77: =IF(OFFSET(Data!B80,0,(View!$B$27-1)*12)<>"",OFFSET(Data!B80,0,(View!$B$27-1)*12),"") -> 76 | M77: =IF(OFFSET(Data!C80,0,(View!$B$27-1)*12)<>"",OFFSET(Data!C80,0,(View!$B$27-1)*12),"") -> 75.39429 | N77: =IF(OFFSET(Data!D80,0,(View!$B$27-1)*12)<>"",OFFSET(Data!D80,0,(View!$B$27-1)*12),"") -> 77.35799 | O77: 54425070.46 | P77: OK | Q77: =IF(OFFSET(Data!F80,0,(View!$B$27-1)*12)<>"",OFFSET(Data!F80,0,(View!$B$27-1)*12),IF($M77<>"",#N/A,"")) -> 77.08637 | R77: =IF(OFFSET(Data!G80,0,(View!$B$27-1)*12)<>"",OFFSET(Data!G80,0,(View!$B$27-1)*12),IF($N77<>"",#N/A,"")) -> 78.49328 | S77: OK | T77: =IF(OFFSET(Data!I80,0,(View!$B$27-1)*12)<>"",OFFSET(Data!I80,0,(View!$B$27-1)*12),IF($M77<>"",#N/A,"")) -> 77.64581 | U77: =IF(OFFSET(Data!J80,0,(View!$B$27-1)*12)<>"",OFFSET(Data!J80,0,(View!$B$27-1)*12),IF($N77<>"",#N/A,"")) -> 79.25758 | V77: OK
K78: =IF(OFFSET(Data!A81,0,(View!$B$27-1)*12)<>"",$B$3 + OFFSET(Data!A81,0,(View!$B$27-1)*12),"") -> 44474.39204 | L78: =IF(OFFSET(Data!B81,0,(View!$B$27-1)*12)<>"",OFFSET(Data!B81,0,(View!$B$27-1)*12),"") -> 77 | M78: =IF(OFFSET(Data!C81,0,(View!$B$27-1)*12)<>"",OFFSET(Data!C81,0,(View!$B$27-1)*12),"") -> 75.45626 | N78: =IF(OFFSET(Data!D81,0,(View!$B$27-1)*12)<>"",OFFSET(Data!D81,0,(View!$B$27-1)*12),"") -> 78.6301 | O78: 72947430.68 | P78: OK | Q78: =IF(OFFSET(Data!F81,0,(View!$B$27-1)*12)<>"",OFFSET(Data!F81,0,(View!$B$27-1)*12),IF($M78<>"",#N/A,"")) -> 77.13538 | R78: =IF(OFFSET(Data!G81,0,(View!$B$27-1)*12)<>"",OFFSET(Data!G81,0,(View!$B$27-1)*12),IF($N78<>"",#N/A,"")) -> 79.81393 | S78: OK | T78: =IF(OFFSET(Data!I81,0,(View!$B$27-1)*12)<>"",OFFSET(Data!I81,0,(View!$B$27-1)*12),IF($M78<>"",#N/A,"")) -> 77.69802 | U78: =IF(OFFSET(Data!J81,0,(View!$B$27-1)*12)<>"",OFFSET(Data!J81,0,(View!$B$27-1)*12),IF($N78<>"",#N/A,"")) -> 80.50428 | V78: OK
K79: =IF(OFFSET(Data!A82,0,(View!$B$27-1)*12)<>"",$B$3 + OFFSET(Data!A82,0,(View!$B$27-1)*12),"") -> 44474.39205 | L79: =IF(OFFSET(Data!B82,0,(View!$B$27-1)*12)<>"",OFFSET(Data!B82,0,(View!$B$27-1)*12),"") -> 78 | M79: =IF(OFFSET(Data!C82,0,(View!$B$27-1)*12)<>"",OFFSET(Data!C82,0,(View!$B$27-1)*12),"") -> 75.52045 | N79: =IF(OFFSET(Data!D82,0,(View!$B$27-1)*12)<>"",OFFSET(Data!D82,0,(View!$B$27-1)*12),"") -> 78.80347 | O79: 75918391.85 | P79: OK | Q79: =IF(OFFSET(Data!F82,0,(View!$B$27-1)*12)<>"",OFFSET(Data!F82,0,(View!$B$27-1)*12),IF($M79<>"",#N/A,"")) -> 77.18712 | R79: =IF(OFFSET(Data!G82,0,(View!$B$27-1)*12)<>"",OFFSET(Data!G82,0,(View!$B$27-1)*12),IF($N79<>"",#N/A,"")) -> 80.00164 | S79: OK | T79: =IF(OFFSET(Data!I82,0,(View!$B$27-1)*12)<>"",OFFSET(Data!I82,0,(View!$B$27-1)*12),IF($M79<>"",#N/A,"")) -> 77.7521 | U79: =IF(OFFSET(Data!J82,0,(View!$B$27-1)*12)<>"",OFFSET(Data!J82,0,(View!$B$27-1)*12),IF($N79<>"",#N/A,"")) -> 80.65878 | V79: OK
K80: =IF(OFFSET(Data!A83,0,(View!$B$27-1)*12)<>"",$B$3 + OFFSET(Data!A83,0,(View!$B$27-1)*12),"") -> 44474.39206 | L80: =IF(OFFSET(Data!B83,0,(View!$B$27-1)*12)<>"",OFFSET(Data!B83,0,(View!$B$27-1)*12),"") -> 79 | M80: =IF(OFFSET(Data!C83,0,(View!$B$27-1)*12)<>"",OFFSET(Data!C83,0,(View!$B$27-1)*12),"") -> 75.56039 | N80: =IF(OFFSET(Data!D83,0,(View!$B$27-1)*12)<>"",OFFSET(Data!D83,0,(View!$B$27-1)*12),"") -> 77.90079 | O80: 61670717.33 | P80: OK | Q80: =IF(OFFSET(Data!F83,0,(View!$B$27-1)*12)<>"",OFFSET(Data!F83,0,(View!$B$27-1)*12),IF($M80<>"",#N/A,"")) -> 77.22236 | R80: =IF(OFFSET(Data!G83,0,(View!$B$27-1)*12)<>"",OFFSET(Data!G83,0,(View!$B$27-1)*12),IF($N80<>"",#N/A,"")) -> 79.34496 | S80: OK | T80: =IF(OFFSET(Data!I83,0,(View!$B$27-1)*12)<>"",OFFSET(Data!I83,0,(View!$B$27-1)*12),IF($M80<>"",#N/A,"")) -> 77.78914 | U80: =IF(OFFSET(Data!J83,0,(View!$B$27-1)*12)<>"",OFFSET(Data!J83,0,(View!$B$27-1)*12),IF($N80<>"",#N/A,"")) -> 79.9966 | V80: OK
K81: =IF(OFFSET(Data!A84,0,(View!$B$27-1)*12)<>"",$B$3 + OFFSET(Data!A84,0,(View!$B$27-1)*12),"") -> 44474.39207 | L81: =IF(OFFSET(Data!B84,0,(View!$B$27-1)*12)<>"",OFFSET(Data!B84,0,(View!$B$27-1)*12),"") -> 80 | M81: =IF(OFFSET(Data!C84,0,(View!$B$27-1)*12)<>"",OFFSET(Data!C84,0,(View!$B$27-1)*12),"") -> 75.5058 | N81: =IF(OFFSET(Data!D84,0,(View!$B$27-1)*12)<>"",OFFSET(Data!D84,0,(View!$B$27-1)*12),"") -> 44.19205 | O81: 26254.57546 | P81: OK | Q81: =IF(OFFSET(Data!F84,0,(View!$B$27-1)*12)<>"",OFFSET(Data!F84,0,(View!$B$27-1)*12),IF($M81<>"",#N/A,"")) -> 77.16866 | R81: =IF(OFFSET(Data!G84,0,(View!$B$27-1)*12)<>"",OFFSET(Data!G84,0,(View!$B$27-1)*12),IF($N81<>"",#N/A,"")) -> 59.49171 | S81: OK | T81: =IF(OFFSET(Data!I84,0,(View!$B$27-1)*12)<>"",OFFSET(Data!I84,0,(View!$B$27-1)*12),IF($M81<>"",#N/A,"")) -> 77.73805 | U81: =IF(OFFSET(Data!J84,0,(View!$B$27-1)*12)<>"",OFFSET(Data!J84,0,(View!$B$27-1)*12),IF($N81<>"",#N/A,"")) -> 65.8866 | V81: OK
K82: =IF(OFFSET(Data!A85,0,(View!$B$27-1)*12)<>"",$B$3 + OFFSET(Data!A85,0,(View!$B$27-1)*12),"") -> 44474.39208 | L82: =IF(OFFSET(Data!B85,0,(View!$B$27-1)*12)<>"",OFFSET(Data!B85,0,(View!$B$27-1)*12),"") -> 81 | M82: =IF(OFFSET(Data!C85,0,(View!$B$27-1)*12)<>"",OFFSET(Data!C85,0,(View!$B$27-1)*12),"") -> 75.46159 | N82: =IF(OFFSET(Data!D85,0,(View!$B$27-1)*12)<>"",OFFSET(Data!D85,0,(View!$B$27-1)*12),"") -> 68.04674 | O82: 6377845.581 | P82: OK | Q82: =IF(OFFSET(Data!F85,0,(View!$B$27-1)*12)<>"",OFFSET(Data!F85,0,(View!$B$27-1)*12),IF($M82<>"",#N/A,"")) -> 77.13419 | R82: =IF(OFFSET(Data!G85,0,(View!$B$27-1)*12)<>"",OFFSET(Data!G85,0,(View!$B$27-1)*12),IF($N82<>"",#N/A,"")) -> 72.72915 | S82: OK | T82: =IF(OFFSET(Data!I85,0,(View!$B$27-1)*12)<>"",OFFSET(Data!I85,0,(View!$B$27-1)*12),IF($M82<>"",#N/A,"")) -> 77.7021 | U82: =IF(OFFSET(Data!J85,0,(View!$B$27-1)*12)<>"",OFFSET(Data!J85,0,(View!$B$27-1)*12),IF($N82<>"",#N/A,"")) -> 72.95076 | V82: OK
K83: =IF(OFFSET(Data!A86,0,(View!$B$27-1)*12)<>"",$B$3 + OFFSET(Data!A86,0,(View!$B$27-1)*12),"") -> 44474.39209 | L83: =IF(OFFSET(Data!B86,0,(View!$B$27-1)*12)<>"",OFFSET(Data!B86,0,(View!$B$27-1)*12),"") -> 82 | M83: =IF(OFFSET(Data!C86,0,(View!$B$27-1)*12)<>"",OFFSET(Data!C86,0,(View!$B$27-1)*12),"") -> 75.44456 | N83: =IF(OFFSET(Data!D86,0,(View!$B$27-1)*12)<>"",OFFSET(Data!D86,0,(View!$B$27-1)*12),"") -> 73.78185 | O83: 23888286.55 | P83: OK | Q83: =IF(OFFSET(Data!F86,0,(View!$B$27-1)*12)<>"",OFFSET(Data!F86,0,(View!$B$27-1)*12),IF($M83<>"",#N/A,"")) -> 77.12037 | R83: =IF(OFFSET(Data!G86,0,(View!$B$27-1)*12)<>"",OFFSET(Data!G86,0,(View!$B$27-1)*12),IF($N83<>"",#N/A,"")) -> 75.82294 | S83: OK | T83: =IF(OFFSET(Data!I86,0,(View!$B$27-1)*12)<>"",OFFSET(Data!I86,0,(View!$B$27-1)*12),IF($M83<>"",#N/A,"")) -> 77.68432 | U83: =IF(OFFSET(Data!J86,0,(View!$B$27-1)*12)<>"",OFFSET(Data!J86,0,(View!$B$27-1)*12),IF($N83<>"",#N/A,"")) -> 75.9311 | V83: OK
K84: =IF(OFFSET(Data!A87,0,(View!$B$27-1)*12)<>"",$B$3 + OFFSET(Data!A87,0,(View!$B$27-1)*12),"") -> 44474.39211 | L84: =IF(OFFSET(Data!B87,0,(View!$B$27-1)*12)<>"",OFFSET(Data!B87,0,(View!$B$27-1)*12),"") -> 83 | M84: =IF(OFFSET(Data!C87,0,(View!$B$27-1)*12)<>"",OFFSET(Data!C87,0,(View!$B$27-1)*12),"") -> 75.41454 | N84: =IF(OFFSET(Data!D87,0,(View!$B$27-1)*12)<>"",OFFSET(Data!D87,0,(View!$B$27-1)*12),"") -> 71.75945 | O84: 14994949.24 | P84: OK | Q84: =IF(OFFSET(Data!F87,0,(View!$B$27-1)*12)<>"",OFFSET(Data!F87,0,(View!$B$27-1)*12),IF($M84<>"",#N/A,"")) -> 77.0948 | R84: =IF(OFFSET(Data!G87,0,(View!$B$27-1)*12)<>"",OFFSET(Data!G87,0,(View!$B$27-1)*12),IF($N84<>"",#N/A,"")) -> 74.21987 | S84: OK | T84: =IF(OFFSET(Data!I87,0,(View!$B$27-1)*12)<>"",OFFSET(Data!I87,0,(View!$B$27-1)*12),IF($M84<>"",#N/A,"")) -> 77.65625 | U84: =IF(OFFSET(Data!J87,0,(View!$B$27-1)*12)<>"",OFFSET(Data!J87,0,(View!$B$27-1)*12),IF($N84<>"",#N/A,"")) -> 74.36166 | V84: OK
K85: =IF(OFFSET(Data!A88,0,(View!$B$27-1)*12)<>"",$B$3 + OFFSET(Data!A88,0,(View!$B$27-1)*12),"") -> 44474.39212 | L85: =IF(OFFSET(Data!B88,0,(View!$B$27-1)*12)<>"",OFFSET(Data!B88,0,(View!$B$27-1)*12),"") -> 84 | M85: =IF(OFFSET(Data!C88,0,(View!$B$27-1)*12)<>"",OFFSET(Data!C88,0,(View!$B$27-1)*12),"") -> 75.37793 | N85: =IF(OFFSET(Data!D88,0,(View!$B$27-1)*12)<>"",OFFSET(Data!D88,0,(View!$B$27-1)*12),"") -> 70.11265 | O85: 10262779.55 | P85: OK | Q85: =IF(OFFSET(Data!F88,0,(View!$B$27-1)*12)<>"",OFFSET(Data!F88,0,(View!$B$27-1)*12),IF($M85<>"",#N/A,"")) -> 77.05795 | R85: =IF(OFFSET(Data!G88,0,(View!$B$27-1)*12)<>"",OFFSET(Data!G88,0,(View!$B$27-1)*12),IF($N85<>"",#N/A,"")) -> 71.72267 | S85: OK | T85: =IF(OFFSET(Data!I88,0,(View!$B$27-1)*12)<>"",OFFSET(Data!I88,0,(View!$B$27-1)*12),IF($M85<>"",#N/A,"")) -> 77.61821 | U85: =IF(OFFSET(Data!J88,0,(View!$B$27-1)*12)<>"",OFFSET(Data!J88,0,(View!$B$27-1)*12),IF($N85<>"",#N/A,"")) -> 71.92743 | V85: OK
K86: =IF(OFFSET(Data!A89,0,(View!$B$27-1)*12)<>"",$B$3 + OFFSET(Data!A89,0,(View!$B$27-1)*12),"") -> 44474.39213 | L86: =IF(OFFSET(Data!B89,0,(View!$B$27-1)*12)<>"",OFFSET(Data!B89,0,(View!$B$27-1)*12),"") -> 85 | M86: =IF(OFFSET(Data!C89,0,(View!$B$27-1)*12)<>"",OFFSET(Data!C89,0,(View!$B$27-1)*12),"") -> 75.32693 | N86: =IF(OFFSET(Data!D89,0,(View!$B$27-1)*12)<>"",OFFSET(Data!D89,0,(View!$B$27-1)*12),"") -> 54.18217 | O86: 261949.1539 | P86: OK | Q86: =IF(OFFSET(Data!F89,0,(View!$B$27-1)*12)<>"",OFFSET(Data!F89,0,(View!$B$27-1)*12),IF($M86<>"",#N/A,"")) -> 77.00876 | R86: =IF(OFFSET(Data!G89,0,(View!$B$27-1)*12)<>"",OFFSET(Data!G89,0,(View!$B$27-1)*12),IF($N86<>"",#N/A,"")) -> 63.36512 | S86: OK | T86: =IF(OFFSET(Data!I89,0,(View!$B$27-1)*12)<>"",OFFSET(Data!I89,0,(View!$B$27-1)*12),IF($M86<>"",#N/A,"")) -> 77.56963 | U86: =IF(OFFSET(Data!J89,0,(View!$B$27-1)*12)<>"",OFFSET(Data!J89,0,(View!$B$27-1)*12),IF($N86<>"",#N/A,"")) -> 64.97021 | V86: OK
K87: =IF(OFFSET(Data!A90,0,(View!$B$27-1)*12)<>"",$B$3 + OFFSET(Data!A90,0,(View!$B$27-1)*12),"") -> 44474.39214 | L87: =IF(OFFSET(Data!B90,0,(View!$B$27-1)*12)<>"",OFFSET(Data!B90,0,(View!$B$27-1)*12),"") -> 86 | M87: =IF(OFFSET(Data!C90,0,(View!$B$27-1)*12)<>"",OFFSET(Data!C90,0,(View!$B$27-1)*12),"") -> 75.28986 | N87: =IF(OFFSET(Data!D90,0,(View!$B$27-1)*12)<>"",OFFSET(Data!D90,0,(View!$B$27-1)*12),"") -> 69.62846 | O87: 9180070.152 | P87: OK | Q87: =IF(OFFSET(Data!F90,0,(View!$B$27-1)*12)<>"",OFFSET(Data!F90,0,(View!$B$27-1)*12),IF($M87<>"",#N/A,"")) -> 76.9837 | R87: =IF(OFFSET(Data!G90,0,(View!$B$27-1)*12)<>"",OFFSET(Data!G90,0,(View!$B$27-1)*12),IF($N87<>"",#N/A,"")) -> 74.04382 | S87: OK | T87: =IF(OFFSET(Data!I90,0,(View!$B$27-1)*12)<>"",OFFSET(Data!I90,0,(View!$B$27-1)*12),IF($M87<>"",#N/A,"")) -> 77.54238 | U87: =IF(OFFSET(Data!J90,0,(View!$B$27-1)*12)<>"",OFFSET(Data!J90,0,(View!$B$27-1)*12),IF($N87<>"",#N/A,"")) -> 74.21815 | V87: OK
K88: =IF(OFFSET(Data!A91,0,(View!$B$27-1)*12)<>"",$B$3 + OFFSET(Data!A91,0,(View!$B$27-1)*12),"") -> 44474.39215 | L88: =IF(OFFSET(Data!B91,0,(View!$B$27-1)*12)<>"",OFFSET(Data!B91,0,(View!$B$27-1)*12),"") -> 87 | M88: =IF(OFFSET(Data!C91,0,(View!$B$27-1)*12)<>"",OFFSET(Data!C91,0,(View!$B$27-1)*12),"") -> 75.2458 | N88: =IF(OFFSET(Data!D91,0,(View!$B$27-1)*12)<>"",OFFSET(Data!D91,0,(View!$B$27-1)*12),"") -> 66.14905 | O88: 4120073.844 | P88: OK | Q88: =IF(OFFSET(Data!F91,0,(View!$B$27-1)*12)<>"",OFFSET(Data!F91,0,(View!$B$27-1)*12),IF($M88<>"",#N/A,"")) -> 76.94549 | R88: =IF(OFFSET(Data!G91,0,(View!$B$27-1)*12)<>"",OFFSET(Data!G91,0,(View!$B$27-1)*12),IF($N88<>"",#N/A,"")) -> 70.74612 | S88: OK | T88: =IF(OFFSET(Data!I91,0,(View!$B$27-1)*12)<>"",OFFSET(Data!I91,0,(View!$B$27-1)*12),IF($M88<>"",#N/A,"")) -> 77.50362 | U88: =IF(OFFSET(Data!J91,0,(View!$B$27-1)*12)<>"",OFFSET(Data!J91,0,(View!$B$27-1)*12),IF($N88<>"",#N/A,"")) -> 71.10514 | V88: OK
K89: =IF(OFFSET(Data!A92,0,(View!$B$27-1)*12)<>"",$B$3 + OFFSET(Data!A92,0,(View!$B$27-1)*12),"") -> 44474.39216 | L89: =IF(OFFSET(Data!B92,0,(View!$B$27-1)*12)<>"",OFFSET(Data!B92,0,(View!$B$27-1)*12),"") -> 88 | M89: =IF(OFFSET(Data!C92,0,(View!$B$27-1)*12)<>"",OFFSET(Data!C92,0,(View!$B$27-1)*12),"") -> 75.20502 | N89: =IF(OFFSET(Data!D92,0,(View!$B$27-1)*12)<>"",OFFSET(Data!D92,0,(View!$B$27-1)*12),"") -> 67.73254 | O89: 5932722.023 | P89: OK | Q89: =IF(OFFSET(Data!F92,0,(View!$B$27-1)*12)<>"",OFFSET(Data!F92,0,(View!$B$27-1)*12),IF($M89<>"",#N/A,"")) -> 76.90993 | R89: =IF(OFFSET(Data!G92,0,(View!$B$27-1)*12)<>"",OFFSET(Data!G92,0,(View!$B$27-1)*12),IF($N89<>"",#N/A,"")) -> 71.45407 | S89: OK | T89: =IF(OFFSET(Data!I92,0,(View!$B$27-1)*12)<>"",OFFSET(Data!I92,0,(View!$B$27-1)*12),IF($M89<>"",#N/A,"")) -> 77.46699 | U89: =IF(OFFSET(Data!J92,0,(View!$B$27-1)*12)<>"",OFFSET(Data!J92,0,(View!$B$27-1)*12),IF($N89<>"",#N/A,"")) -> 71.66483 | V89: OK
K90: =IF(OFFSET(Data!A93,0,(View!$B$27-1)*12)<>"",$B$3 + OFFSET(Data!A93,0,(View!$B$27-1)*12),"") -> 44474.39218 | L90: =IF(OFFSET(Data!B93,0,(View!$B$27-1)*12)<>"",OFFSET(Data!B93,0,(View!$B$27-1)*12),"") -> 89 | M90: =IF(OFFSET(Data!C93,0,(View!$B$27-1)*12)<>"",OFFSET(Data!C93,0,(View!$B$27-1)*12),"") -> 75.15691 | N90: =IF(OFFSET(Data!D93,0,(View!$B$27-1)*12)<>"",OFFSET(Data!D93,0,(View!$B$27-1)*12),"") -> 58.16508 | O90: 655402.3587 | P90: OK | Q90: =IF(OFFSET(Data!F93,0,(View!$B$27-1)*12)<>"",OFFSET(Data!F93,0,(View!$B$27-1)*12),IF($M90<>"",#N/A,"")) -> 76.86338 | R90: =IF(OFFSET(Data!G93,0,(View!$B$27-1)*12)<>"",OFFSET(Data!G93,0,(View!$B$27-1)*12),IF($N90<>"",#N/A,"")) -> 64.00189 | S90: OK | T90: =IF(OFFSET(Data!I93,0,(View!$B$27-1)*12)<>"",OFFSET(Data!I93,0,(View!$B$27-1)*12),IF($M90<>"",#N/A,"")) -> 77.42083 | U90: =IF(OFFSET(Data!J93,0,(View!$B$27-1)*12)<>"",OFFSET(Data!J93,0,(View!$B$27-1)*12),IF($N90<>"",#N/A,"")) -> 65.18104 | V90: OK
K91: =IF(OFFSET(Data!A94,0,(View!$B$27-1)*12)<>"",$B$3 + OFFSET(Data!A94,0,(View!$B$27-1)*12),"") -> 44474.39219 | L91: =IF(OFFSET(Data!B94,0,(View!$B$27-1)*12)<>"",OFFSET(Data!B94,0,(View!$B$27-1)*12),"") -> 90 | M91: =IF(OFFSET(Data!C94,0,(View!$B$27-1)*12)<>"",OFFSET(Data!C94,0,(View!$B$27-1)*12),"") -> 75.16164 | N91: =IF(OFFSET(Data!D94,0,(View!$B$27-1)*12)<>"",OFFSET(Data!D94,0,(View!$B$27-1)*12),"") -> 75.56299 | O91: 35999709.81 | P91: OK | Q91: =IF(OFFSET(Data!F94,0,(View!$B$27-1)*12)<>"",OFFSET(Data!F94,0,(View!$B$27-1)*12),IF($M91<>"",#N/A,"")) -> 76.87773 | R91: =IF(OFFSET(Data!G94,0,(View!$B$27-1)*12)<>"",OFFSET(Data!G94,0,(View!$B$27-1)*12),IF($N91<>"",#N/A,"")) -> 77.9956 | S91: OK | T91: =IF(OFFSET(Data!I94,0,(View!$B$27-1)*12)<>"",OFFSET(Data!I94,0,(View!$B$27-1)*12),IF($M91<>"",#N/A,"")) -> 77.42817 | U91: =IF(OFFSET(Data!J94,0,(View!$B$27-1)*12)<>"",OFFSET(Data!J94,0,(View!$B$27-1)*12),IF($N91<>"",#N/A,"")) -> 78.03666 | V91: OK
K92: =IF(OFFSET(Data!A95,0,(View!$B$27-1)*12)<>"",$B$3 + OFFSET(Data!A95,0,(View!$B$27-1)*12),"") -> 44474.3922 | L92: =IF(OFFSET(Data!B95,0,(View!$B$27-1)*12)<>"",OFFSET(Data!B95,0,(View!$B$27-1)*12),"") -> 91 | M92: =IF(OFFSET(Data!C95,0,(View!$B$27-1)*12)<>"",OFFSET(Data!C95,0,(View!$B$27-1)*12),"") -> 75.13071 | N92: =IF(OFFSET(Data!D95,0,(View!$B$27-1)*12)<>"",OFFSET(Data!D95,0,(View!$B$27-1)*12),"") -> 70.65263 | O92: 11621521.77 | P92: OK | Q92: =IF(OFFSET(Data!F95,0,(View!$B$27-1)*12)<>"",OFFSET(Data!F95,0,(View!$B$27-1)*12),IF($M92<>"",#N/A,"")) -> 76.84945 | R92: =IF(OFFSET(Data!G95,0,(View!$B$27-1)*12)<>"",OFFSET(Data!G95,0,(View!$B$27-1)*12),IF($N92<>"",#N/A,"")) -> 72.99918 | S92: OK | T92: =IF(OFFSET(Data!I95,0,(View!$B$27-1)*12)<>"",OFFSET(Data!I95,0,(View!$B$27-1)*12),IF($M92<>"",#N/A,"")) -> 77.39821 | U92: =IF(OFFSET(Data!J95,0,(View!$B$27-1)*12)<>"",OFFSET(Data!J95,0,(View!$B$27-1)*12),IF($N92<>"",#N/A,"")) -> 73.16066 | V92: OK
K93: =IF(OFFSET(Data!A96,0,(View!$B$27-1)*12)<>"",$B$3 + OFFSET(Data!A96,0,(View!$B$27-1)*12),"") -> 44474.39221 | L93: =IF(OFFSET(Data!B96,0,(View!$B$27-1)*12)<>"",OFFSET(Data!B96,0,(View!$B$27-1)*12),"") -> 92 | M93: =IF(OFFSET(Data!C96,0,(View!$B$27-1)*12)<>"",OFFSET(Data!C96,0,(View!$B$27-1)*12),"") -> 75.10088 | N93: =IF(OFFSET(Data!D96,0,(View!$B$27-1)*12)<>"",OFFSET(Data!D96,0,(View!$B$27-1)*12),"") -> 70.81496 | O93: 12064129.77 | P93: OK | Q93: =IF(OFFSET(Data!F96,0,(View!$B$27-1)*12)<>"",OFFSET(Data!F96,0,(View!$B$27-1)*12),IF($M93<>"",#N/A,"")) -> 76.83037 | R93: =IF(OFFSET(Data!G96,0,(View!$B$27-1)*12)<>"",OFFSET(Data!G96,0,(View!$B$27-1)*12),IF($N93<>"",#N/A,"")) -> 74.60616 | S93: OK | T93: =IF(OFFSET(Data!I96,0,(View!$B$27-1)*12)<>"",OFFSET(Data!I96,0,(View!$B$27-1)*12),IF($M93<>"",#N/A,"")) -> 77.3768 | U93: =IF(OFFSET(Data!J96,0,(View!$B$27-1)*12)<>"",OFFSET(Data!J96,0,(View!$B$27-1)*12),IF($N93<>"",#N/A,"")) -> 74.7833 | V93: OK
K94: =IF(OFFSET(Data!A97,0,(View!$B$27-1)*12)<>"",$B$3 + OFFSET(Data!A97,0,(View!$B$27-1)*12),"") -> 44474.39222 | L94: =IF(OFFSET(Data!B97,0,(View!$B$27-1)*12)<>"",OFFSET(Data!B97,0,(View!$B$27-1)*12),"") -> 93 | M94: =IF(OFFSET(Data!C97,0,(View!$B$27-1)*12)<>"",OFFSET(Data!C97,0,(View!$B$27-1)*12),"") -> 75.05798 | N94: =IF(OFFSET(Data!D97,0,(View!$B$27-1)*12)<>"",OFFSET(Data!D97,0,(View!$B$27-1)*12),"") -> 64.4371 | O94: 2777857.735 | P94: OK | Q94: =IF(OFFSET(Data!F97,0,(View!$B$27-1)*12)<>"",OFFSET(Data!F97,0,(View!$B$27-1)*12),IF($M94<>"",#N/A,"")) -> 76.79046 | R94: =IF(OFFSET(Data!G97,0,(View!$B$27-1)*12)<>"",OFFSET(Data!G97,0,(View!$B$27-1)*12),IF($N94<>"",#N/A,"")) -> 68.57218 | S94: OK | T94: =IF(OFFSET(Data!I97,0,(View!$B$27-1)*12)<>"",OFFSET(Data!I97,0,(View!$B$27-1)*12),IF($M94<>"",#N/A,"")) -> 77.33685 | U94: =IF(OFFSET(Data!J97,0,(View!$B$27-1)*12)<>"",OFFSET(Data!J97,0,(View!$B$27-1)*12),IF($N94<>"",#N/A,"")) -> 69.08769 | V94: OK
K95: =IF(OFFSET(Data!A98,0,(View!$B$27-1)*12)<>"",$B$3 + OFFSET(Data!A98,0,(View!$B$27-1)*12),"") -> 44474.39223 | L95: =IF(OFFSET(Data!B98,0,(View!$B$27-1)*12)<>"",OFFSET(Data!B98,0,(View!$B$27-1)*12),"") -> 94 | M95: =IF(OFFSET(Data!C98,0,(View!$B$27-1)*12)<>"",OFFSET(Data!C98,0,(View!$B$27-1)*12),"") -> 75.01175 | N95: =IF(OFFSET(Data!D98,0,(View!$B$27-1)*12)<>"",OFFSET(Data!D98,0,(View!$B$27-1)*12),"") -> 51.96436 | O95: 157194.0126 | P95: OK | Q95: =IF(OFFSET(Data!F98,0,(View!$B$27-1)*12)<>"",OFFSET(Data!F98,0,(View!$B$27-1)*12),IF($M95<>"",#N/A,"")) -> 76.74573 | R95: =IF(OFFSET(Data!G98,0,(View!$B$27-1)*12)<>"",OFFSET(Data!G98,0,(View!$B$27-1)*12),IF($N95<>"",#N/A,"")) -> 62.44226 | S95: OK | T95: =IF(OFFSET(Data!I98,0,(View!$B$27-1)*12)<>"",OFFSET(Data!I98,0,(View!$B$27-1)*12),IF($M95<>"",#N/A,"")) -> 77.29269 | U95: =IF(OFFSET(Data!J98,0,(View!$B$27-1)*12)<>"",OFFSET(Data!J98,0,(View!$B$27-1)*12),IF($N95<>"",#N/A,"")) -> 64.24638 | V95: OK
K96: =IF(OFFSET(Data!A99,0,(View!$B$27-1)*12)<>"",$B$3 + OFFSET(Data!A99,0,(View!$B$27-1)*12),"") -> 44474.39225 | L96: =IF(OFFSET(Data!B99,0,(View!$B$27-1)*12)<>"",OFFSET(Data!B99,0,(View!$B$27-1)*12),"") -> 95 | M96: =IF(OFFSET(Data!C99,0,(View!$B$27-1)*12)<>"",OFFSET(Data!C99,0,(View!$B$27-1)*12),"") -> 74.96744 | N96: =IF(OFFSET(Data!D99,0,(View!$B$27-1)*12)<>"",OFFSET(Data!D99,0,(View!$B$27-1)*12),"") -> 60.51633 | O96: 1126245.322 | P96: OK | Q96: =IF(OFFSET(Data!F99,0,(View!$B$27-1)*12)<>"",OFFSET(Data!F99,0,(View!$B$27-1)*12),IF($M96<>"",#N/A,"")) -> 76.70367 | R96: =IF(OFFSET(Data!G99,0,(View!$B$27-1)*12)<>"",OFFSET(Data!G99,0,(View!$B$27-1)*12),IF($N96<>"",#N/A,"")) -> 66.00615 | S96: OK | T96: =IF(OFFSET(Data!I99,0,(View!$B$27-1)*12)<>"",OFFSET(Data!I99,0,(View!$B$27-1)*12),IF($M96<>"",#N/A,"")) -> 77.25105 | U96: =IF(OFFSET(Data!J99,0,(View!$B$27-1)*12)<>"",OFFSET(Data!J99,0,(View!$B$27-1)*12),IF($N96<>"",#N/A,"")) -> 67.00114 | V96: OK
K97: =IF(OFFSET(Data!A100,0,(View!$B$27-1)*12)<>"",$B$3 + OFFSET(Data!A100,0,(View!$B$27-1)*12),"") -> 44474.39226 | L97: =IF(OFFSET(Data!B100,0,(View!$B$27-1)*12)<>"",OFFSET(Data!B100,0,(View!$B$27-1)*12),"") -> 96 | M97: =IF(OFFSET(Data!C100,0,(View!$B$27-1)*12)<>"",OFFSET(Data!C100,0,(View!$B$27-1)*12),"") -> 74.92266 | N97: =IF(OFFSET(Data!D100,0,(View!$B$27-1)*12)<>"",OFFSET(Data!D100,0,(View!$B$27-1)*12),"") -> 56.83111 | O97: 482070.9929 | P97: OK | Q97: =IF(OFFSET(Data!F100,0,(View!$B$27-1)*12)<>"",OFFSET(Data!F100,0,(View!$B$27-1)*12),IF($M97<>"",#N/A,"")) -> 76.66193 | R97: =IF(OFFSET(Data!G100,0,(View!$B$27-1)*12)<>"",OFFSET(Data!G100,0,(View!$B$27-1)*12),IF($N97<>"",#N/A,"")) -> 65.84024 | S97: OK | T97: =IF(OFFSET(Data!I100,0,(View!$B$27-1)*12)<>"",OFFSET(Data!I100,0,(View!$B$27-1)*12),IF($M97<>"",#N/A,"")) -> 77.2095 | U97: =IF(OFFSET(Data!J100,0,(View!$B$27-1)*12)<>"",OFFSET(Data!J100,0,(View!$B$27-1)*12),IF($N97<>"",#N/A,"")) -> 66.58892 | V97: OK
K98: =IF(OFFSET(Data!A101,0,(View!$B$27-1)*12)<>"",$B$3 + OFFSET(Data!A101,0,(View!$B$27-1)*12),"") -> 44474.39227 | L98: =IF(OFFSET(Data!B101,0,(View!$B$27-1)*12)<>"",OFFSET(Data!B101,0,(View!$B$27-1)*12),"") -> 97 | M98: =IF(OFFSET(Data!C101,0,(View!$B$27-1)*12)<>"",OFFSET(Data!C101,0,(View!$B$27-1)*12),"") -> 74.88275 | N98: =IF(OFFSET(Data!D101,0,(View!$B$27-1)*12)<>"",OFFSET(Data!D101,0,(View!$B$27-1)*12),"") -> 65.4399 | O98: 3499371.093 | P98: OK | Q98: =IF(OFFSET(Data!F101,0,(View!$B$27-1)*12)<>"",OFFSET(Data!F101,0,(View!$B$27-1)*12),IF($M98<>"",#N/A,"")) -> 76.6282 | R98: =IF(OFFSET(Data!G101,0,(View!$B$27-1)*12)<>"",OFFSET(Data!G101,0,(View!$B$27-1)*12),IF($N98<>"",#N/A,"")) -> 70.63517 | S98: OK | T98: =IF(OFFSET(Data!I101,0,(View!$B$27-1)*12)<>"",OFFSET(Data!I101,0,(View!$B$27-1)*12),IF($M98<>"",#N/A,"")) -> 77.17653 | U98: =IF(OFFSET(Data!J101,0,(View!$B$27-1)*12)<>"",OFFSET(Data!J101,0,(View!$B$27-1)*12),IF($N98<>"",#N/A,"")) -> 71.46577 | V98: OK
K99: =IF(OFFSET(Data!A102,0,(View!$B$27-1)*12)<>"",$B$3 + OFFSET(Data!A102,0,(View!$B$27-1)*12),"") -> 44474.39228 | L99: =IF(OFFSET(Data!B102,0,(View!$B$27-1)*12)<>"",OFFSET(Data!B102,0,(View!$B$27-1)*12),"") -> 98 | M99: =IF(OFFSET(Data!C102,0,(View!$B$27-1)*12)<>"",OFFSET(Data!C102,0,(View!$B$27-1)*12),"") -> 74.87025 | N99: =IF(OFFSET(Data!D102,0,(View!$B$27-1)*12)<>"",OFFSET(Data!D102,0,(View!$B$27-1)*12),"") -> 73.44637 | O99: 22112456.93 | P99: OK | Q99: =IF(OFFSET(Data!F102,0,(View!$B$27-1)*12)<>"",OFFSET(Data!F102,0,(View!$B$27-1)*12),IF($M99<>"",#N/A,"")) -> 76.62046 | R99: =IF(OFFSET(Data!G102,0,(View!$B$27-1)*12)<>"",OFFSET(Data!G102,0,(View!$B$27-1)*12),IF($N99<>"",#N/A,"")) -> 75.79482 | S99: OK | T99: =IF(OFFSET(Data!I102,0,(View!$B$27-1)*12)<>"",OFFSET(Data!I102,0,(View!$B$27-1)*12),IF($M99<>"",#N/A,"")) -> 77.16557 | U99: =IF(OFFSET(Data!J102,0,(View!$B$27-1)*12)<>"",OFFSET(Data!J102,0,(View!$B$27-1)*12),IF($N99<>"",#N/A,"")) -> 75.94456 | V99: OK
K100: =IF(OFFSET(Data!A103,0,(View!$B$27-1)*12)<>"",$B$3 + OFFSET(Data!A103,0,(View!$B$27-1)*12),"") -> 44474.39229 | L100: =IF(OFFSET(Data!B103,0,(View!$B$27-1)*12)<>"",OFFSET(Data!B103,0,(View!$B$27-1)*12),"") -> 99 | M100: =IF(OFFSET(Data!C103,0,(View!$B$27-1)*12)<>"",OFFSET(Data!C103,0,(View!$B$27-1)*12),"") -> 74.87585 | N100: =IF(OFFSET(Data!D103,0,(View!$B$27-1)*12)<>"",OFFSET(Data!D103,0,(View!$B$27-1)*12),"") -> 75.39252 | O100: 34614016.79 | P100: OK | Q100: =IF(OFFSET(Data!F103,0,(View!$B$27-1)*12)<>"",OFFSET(Data!F103,0,(View!$B$27-1)*12),IF($M100<>"",#N/A,"")) -> 76.63396 | R100: =IF(OFFSET(Data!G103,0,(View!$B$27-1)*12)<>"",OFFSET(Data!G103,0,(View!$B$27-1)*12),IF($N100<>"",#N/A,"")) -> 77.78728 | S100: OK | T100: =IF(OFFSET(Data!I103,0,(View!$B$27-1)*12)<>"",OFFSET(Data!I103,0,(View!$B$27-1)*12),IF($M100<>"",#N/A,"")) -> 77.17262 | U100: =IF(OFFSET(Data!J103,0,(View!$B$27-1)*12)<>"",OFFSET(Data!J103,0,(View!$B$27-1)*12),IF($N100<>"",#N/A,"")) -> 77.81307 | V100: OK
K101: =IF(OFFSET(Data!A104,0,(View!$B$27-1)*12)<>"",$B$3 + OFFSET(Data!A104,0,(View!$B$27-1)*12),"") -> 44474.3923 | L101: =IF(OFFSET(Data!B104,0,(View!$B$27-1)*12)<>"",OFFSET(Data!B104,0,(View!$B$27-1)*12),"") -> 100 | M101: =IF(OFFSET(Data!C104,0,(View!$B$27-1)*12)<>"",OFFSET(Data!C104,0,(View!$B$27-1)*12),"") -> 74.83958 | N101: =IF(OFFSET(Data!D104,0,(View!$B$27-1)*12)<>"",OFFSET(Data!D104,0,(View!$B$27-1)*12),"") -> 67.13449 | O101: 5169505.48 | P101: OK | Q101: =IF(OFFSET(Data!F104,0,(View!$B$27-1)*12)<>"",OFFSET(Data!F104,0,(View!$B$27-1)*12),IF($M101<>"",#N/A,"")) -> 76.60371 | R101: =IF(OFFSET(Data!G104,0,(View!$B$27-1)*12)<>"",OFFSET(Data!G104,0,(View!$B$27-1)*12),IF($N101<>"",#N/A,"")) -> 71.48651 | S101: OK | T101: =IF(OFFSET(Data!I104,0,(View!$B$27-1)*12)<>"",OFFSET(Data!I104,0,(View!$B$27-1)*12),IF($M101<>"",#N/A,"")) -> 77.14235 | U101: =IF(OFFSET(Data!J104,0,(View!$B$27-1)*12)<>"",OFFSET(Data!J104,0,(View!$B$27-1)*12),IF($N101<>"",#N/A,"")) -> 72.02244 | V101: OK
K102: =IF(OFFSET(Data!A105,0,(View!$B$27-1)*12)<>"",$B$3 + OFFSET(Data!A105,0,(View!$B$27-1)*12),"") -> 44474.39231 | L102: =IF(OFFSET(Data!B105,0,(View!$B$27-1)*12)<>"",OFFSET(Data!B105,0,(View!$B$27-1)*12),"") -> 101 | M102: =IF(OFFSET(Data!C105,0,(View!$B$27-1)*12)<>"",OFFSET(Data!C105,0,(View!$B$27-1)*12),"") -> 74.80119 | N102: =IF(OFFSET(Data!D105,0,(View!$B$27-1)*12)<>"",OFFSET(Data!D105,0,(View!$B$27-1)*12),"") -> 65.29682 | O102: 3385961.378 | P102: OK | Q102: =IF(OFFSET(Data!F105,0,(View!$B$27-1)*12)<>"",OFFSET(Data!F105,0,(View!$B$27-1)*12),IF($M102<>"",#N/A,"")) -> 76.57146 | R102: =IF(OFFSET(Data!G105,0,(View!$B$27-1)*12)<>"",OFFSET(Data!G105,0,(View!$B$27-1)*12),IF($N102<>"",#N/A,"")) -> 70.6315 | S102: OK | T102: =IF(OFFSET(Data!I105,0,(View!$B$27-1)*12)<>"",OFFSET(Data!I105,0,(View!$B$27-1)*12),IF($M102<>"",#N/A,"")) -> 77.1107 | U102: =IF(OFFSET(Data!J105,0,(View!$B$27-1)*12)<>"",OFFSET(Data!J105,0,(View!$B$27-1)*12),IF($N102<>"",#N/A,"")) -> 71.40181 | V102: OK
K103: =IF(OFFSET(Data!A106,0,(View!$B$27-1)*12)<>"",$B$3 + OFFSET(Data!A106,0,(View!$B$27-1)*12),"") -> 44474.39233 | L103: =IF(OFFSET(Data!B106,0,(View!$B$27-1)*12)<>"",OFFSET(Data!B106,0,(View!$B$27-1)*12),"") -> 102 | M103: =IF(OFFSET(Data!C106,0,(View!$B$27-1)*12)<>"",OFFSET(Data!C106,0,(View!$B$27-1)*12),"") -> 74.75869 | N103: =IF(OFFSET(Data!D106,0,(View!$B$27-1)*12)<>"",OFFSET(Data!D106,0,(View!$B$27-1)*12),"") -> 53.10895 | O103: 204594.9925 | P103: OK | Q103: =IF(OFFSET(Data!F106,0,(View!$B$27-1)*12)<>"",OFFSET(Data!F106,0,(View!$B$27-1)*12),IF($M103<>"",#N/A,"")) -> 76.53041 | R103: =IF(OFFSET(Data!G106,0,(View!$B$27-1)*12)<>"",OFFSET(Data!G106,0,(View!$B$27-1)*12),IF($N103<>"",#N/A,"")) -> 62.65192 | S103: OK | T103: =IF(OFFSET(Data!I106,0,(View!$B$27-1)*12)<>"",OFFSET(Data!I106,0,(View!$B$27-1)*12),IF($M103<>"",#N/A,"")) -> 77.07137 | U103: =IF(OFFSET(Data!J106,0,(View!$B$27-1)*12)<>"",OFFSET(Data!J106,0,(View!$B$27-1)*12),IF($N103<>"",#N/A,"")) -> 66.16042 | V103: OK
K104: =IF(OFFSET(Data!A107,0,(View!$B$27-1)*12)<>"",$B$3 + OFFSET(Data!A107,0,(View!$B$27-1)*12),"") -> 44474.39234 | L104: =IF(OFFSET(Data!B107,0,(View!$B$27-1)*12)<>"",OFFSET(Data!B107,0,(View!$B$27-1)*12),"") -> 103 | M104: =IF(OFFSET(Data!C107,0,(View!$B$27-1)*12)<>"",OFFSET(Data!C107,0,(View!$B$27-1)*12),"") -> 74.73193 | N104: =IF(OFFSET(Data!D107,0,(View!$B$27-1)*12)<>"",OFFSET(Data!D107,0,(View!$B$27-1)*12),"") -> 70.4081 | O104: 10985251.39 | P104: OK | Q104: =IF(OFFSET(Data!F107,0,(View!$B$27-1)*12)<>"",OFFSET(Data!F107,0,(View!$B$27-1)*12),IF($M104<>"",#N/A,"")) -> 76.5048 | R104: =IF(OFFSET(Data!G107,0,(View!$B$27-1)*12)<>"",OFFSET(Data!G107,0,(View!$B$27-1)*12),IF($N104<>"",#N/A,"")) -> 72.49038 | S104: OK | T104: =IF(OFFSET(Data!I107,0,(View!$B$27-1)*12)<>"",OFFSET(Data!I107,0,(View!$B$27-1)*12),IF($M104<>"",#N/A,"")) -> 77.04495 | U104: =IF(OFFSET(Data!J107,0,(View!$B$27-1)*12)<>"",OFFSET(Data!J107,0,(View!$B$27-1)*12),IF($N104<>"",#N/A,"")) -> 72.81587 | V104: OK
K105: =IF(OFFSET(Data!A108,0,(View!$B$27-1)*12)<>"",$B$3 + OFFSET(Data!A108,0,(View!$B$27-1)*12),"") -> 44474.39235 | L105: =IF(OFFSET(Data!B108,0,(View!$B$27-1)*12)<>"",OFFSET(Data!B108,0,(View!$B$27-1)*12),"") -> 104 | M105: =IF(OFFSET(Data!C108,0,(View!$B$27-1)*12)<>"",OFFSET(Data!C108,0,(View!$B$27-1)*12),"") -> 74.71498 | N105: =IF(OFFSET(Data!D108,0,(View!$B$27-1)*12)<>"",OFFSET(Data!D108,0,(View!$B$27-1)*12),"") -> 72.47708 | O105: 17689192.17 | P105: OK | Q105: =IF(OFFSET(Data!F108,0,(View!$B$27-1)*12)<>"",OFFSET(Data!F108,0,(View!$B$27-1)*12),IF($M105<>"",#N/A,"")) -> 76.49607 | R105: =IF(OFFSET(Data!G108,0,(View!$B$27-1)*12)<>"",OFFSET(Data!G108,0,(View!$B$27-1)*12),IF($N105<>"",#N/A,"")) -> 75.48678 | S105: OK | T105: =IF(OFFSET(Data!I108,0,(View!$B$27-1)*12)<>"",OFFSET(Data!I108,0,(View!$B$27-1)*12),IF($M105<>"",#N/A,"")) -> 77.0341 | U105: =IF(OFFSET(Data!J108,0,(View!$B$27-1)*12)<>"",OFFSET(Data!J108,0,(View!$B$27-1)*12),IF($N105<>"",#N/A,"")) -> 75.74078 | V105: OK

Sheet Data
A1: MEAS0001 | B1: date | C1: time | D1: running_average_time | E1: current_average_time | F1: LEQ_warning_limit | M1: MEAS0002 | N1: date | O1: time | P1: running_average_time | Q1: current_average_time | R1: LEQ_warning_limit
B2: 2021-09-30 | C2: 20:18:34 | D2: 15 | E2: 1 | F2: 105 | N2: 2021-10-05 | O2: 09:23:14 | P2: 15 | Q2: 1 | R2: 105
A4: time | B4: averaging_time | C4: LAEQ_average | D4: LAEQ_current | E4: LAEQ_below_limit | F4: LCEQ_average | G4: LCEQ_current | H4: LCEQ_below_limit | I4: LZEQ_average | J4: LZEQ_current | M4: time | N4: averaging_time | O4: LAEQ_average | P4: LAEQ_current | Q4: LAEQ_below_limit | R4: LCEQ_average | S4: LCEQ_current | T4: LCEQ_below_limit | U4: LZEQ_average | V4: LZEQ_current
A5: 20:18:36 | B5: 1 | C5: 36.11554 | D5: 36.11554 | E5: Y | F5: 46.74542 | G5: 46.74542 | H5: Y | I5: 50.56788 | J5: 50.56788 | M5: 09:23:16 | N5: 1 | O5: 46.5464 | P5: 46.5464 | Q5: Y | R5: 57.59908 | S5: 57.59908 | T5: Y | U5: 62.18216 | V5: 62.18216
A6: 20:18:37 | B6: 2 | C6: 68.27608 | D6: 71.28506 | E6: Y | F6: 69.84211 | G6: 72.84175 | H6: Y | I6: 69.85415 | J6: 72.83878 | M6: 09:23:17 | N6: 2 | O6: 68.79659 | P6: 71.79393 | Q6: Y | R6: 72.73644 | S6: 75.6797 | T6: Y | U6: 72.94711 | V6: 75.77139
A7: 20:18:38 | B7: 3 | C7: 69.64759 | D7: 71.52728 | E7: Y | F7: 72.28383 | G7: 74.97925 | H7: Y | I7: 72.30371 | J7: 75.00392 | M7: 09:23:18 | N7: 3 | O7: 73.93935 | P7: 77.71968 | Q7: Y | R7: 77.10964 | S7: 80.66866 | T7: Y | U7: 77.1842 | V7: 80.69848
A8: 20:18:39 | B8: 4 | C8: 69.92371 | D8: 70.66018 | E8: Y | F8: 72.80456 | G8: 74.07229 | H8: Y | I8: 72.82554 | J8: 74.09547 | M8: 09:23:19 | N8: 4 | O8: 74.12587 | P8: 74.64171 | Q8: Y | R8: 77.09779 | S8: 77.06202 | T8: Y | U8: 77.18259 | V8: 77.17771
A9: 20:18:40 | B9: 5 | C9: 69.86802 | D9: 69.63781 | E9: Y | F9: 72.61367 | G9: 71.75321 | H9: Y | I9: 72.6534 | J9: 71.88719 | M9: 09:23:20 | N9: 5 | O9: 73.37136 | P9: 67.19253 | Q9: Y | R9: 76.43752 | S9: 71.79307 | T9: Y | U9: 76.53889 | V9: 72.1134
A10: 20:18:41 | B10: 6 | C10: 70.22534 | D10: 71.6708 | E10: Y | F10: 72.65533 | G10: 72.85782 | H10: Y | I10: 72.68933 | J10: 72.86467 | M10: 09:23:21 | N10: 6 | O10: 72.6288 | P10: 60.93211 | Q10: Y | R10: 75.76523 | S10: 67.88374 | T10: Y | U10: 75.8782 | V10: 68.39329
A11: 20:18:42 | B11: 7 | C11: 70.43044 | D11: 71.49157 | E11: Y | F11: 72.74141 | G11: 73.22487 | H11: Y | I11: 72.77135 | J11: 73.23341 | M11: 09:23:22 | N11: 7 | O11: 72.10279 | P11: 65.67157 | Q11: Y | R11: 75.23964 | S11: 68.82115 | T11: Y | U11: 75.36845 | V11: 69.39536
A12: 20:18:43 | B12: 8 | C12: 70.15408 | D12: 67.47865 | E12: Y | F12: 72.63 | G12: 71.75806 | H12: Y | I12: 72.66305 | J12: 71.81828 | M12: 09:23:23 | N12: 8 | O12: 71.53127 | P12: 53.42602 | Q12: Y | R12: 74.68188 | S12: 60.77889 | T12: Y | U12: 74.82868 | V12: 63.49833
A13: 20:18:44 | B13: 9 | C13: 70.25365 | D13: 70.97736 | E13: Y | F13: 72.59702 | G13: 72.32378 | H13: Y | I13: 72.63019 | J13: 72.35794 | M13: 09:23:24 | N13: 9 | O13: 71.06342 | P13: 60.60826 | Q13: Y | R13: 74.25948 | S13: 66.87946 | T13: Y | U13: 74.42513 | V13: 67.8692
A14: 20:18:45 | B14: 10 | C14: 70.09233 | D14: 68.28385 | E14: Y | F14: 72.39156 | G14: 69.90433 | H14: Y | I14: 72.4239 | J14: 69.92276 | M14: 09:23:25 | N14: 10 | O14: 70.79804 | P14: 67.1618 | Q14: Y | R14: 73.99586 | S14: 70.39841 | T14: Y | U14: 74.17533 | V14: 70.86982
A15: 20:18:46 | B15: 11 | C15: 70.33726 | D15: 72.23595 | E15: Y | F15: 72.53888 | G15: 73.7889 | H15: Y | I15: 72.56885 | J15: 73.80164 | M15: 09:23:26 | N15: 11 | O15: 71.9664 | P15: 77.2282 | Q15: Y | R15: 74.6547 | S15: 78.47053 | T15: Y | U15: 74.80489 | V15: 78.51457
A16: 20:18:47 | B16: 12 | C16: 70.56845 | D16: 72.52822 | E16: Y | F16: 72.74451 | G16: 74.53055 | H16: Y | I16: 72.77083 | J16: 74.53139 | M16: 09:23:27 | N16: 12 | O16: 71.9677 | P16: 71.98199 | Q16: Y | R16: 74.56085 | S16: 73.36724 | T16: Y | U16: 74.7107 | V16: 73.51202
A17: 20:18:48 | B17: 13 | C17: 70.43279 | D17: 68.35126 | E17: Y | F17: 72.65743 | G17: 71.4481 | H17: Y | I17: 72.70059 | J17: 71.75494 | M17: 09:23:28 | N17: 13 | O17: 72.08453 | P17: 73.28532 | Q17: Y | R17: 74.61977 | S17: 75.27078 | T17: Y | U17: 74.76772 | V17: 75.39931
A18: 20:18:49 | B18: 14 | C18: 70.17075 | D18: 62.99187 | E18: Y | F18: 72.50108 | G18: 69.68995 | H18: Y | I18: 72.61785 | J18: 71.36829 | M18: 09:23:29 | N18: 14 | O18: 72.42997 | P18: 75.42719 | Q18: Y | R18: 74.83881 | S18: 76.98568 | T18: Y | U18: 74.98476 | V18: 77.11644
A19: 20:18:50 | B19: 15 | C19: 69.91527 | D19: 61.72577 | E19: Y | F19: 72.38482 | G19: 70.30984 | H19: Y | I19: 72.5613 | J19: 71.68089 | M19: 09:23:30 | N19: 15 | O19: 72.34004 | P19: 70.83477 | Q19: Y | R19: 74.75501 | S19: 73.37167 | T19: Y | U19: 74.90314 | V19: 73.56263
A20: 20:18:51 | B20: 16 | C20: 70.3479 | D20: 74.19006 | E20: Y | F20: 72.61495 | G20: 75.10484 | H20: Y | I20: 72.77825 | J20: 75.16099 | M20: 09:23:31 | N20: 16 | O20: 72.23696 | P20: 70.29678 | Q20: Y | R20: 74.67125 | S20: 73.17091 | T20: Y | U20: 74.82063 | V20: 73.34731
A21: 20:18:52 | B21: 17 | C21: 70.96841 | D21: 75.92419 | E21: Y | F21: 75.0554 | G21: 84.01972 | H21: Y | I21: 75.50684 | J21: 84.78253 | M21: 09:23:32 | N21: 17 | O21: 72.11271 | P21: 69.40143 | Q21: Y | R21: 74.58734 | S21: 72.96236 | T21: Y | U21: 74.74014 | V21: 73.19528
A22: 20:18:53 | B22: 18 | C22: 71.5508 | D22: 76.51102 | E22: Y | F22: 76.2638 | G22: 83.36424 | H22: Y | I22: 76.78715 | J22: 84.06293 | M22: 09:23:33 | N22: 18 | O22: 71.89266 | P22: 62.55403 | Q22: Y | R22: 74.41732 | S22: 69.48587 | T22: Y | U22: 74.57517 | V22: 69.91344
A23: 20:18:54 | B23: 19 | C23: 72.89137 | D23: 80.51102 | E23: Y | F23: 77.94141 | G23: 86.24575 | H23: Y | I23: 78.46836 | J23: 86.77923 | M23: 09:23:34 | N23: 19 | O23: 71.85987 | P23: 71.22285 | Q23: Y | R23: 74.40943 | S23: 74.26504 | T23: Y | U23: 74.56454 | V23: 74.3687
A24: 20:18:55 | B24: 20 | C24: 73.11022 | D24: 75.97416 | E24: Y | F24: 78.28216 | G24: 82.14494 | H24: Y | I24: 78.8286 | J24: 82.82946 | M24: 09:23:35 | N24: 20 | O24: 72.12934 | P24: 75.43973 | Q24: Y | R24: 74.68809 | S24: 78.07423 | T24: Y | U24: 74.83325 | V24: 78.13721
A25: 20:18:56 | B25: 21 | C25: 72.99996 | D25: 69.86402 | E25: Y | F25: 78.12059 | G25: 71.95798 | H25: Y | I25: 78.66116 | J25: 71.96257 | M25: 09:23:36 | N25: 21 | O25: 72.14074 | P25: 72.36265 | Q25: Y | R25: 74.69944 | S25: 74.92056 | T25: Y | U25: 74.8507 | V25: 75.18571
A26: 20:18:57 | B26: 22 | C26: 72.96914 | D26: 72.26549 | E26: Y | F26: 78.00892 | G26: 74.57 | H26: Y | I26: 78.53913 | J26: 74.57698 | M26: 09:23:37 | N26: 22 | O26: 71.95277 | P26: 60.47306 | Q26: Y | R26: 74.52304 | S26: 65.64407 | T26: Y | U26: 74.68184 | V26: 66.91947
A27: 20:18:58 | B27: 23 | C27: 72.84608 | D27: 68.50083 | E27: Y | F27: 77.8478 | G27: 70.11349 | H27: Y | I27: 78.37465 | J27: 70.15862 | M27: 09:23:38 | N27: 23 | O27: 72.42249 | P27: 77.54843 | Q27: Y | R27: 74.95943 | S27: 79.87749 | T27: Y | U27: 75.09969 | V27: 79.897
M28: 09:23:39 | N28: 24 | O28: 72.53629 | P28: 74.56343 | Q28: Y | R28: 75.05077 | S28: 76.74966 | T28: Y | U28: 75.18694 | V28: 76.82299
M29: 09:23:40 | N29: 25 | O29: 72.4321 | P29: 68.63614 | Q29: Y | R29: 74.9588 | S29: 71.82771 | T29: Y | U29: 75.0968 | V29: 72.05736
M30: 09:23:41 | N30: 26 | O30: 72.33162 | P30: 68.51025 | Q30: Y | R30: 74.87257 | S30: 71.85081 | T30: Y | U30: 75.01372 | V30: 72.14953
M31: 09:23:42 | N31: 27 | O31: 72.18001 | P31: 61.00662 | Q31: Y | R31: 74.74703 | S31: 68.50307 | T31: Y | U31: 74.8927 | V31: 69.13033
M32: 09:23:43 | N32: 28 | O32: 72.06643 | P32: 66.60867 | Q32: Y | R32: 74.66647 | S32: 71.60758 | T32: Y | U32: 74.81297 | V32: 71.80012
M33: 09:23:44 | N33: 29 | O33: 72.05369 | P33: 71.68087 | Q33: Y | R33: 74.65689 | S33: 74.37981 | T33: Y | U33: 74.80439 | V33: 74.55717
M34: 09:23:45 | N34: 30 | O34: 71.95751 | P34: 67.40591 | Q34: Y | R34: 74.59742 | S34: 72.37991 | T34: Y | U34: 74.78278 | V34: 74.10423
M35: 09:23:46 | N35: 31 | O35: 71.93973 | P35: 71.36913 | Q35: Y | R35: 74.60256 | S35: 74.75414 | T35: Y | U35: 74.78796 | V35: 74.94026
M36: 09:23:47 | N36: 32 | O36: 71.86846 | P36: 68.74454 | Q36: Y | R36: 74.5369 | S36: 71.76102 | T36: Y | U36: 74.72257 | V36: 71.96342
M37: 09:23:48 | N37: 33 | O37: 72.14606 | P37: 76.8903 | Q37: Y | R37: 74.81372 | S37: 79.55013 | T37: Y | U37: 74.98876 | V37: 79.61642
M38: 09:23:49 | N38: 34 | O38: 72.46514 | P38: 77.69953 | Q38: Y | R38: 75.23489 | S38: 81.30947 | T38: Y | U38: 75.39321 | V38: 81.34205
M39: 09:23:50 | N39: 35 | O39: 73.15335 | P39: 80.92228 | Q39: Y | R39: 75.84726 | S39: 83.22824 | T39: Y | U39: 76.03737 | V39: 83.58607
M40: 09:23:51 | N40: 36 | O40: 73.47111 | P40: 78.87363 | Q40: Y | R40: 76.08189 | S40: 80.61633 | T40: Y | U40: 76.29065 | V40: 81.0369
M41: 09:23:52 | N41: 37 | O41: 73.5997 | P41: 76.71788 | Q41: Y | R41: 76.15276 | S41: 78.14653 | T41: Y | U41: 76.38858 | V41: 78.94777
M42: 09:23:53 | N42: 38 | O42: 73.72836 | P42: 76.90894 | Q42: Y | R42: 76.2179 | S42: 78.12353 | T42: Y | U42: 76.47547 | V42: 78.86326
M43: 09:23:54 | N43: 39 | O43: 73.84962 | P43: 76.95964 | Q43: Y | R43: 76.28459 | S43: 78.26871 | T43: Y | U43: 76.56298 | V43: 79.01337
M44: 09:23:55 | N44: 40 | O44: 73.95752 | P44: 76.87332 | Q44: Y | R44: 76.33902 | S44: 78.05843 | T44: Y | U44: 76.63688 | V44: 78.8326
M45: 09:23:56 | N45: 41 | O45: 74.06033 | P45: 76.92898 | Q45: Y | R45: 76.3948 | S45: 78.18584 | T45: Y | U45: 76.70955 | V45: 78.92054
M46: 09:23:57 | N46: 42 | O46: 74.15051 | P46: 76.80463 | Q46: Y | R46: 76.44171 | S46: 78.02679 | T46: Y | U46: 76.77197 | V46: 78.77219
M47: 09:23:58 | N47: 43 | O47: 74.23692 | P47: 76.85526 | Q47: Y | R47: 76.48777 | S47: 78.08076 | T47: Y | U47: 76.83177 | V47: 78.80312
M48: 09:23:59 | N48: 44 | O48: 74.31751 | P48: 76.8475 | Q48: Y | R48: 76.52653 | S48: 77.93163 | T48: Y | U48: 76.88346 | V48: 78.66958
M49: 09:24:00 | N49: 45 | O49: 74.38591 | P49: 76.65855 | Q49: Y | R49: 76.56388 | S49: 77.95261 | T49: Y | U49: 76.9324 | V49: 78.67297
M50: 09:24:01 | N50: 46 | O50: 74.44599 | P50: 76.53635 | Q50: Y | R50: 76.59071 | S50: 77.65296 | T50: Y | U50: 76.97019 | V50: 78.39999
M51: 09:24:02 | N51: 47 | O51: 74.50016 | P51: 76.45982 | Q51: Y | R51: 76.61318 | S51: 77.53851 | T51: Y | U51: 77.00346 | V51: 78.31004
M52: 09:24:03 | N52: 48 | O52: 74.56051 | P52: 76.73145 | Q52: Y | R52: 76.64448 | S52: 77.90736 | T52: Y | U52: 77.04488 | V52: 78.64707
M53: 09:24:04 | N53: 49 | O53: 74.61671 | P53: 76.70443 | Q53: Y | R53: 76.67508 | S53: 77.93647 | T53: Y | U53: 77.08548 | V53: 78.68909
M54: 09:24:05 | N54: 50 | O54: 74.66791 | P54: 76.6385 | Q54: Y | R54: 76.7042 | S54: 77.93454 | T54: Y | U54: 77.12358 | V54: 78.67099
M55: 09:24:06 | N55: 51 | O55: 74.71341 | P55: 76.53514 | Q55: Y | R55: 76.73072 | S55: 77.88479 | T55: Y | U55: 77.15852 | V55: 78.62144
M56: 09:24:07 | N56: 52 | O56: 74.75345 | P56: 76.42062 | Q56: Y | R56: 76.74973 | S56: 77.62312 | T56: Y | U56: 77.19186 | V56: 78.62245
M57: 09:24:08 | N57: 53 | O57: 74.78867 | P57: 76.31162 | Q57: Y | R57: 76.76691 | S57: 77.57785 | T57: Y | U57: 77.21583 | V57: 78.30879
M58: 09:24:09 | N58: 54 | O58: 74.82182 | P58: 76.29272 | Q58: Y | R58: 76.7818 | S58: 77.5056 | T58: Y | U58: 77.2377 | V58: 78.26301
M59: 09:24:10 | N59: 55 | O59: 74.85791 | P59: 76.46221 | Q59: Y | R59: 76.79713 | S59: 77.55383 | T59: Y | U59: 77.25943 | V59: 78.29571
M60: 09:24:11 | N60: 56 | O60: 74.89069 | P60: 76.39369 | Q60: Y | R60: 76.81042 | S60: 77.48497 | T60: Y | U60: 77.28098 | V60: 78.32664
M61: 09:24:12 | N61: 57 | O61: 74.92192 | P61: 76.38702 | Q61: Y | R61: 76.82696 | S61: 77.66497 | T61: Y | U61: 77.30391 | V61: 78.42599
M62: 09:24:13 | N62: 58 | O62: 74.9549 | P62: 76.51177 | Q62: Y | R62: 76.84134 | S62: 77.5909 | T62: Y | U62: 77.32394 | V62: 78.33537
M63: 09:24:14 | N63: 59 | O63: 74.99136 | P63: 76.70867 | Q63: Y | R63: 76.86204 | S63: 77.92001 | T63: Y | U63: 77.35033 | V63: 78.65829
M64: 09:24:15 | N64: 60 | O64: 75.02436 | P64: 76.62784 | Q64: Y | R64: 76.88055 | S64: 77.8532 | T64: Y | U64: 77.37569 | V64: 78.65794
M65: 09:24:16 | N65: 61 | O65: 75.05379 | P65: 76.53114 | Q65: Y | R65: 76.89564 | S65: 77.71616 | T65: Y | U65: 77.39617 | V65: 78.47641
M66: 09:24:17 | N66: 62 | O66: 75.08181 | P66: 76.51909 | Q66: Y | R66: 76.91299 | S66: 77.85844 | T66: Y | U66: 77.41962 | V66: 78.6534
M67: 09:24:18 | N67: 63 | O67: 75.1082 | P67: 76.49322 | Q67: Y | R67: 76.92854 | S67: 77.79796 | T67: Y | U67: 77.44013 | V67: 78.55274
M68: 09:24:19 | N68: 64 | O68: 75.13626 | P68: 76.61543 | Q68: Y | R68: 76.94317 | S68: 77.77786 | T68: Y | U68: 77.4595 | V68: 78.53251
M69: 09:24:20 | N69: 65 | O69: 75.16473 | P69: 76.68176 | Q69: Y | R69: 76.95816 | S69: 77.82354 | T69: Y | U69: 77.47868 | V69: 78.55778
M70: 09:24:21 | N70: 66 | O70: 75.18797 | P70: 76.48155 | Q70: Y | R70: 76.96861 | S70: 77.5993 | T70: Y | U70: 77.4931 | V70: 78.34052
M71: 09:24:22 | N71: 67 | O71: 75.21119 | P71: 76.52052 | Q71: Y | R71: 76.98424 | S71: 77.90792 | T71: Y | U71: 77.51199 | V71: 78.60607
M72: 09:24:23 | N72: 68 | O72: 75.23222 | P72: 76.45007 | Q72: Y | R72: 76.99545 | S72: 77.68773 | T72: Y | U72: 77.5265 | V72: 78.4027
M73: 09:24:24 | N73: 69 | O73: 75.2514 | P73: 76.38945 | Q73: Y | R73: 77.00653 | S73: 77.70009 | T73: Y | U73: 77.54074 | V73: 78.41354
M74: 09:24:25 | N74: 70 | O74: 75.26894 | P74: 76.33442 | Q74: Y | R74: 77.01421 | S74: 77.5139 | T74: Y | U74: 77.55174 | V74: 78.25043
M75: 09:24:26 | N75: 71 | O75: 75.28672 | P75: 76.37933 | Q75: Y | R75: 77.02367 | S75: 77.63905 | T75: Y | U75: 77.56476 | V75: 78.39082
M76: 09:24:27 | N76: 72 | O76: 75.30164 | P76: 76.24806 | Q76: Y | R76: 77.03094 | S76: 77.51912 | T76: Y | U76: 77.57652 | V76: 78.33875
M77: 09:24:28 | N77: 73 | O77: 75.31832 | P77: 76.37721 | Q77: Y | R77: 77.03962 | S77: 77.62232 | T77: Y | U77: 77.58771 | V77: 78.32616
M78: 09:24:29 | N78: 74 | O78: 75.3382 | P78: 76.58785 | Q78: Y | R78: 77.04903 | S78: 77.68658 | T78: Y | U78: 77.60131 | V78: 78.49438
M79: 09:24:30 | N79: 75 | O79: 75.36106 | P79: 76.78628 | Q79: Y | R79: 77.06416 | S79: 78.05843 | T79: Y | U79: 77.61971 | V79: 78.80173
M80: 09:24:31 | N80: 76 | O80: 75.39429 | P80: 77.35799 | Q80: Y | R80: 77.08637 | S80: 78.49328 | T80: Y | U80: 77.64581 | V80: 79.25758
M81: 09:24:32 | N81: 77 | O81: 75.45626 | P81: 78.6301 | Q81: Y | R81: 77.13538 | S81: 79.81393 | T81: Y | U81: 77.69802 | V81: 80.50428
M82: 09:24:33 | N82: 78 | O82: 75.52045 | P82: 78.80347 | Q82: Y | R82: 77.18712 | S82: 80.00164 | T82: Y | U82: 77.7521 | V82: 80.65878
M83: 09:24:34 | N83: 79 | O83: 75.56039 | P83: 77.90079 | Q83: Y | R83: 77.22236 | S83: 79.34496 | T83: Y | U83: 77.78914 | V83: 79.9966
M84: 09:24:35 | N84: 80 | O84: 75.5058 | P84: 44.19205 | Q84: Y | R84: 77.16866 | S84: 59.49171 | T84: Y | U84: 77.73805 | V84: 65.8866
M85: 09:24:36 | N85: 81 | O85: 75.46159 | P85: 68.04674 | Q85: Y | R85: 77.13419 | S85: 72.72915 | T85: Y | U85: 77.7021 | V85: 72.95076
M86: 09:24:37 | N86: 82 | O86: 75.44456 | P86: 73.78185 | Q86: Y | R86: 77.12037 | S86: 75.82294 | T86: Y | U86: 77.68432 | V86: 75.9311
M87: 09:24:38 | N87: 83 | O87: 75.41454 | P87: 71.75945 | Q87: Y | R87: 77.0948 | S87: 74.21987 | T87: Y | U87: 77.65625 | V87: 74.36166
M88: 09:24:39 | N88: 84 | O88: 75.37793 | P88: 70.11265 | Q88: Y | R88: 77.05795 | S88: 71.72267 | T88: Y | U88: 77.61821 | V88: 71.92743
M89: 09:24:40 | N89: 85 | O89: 75.32693 | P89: 54.18217 | Q89: Y | R89: 77.00876 | S89: 63.36512 | T89: Y | U89: 77.56963 | V89: 64.97021
M90: 09:24:41 | N90: 86 | O90: 75.28986 | P90: 69.62846 | Q90: Y | R90: 76.9837 | S90: 74.04382 | T90: Y | U90: 77.54238 | V90: 74.21815
M91: 09:24:42 | N91: 87 | O91: 75.2458 | P91: 66.14905 | Q91: Y | R91: 76.94549 | S91: 70.74612 | T91: Y | U91: 77.50362 | V91: 71.10514
M92: 09:24:43 | N92: 88 | O92: 75.20502 | P92: 67.73254 | Q92: Y | R92: 76.90993 | S92: 71.45407 | T92: Y | U92: 77.46699 | V92: 71.66483
M93: 09:24:44 | N93: 89 | O93: 75.15691 | P93: 58.16508 | Q93: Y | R93: 76.86338 | S93: 64.00189 | T93: Y | U93: 77.42083 | V93: 65.18104
M94: 09:24:45 | N94: 90 | O94: 75.16164 | P94: 75.56299 | Q94: Y | R94: 76.87773 | S94: 77.9956 | T94: Y | U94: 77.42817 | V94: 78.03666
M95: 09:24:46 | N95: 91 | O95: 75.13071 | P95: 70.65263 | Q95: Y | R95: 76.84945 | S95: 72.99918 | T95: Y | U95: 77.39821 | V95: 73.16066
M96: 09:24:47 | N96: 92 | O96: 75.10088 | P96: 70.81496 | Q96: Y | R96: 76.83037 | S96: 74.60616 | T96: Y | U96: 77.3768 | V96: 74.7833
M97: 09:24:48 | N97: 93 | O97: 75.05798 | P97: 64.4371 | Q97: Y | R97: 76.79046 | S97: 68.57218 | T97: Y | U97: 77.33685 | V97: 69.08769
M98: 09:24:49 | N98: 94 | O98: 75.01175 | P98: 51.96436 | Q98: Y | R98: 76.74573 | S98: 62.44226 | T98: Y | U98: 77.29269 | V98: 64.24638
M99: 09:24:50 | N99: 95 | O99: 74.96744 | P99: 60.51633 | Q99: Y | R99: 76.70367 | S99: 66.00615 | T99: Y | U99: 77.25105 | V99: 67.00114
M100: 09:24:51 | N100: 96 | O100: 74.92266 | P100: 56.83111 | Q100: Y | R100: 76.66193 | S100: 65.84024 | T100: Y | U100: 77.2095 | V100: 66.58892
M101: 09:24:52 | N101: 97 | O101: 74.88275 | P101: 65.4399 | Q101: Y | R101: 76.6282 | S101: 70.63517 | T101: Y | U101: 77.17653 | V101: 71.46577
M102: 09:24:53 | N102: 98 | O102: 74.87025 | P102: 73.44637 | Q102: Y | R102: 76.62046 | S102: 75.79482 | T102: Y | U102: 77.16557 | V102: 75.94456
M103: 09:24:54 | N103: 99 | O103: 74.87585 | P103: 75.39252 | Q103: Y | R103: 76.63396 | S103: 77.78728 | T103: Y | U103: 77.17262 | V103: 77.81307
M104: 09:24:55 | N104: 100 | O104: 74.83958 | P104: 67.13449 | Q104: Y | R104: 76.60371 | S104: 71.48651 | T104: Y | U104: 77.14235 | V104: 72.02244
M105: 09:24:56 | N105: 101 | O105: 74.80119 | P105: 65.29682 | Q105: Y | R105: 76.57146 | S105: 70.6315 | T105: Y | U105: 77.1107 | V105: 71.40181
M106: 09:24:57 | N106: 102 | O106: 74.75869 | P106: 53.10895 | Q106: Y | R106: 76.53041 | S106: 62.65192 | T106: Y | U106: 77.07137 | V106: 66.16042
M107: 09:24:58 | N107: 103 | O107: 74.73193 | P107: 70.4081 | Q107: Y | R107: 76.5048 | S107: 72.49038 | T107: Y | U107: 77.04495 | V107: 72.81587
M108: 09:24:59 | N108: 104 | O108: 74.71498 | P108: 72.47708 | Q108: Y | R108: 76.49607 | S108: 75.48678 | T108: Y | U108: 77.0341 | V108: 75.74078

Sheet Meas0002
A1: Time (s) | B1: Peak | C1: Slow | D1: 10^(L1/10)
A2: 0 | B2: 68.415 | C2: 43.836 | D2: =10^(C2/10) -> 24188.00223 | E2: Laeq = | F2: =10*LOG10(SUM(D2:D105)/COUNT(D2:D105)) -> 74.71232135
A3: 1 | B3: 92.772 | C3: 71.277 | D3: =10^(C3/10) -> 13418377.32
A4: 2 | B4: 95.106 | C4: 75.629 | D4: 36551062
A5: 3 | B5: 92.257 | C5: 74.524 | D5: 28340010.06
A6: 4 | B6: 82.796 | C6: 71.267 | D6: 13387515.91
A7: 5 | B7: 76.223 | C7: 67.559 | D7: 5700330.022
A8: 6 | B8: 81.045 | C8: 66.112 | D8: 4085074.677
A9: 7 | B9: 73.035 | C9: 62.134 | D9: 1634556.737
A10: 8 | B10: 77.034 | C10: 60.926 | D10: 1237656.138
A11: 9 | B11: 83.45 | C11: 66.698 | D11: 4675197.909
A12: 10 | B12: 93.066 | C12: 75.929 | D12: 39165168.56
A13: 11 | B13: 85.751 | C13: 73.486 | D13: 22315159.74
A14: 12 | B14: 90.858 | C14: 73.55 | D14: 22646443.08
A15: 13 | B15: 89.243 | C15: 74.474 | D15: 28015604.64
A16: 14 | B16: 84.877 | C16: 72.291 | D16: 16947279.81
A17: 15 | B17: 85.059 | C17: 70.684 | D17: 11705770.36
A18: 16 | B18: 84.688 | C18: 69.913 | D18: 9801668.269
A19: 17 | B19: 78.398 | C19: 66.556 | D19: 4524806.379
A20: 18 | B20: 86.87 | C20: 70.64 | D20: 11587773.56
A21: 19 | B21: 90.743 | C21: 73.434 | D21: 22049563.68
A22: 20 | B22: 86.371 | C22: 72.382 | D22: 17306131.53
A23: 21 | B23: 82.08 | C23: 68.399 | D23: 6916716.893
A24: 22 | B24: 91.874 | C24: 77.01 | D24: 50234258.95
A25: 23 | B25: 89.207 | C25: 75.626 | D25: 36525822.14
A26: 24 | B26: 84.116 | C26: 72.444 | D26: 17554966.3
A27: 25 | B27: 85.254 | C27: 70.599 | D27: 11478892.8
A28: 26 | B28: 78.542 | C28: 66.88 | D28: 4875284.901
A29: 27 | B29: 83.945 | C29: 66.992 | D29: 5002648.624
A30: 28 | B30: 86.225 | C30: 69.672 | D30: 9272567.426
A31: 29 | B31: 83.755 | C31: 68.724 | D31: 7454182.134
A32: 30 | B32: 87.288 | C32: 71.396 | D32: 13791134.69
A33: 31 | B33: 85.667 | C33: 69.688 | D33: 9306791.832
A34: 32 | B34: 94.237 | C34: 75.95 | D34: 39355007.55
A35: 33 | B35: 92.579 | C35: 76.767 | D35: 47500698.94
A36: 34 | B36: 96.639 | C36: 80.072 | D36: 101671680
A37: 35 | B37: 94.545 | C37: 79.089 | D37: 81077434.87
A38: 36 | B38: 88.989 | C38: 77.791 | D38: 60131217.88
A39: 37 | B39: 89.226 | C39: 77.299 | D39: 53690815.45
A40: 38 | B40: 89.361 | C40: 77.118 | D40: 51499142.76
A41: 39 | B41: 88.584 | C41: 77.024 | D41: 50396456.36
A42: 40 | B42: 89.138 | C42: 76.997 | D42: 50084114.53
A43: 41 | B43: 89.547 | C43: 76.896 | D43: 48932792.41
A44: 42 | B44: 89.818 | C44: 76.902 | D44: 49000442.28
A45: 43 | B45: 90.441 | C45: 76.917 | D45: 49169976.42
A46: 44 | B46: 89.008 | C46: 76.783 | D46: 47676020.74
A47: 45 | B47: 89.424 | C47: 76.643 | D47: 46163635.15
A48: 46 | B48: 89.26 | C48: 76.583 | D48: 45530246.33
A49: 47 | B49: 89.784 | C49: 76.752 | D49: 47336920.33
A50: 48 | B50: 89.107 | C50: 76.756 | D50: 47380539.33
A51: 49 | B51: 89.641 | C51: 76.728 | D51: 47076048.33
A52: 50 | B52: 88.784 | C52: 76.62 | D52: 45919801.28
A53: 51 | B53: 89.013 | C53: 76.515 | D53: 44822905
A54: 52 | B54: 88.981 | C54: 76.401 | D54: 43661635.53
A55: 53 | B55: 88.924 | C55: 76.383 | D55: 43481047.69
A56: 54 | B56: 88.998 | C56: 76.487 | D56: 44534850.63
A57: 55 | B57: 89.651 | C57: 76.465 | D57: 44309821.45
A58: 56 | B58: 88.133 | C58: 76.48 | D58: 44463126.75
A59: 57 | B59: 88.524 | C59: 76.552 | D59: 45206407.96
A60: 58 | B60: 89.476 | C60: 76.705 | D60: 46827395.14
A61: 59 | B61: 89.478 | C61: 76.675 | D61: 46505037.62
A62: 60 | B62: 88.079 | C62: 76.616 | D62: 45877527.05
A63: 61 | B63: 89.143 | C63: 76.581 | D63: 45509283.71
A64: 62 | B64: 88.971 | C64: 76.566 | D64: 45352371.35
A65: 63 | B65: 89.355 | C65: 76.645 | D65: 46184899.19
A66: 64 | B66: 89.335 | C66: 76.698 | D66: 46751979.09
A67: 65 | B67: 89.494 | C67: 76.616 | D67: =10^(C67/10) -> 45877527.05
A68: 66 | B68: 89.194 | C68: 76.587 | D68: 45572200.56
A69: 67 | B69: 89.391 | C69: 76.539 | D69: 45071291.21
A70: 68 | B70: 88.796 | C70: 76.473 | D70: 44391518.38
A71: 69 | B71: 88.478 | C71: 76.443 | D71: 44085929.32
A72: 70 | B72: 88.942 | C72: 76.431 | D72: 43964283.53
A73: 71 | B73: 89.371 | C73: 76.338 | D73: 43032839.13
A74: 72 | B74: 89.786 | C74: 76.4 | D74: 43651583.22
A75: 73 | B75: 89.98 | C75: 76.581 | D75: 45509283.71
A76: 74 | B76: 89.087 | C76: 76.77 | D76: 47533522.59
A77: 75 | B77: 90.591 | C77: 77.246 | D77: 53039570.67
A78: 76 | B78: 91.583 | C78: 78.242 | D78: 66711391.58
A79: 77 | B79: 90.752 | C79: 78.647 | D79: 73231849.07
A80: 78 | B80: 91.966 | C80: 77.908 | D80: 61773185.86
A81: 79 | B81: 63.579 | C81: 73.568 | D81: 22740499.51
A82: 80 | B82: 86.925 | C82: 70.963 | D82: 12482454.74
A83: 81 | B83: 90.541 | C83: 72.311 | D83: 17025504.9
A84: 82 | B84: 89.051 | C84: 71.988 | D84: 15805200.15
A85: 83 | B85: 90.626 | C85: 70.335 | D85: 10801896.21
A86: 84 | B86: 77.298 | C86: 66.25 | D86: 4216965.034
A87: 85 | B87: 85.185 | C87: 68.114 | D87: 6477389.307
A88: 86 | B88: 81.655 | C88: 67.321 | D88: 5396348.637
A89: 87 | B89: 80.48 | C89: 67.422 | D89: 5523317.389
A90: 88 | B90: 77.889 | C90: 63.745 | D90: 2368645.132
A91: 89 | B91: 91.289 | C91: 72.765 | D91: 18901662.31
A92: 90 | B92: 86.194 | C92: 71.267 | D92: 13387515.91
A93: 91 | B93: 86.236 | C93: 70.955 | D93: 12459482.37
A94: 92 | B94: 82.952 | C94: 67.613 | D94: 5771650.172
A95: 93 | B95: 68.24 | C95: 63.503 | D95: 2240268.127
A96: 94 | B96: 77.291 | C96: 62.036 | D96: 1598085.459
A97: 95 | B97: 71.661 | C97: 59.411 | D97: 873172.4006
A98: 96 | B98: 85.578 | C98: 65.399 | D98: 3466570.205
A99: 97 | B99: 90.115 | C99: 71.35 | D99: 13645831.37
A100: 98 | B100: 89.308 | C100: 74.24 | D100: 26546055.62
A101: 99 | B101: 82.286 | C101: 71.218 | D101: 13237317.94
A102: 100 | B102: 82.102 | C102: 68.21 | D102: 6622165.037
A103: 101 | B103: 72.656 | C103: 64.054 | D103: 2543314.106
A104: 102 | B104: 89.929 | C104: 69.572 | D104: 9061498.022
A105: 103 | B105: 89.771 | C105: 70.304 | D105: 10725066.66
